Ref No,Fund Type,Dept,Cost Centre Description    ,Description    ,Creditor Name    ,GL Code Net Amount,Payment date        
2,Revenue,CAHD,18-25 Year Olds,Permanent Residential,1 St Georges House,13333.52, 14-Jan-2020
3,Revenue,CAHD,CSC - Asylum Seekers - Unaccompanied,Client Transport,1625 Independent People,72.60, 21-Jan-2020
4,Revenue,CAHD,CSC - Asylum Seekers - Unaccompanied,Furniture & Fittings Loose,1625 Independent People,567.00, 21-Jan-2020
5,Revenue,CAHD,CSC - Asylum Seekers - Unaccompanied,Client Transport,1625 Independent People,1442.40, 24-Jan-2020
6,Revenue,CAHD,Supporting People Programme,Grants to Voluntary Bodies,1625 Independent People,15167.00, 31-Jan-2020
7,Revenue,CAHD,Supporting People Programme,Grants to Voluntary Bodies,1625 Independent People,10046.00, 31-Jan-2020
8,Revenue,CAHD,Central - Commissioned Services,Day Care / Social Activities,3 Trees Community Support Ltd,395.28, 10-Jan-2020
9,Revenue,CAHD,Central - Commissioned Services,Other Small Contracts,3 Trees Community Support Ltd,5025.38, 10-Jan-2020
10,Revenue,CAHD,Central - Commissioned Services,Supported Living,3 Trees Community Support Ltd,5134.37, 10-Jan-2020
11,Revenue,CAHD,North - Community based support,Day Care / Social Activities,3 Trees Community Support Ltd,644.16, 10-Jan-2020
12,Revenue,CAHD,Central - Commissioned Services,Day Care / Social Activities,3 Trees Community Support Ltd,195.20, 10-Jan-2020
13,Revenue,CAHD,Central - Commissioned Services,Other Small Contracts,3 Trees Community Support Ltd,4588.96, 10-Jan-2020
14,Revenue,CAHD,Central - Commissioned Services,Supported Living,3 Trees Community Support Ltd,4792.77, 10-Jan-2020
15,Revenue,CAHD,North - Community based support,Day Care / Social Activities,3 Trees Community Support Ltd,453.84, 10-Jan-2020
16,Revenue,CAHD,Central - Commissioned Services,Day Care / Social Activities,3 Trees Community Support Ltd,195.20, 15-Jan-2020
17,Revenue,CAHD,Central - Commissioned Services,Other Small Contracts,3 Trees Community Support Ltd,5165.44, 15-Jan-2020
18,Revenue,CAHD,Central - Commissioned Services,Supported Living,3 Trees Community Support Ltd,4836.69, 15-Jan-2020
19,Revenue,CAHD,North - Community based support,Day Care / Social Activities,3 Trees Community Support Ltd,683.20, 15-Jan-2020
20,Revenue,CAHD,Central - Commissioned Services,Day Care / Social Activities,3 Trees Community Support Ltd,195.20, 24-Jan-2020
21,Revenue,CAHD,Central - Commissioned Services,Other Small Contracts,3 Trees Community Support Ltd,5165.44, 24-Jan-2020
22,Revenue,CAHD,Central - Commissioned Services,Supported Living,3 Trees Community Support Ltd,4841.57, 24-Jan-2020
23,Revenue,CAHD,North - Community based support,Day Care / Social Activities,3 Trees Community Support Ltd,678.32, 24-Jan-2020
24,Revenue,CAHD,Central - Commissioned Services,Day Care / Social Activities,3 Trees Community Support Ltd,195.20, 29-Jan-2020
25,Revenue,CAHD,Central - Commissioned Services,Other Small Contracts,3 Trees Community Support Ltd,5162.02, 29-Jan-2020
26,Revenue,CAHD,Central - Commissioned Services,Supported Living,3 Trees Community Support Ltd,4831.79, 29-Jan-2020
27,Revenue,CAHD,North - Community based support,Day Care / Social Activities,3 Trees Community Support Ltd,678.32, 29-Jan-2020
28,Revenue,CAHD,South - S117,Permanent Nursing,3Rd Floor  The Aspect,2287.36, 14-Jan-2020
29,Revenue,CAHD,South - S117,Permanent Nursing,3Rd Floor  The Aspect,2123.98, 14-Jan-2020
30,Revenue,CAHD,South - bed purchasing and direct  payments,Permanent Nursing,3Rd Floor  The Aspect,3593.88, 14-Jan-2020
31,Revenue,CAHD,South - bed purchasing and direct  payments,Permanent Nursing,3Rd Floor  The Aspect,3337.17, 14-Jan-2020
32,Revenue,CAHD,North - bed purchasing and direct  payments,Permanent Nursing,3Rd Floor  The Aspect,2287.36, 14-Jan-2020
33,Revenue,CAHD,North - bed purchasing and direct  payments,Permanent Nursing,3Rd Floor  The Aspect,2123.98, 14-Jan-2020
34,Revenue,CAHD,North - bed purchasing and direct  payments,Permanent Nursing,3Rd Floor  The Aspect,3234.72, 14-Jan-2020
35,Revenue,CAHD,North - bed purchasing and direct  payments,Permanent Nursing,3Rd Floor  The Aspect,3003.67, 14-Jan-2020
36,Revenue,CAHD,South - bed purchasing and direct  payments,Permanent Nursing,3Rd Floor  The Aspect,2287.36, 14-Jan-2020
37,Revenue,CAHD,South - bed purchasing and direct  payments,Permanent Nursing,3Rd Floor  The Aspect,2123.98, 14-Jan-2020
38,Revenue,CAHD,South - bed purchasing and direct  payments,Permanent Residential,5Th Floor Harlech Court,16667.12, 14-Jan-2020
39,Revenue,CAHD,South - bed purchasing and direct  payments,Permanent Residential,5Th Floor Harlech Court,10419.52, 14-Jan-2020
40,Revenue,CAHD,S28A cases,Permanent Residential,5Th Floor Harlech Court,10904.68, 14-Jan-2020
41,Revenue,CAHD,South - bed purchasing and direct  payments,Permanent Residential,5Th Floor Harlech Court,11436.40, 14-Jan-2020
42,Revenue,CAHD,North - bed purchasing and direct  payments,Permanent Residential,5Th Floor Harlech Court,12498.56, 14-Jan-2020
43,Revenue,CAHD,North - bed purchasing and direct  payments,Permanent Residential,5Th Floor Harlech Court,10537.24, 14-Jan-2020
44,Revenue,CAHD,North - bed purchasing and direct  payments,Permanent Residential,5Th Floor Harlech Court,9071.12, 14-Jan-2020
45,Revenue,CAHD,Alexandra Way,Mechanical & Electrical Maintenance,A E Horder (Contracting) Limited,823.87, 16-Jan-2020
46,Revenue,CAHD,Alexandra Way,Mechanical & Electrical Maintenance,A E Horder (Contracting) Limited,948.00, 17-Jan-2020
47,Revenue,CAHD,Alexandra Way,Mechanical & Electrical Maintenance,A E Horder (Contracting) Limited,823.87, 17-Jan-2020
48,Revenue,CAHD,Alexandra Way,Premises Maintenance by Contractor,A G Gribble Limited,640.00, 24-Jan-2020
49,Revenue,CAHD,CSC - Section 17 0-25,Preventative Assistance,A+bility Ltd,556.00, 20-Jan-2020
50,Revenue,CAHD,Section 117 Placements MH Younger,Permanent Residential,Acorn Care Providers,6608.20, 14-Jan-2020
51,Revenue,CAHD,North - S117,Permanent Residential,Acorn Care Providers,3900.00, 14-Jan-2020
52,Revenue,CAHD,Jointly Funded H&SC Packages,Permanent Residential,Acorn Care Providers,2100.00, 14-Jan-2020
53,Revenue,CAHD,MH Purchasing - Younger,Permanent Residential,Acorn Care Providers,6144.00, 14-Jan-2020
54,Revenue,CAHD,Training - Adult Services,Training Expenses,Acorn Health & Safety Limited,477.00, 02-Jan-2020
55,Revenue,CAHD,Training - Adult Services,Training Expenses,Acorn Health & Safety Limited,437.00, 16-Jan-2020
56,Revenue,CAHD,CSC - Agency Fostering,Foster Parent Allowances,Action for Children,6975.00, 10-Jan-2020
57,Revenue,CAHD,South - bed purchasing and direct  payments,Permanent Residential,Administration & Revenue Centre,3744.04, 14-Jan-2020
58,Revenue,CAHD,South - bed purchasing and direct  payments,Permanent Residential,Administration & Revenue Centre,3476.61, 14-Jan-2020
59,Revenue,CAHD,South - bed purchasing and direct  payments,Permanent Nursing,Administration And Revenue Centre,2735.08, 14-Jan-2020
60,Revenue,CAHD,South - bed purchasing and direct  payments,Permanent Nursing,Administration And Revenue Centre,2539.72, 14-Jan-2020
61,Revenue,CAHD,South Glos Users in South Glos Homes,Permanent Nursing,Administration And Revenue Centre,662.24, 14-Jan-2020
62,Revenue,CAHD,South Glos Users in South Glos Homes,Permanent Nursing,Administration And Revenue Centre,614.94, 14-Jan-2020
63,Revenue,CAHD,South - bed purchasing and direct  payments,Permanent Nursing,Administration And Revenue Centre,2398.00, 14-Jan-2020
64,Revenue,CAHD,South - bed purchasing and direct  payments,Permanent Nursing,Administration And Revenue Centre,2226.71, 14-Jan-2020
65,Revenue,CAHD,South - bed purchasing and direct  payments,Permanent Nursing,Administration And Revenue Centre,2398.00, 14-Jan-2020
66,Revenue,CAHD,South - bed purchasing and direct  payments,Permanent Nursing,Administration And Revenue Centre,2226.71, 14-Jan-2020
67,Revenue,CAHD,South Glos Users in South Glos Homes,Permanent Nursing,Administration And Revenue Centre,662.24, 14-Jan-2020
68,Revenue,CAHD,South Glos Users in South Glos Homes,Permanent Nursing,Administration And Revenue Centre,614.94, 14-Jan-2020
69,Revenue,CAHD,South - bed purchasing and direct  payments,Permanent Nursing,Administration And Revenue Centre,2398.00, 14-Jan-2020
70,Revenue,CAHD,South - bed purchasing and direct  payments,Permanent Nursing,Administration And Revenue Centre,2226.71, 14-Jan-2020
71,Revenue,CAHD,South Glos Users in South Glos Homes,Permanent Nursing,Administration And Revenue Centre,662.24, 14-Jan-2020
72,Revenue,CAHD,South Glos Users in South Glos Homes,Permanent Nursing,Administration And Revenue Centre,614.94, 14-Jan-2020
73,Revenue,CAHD,South - bed purchasing and direct  payments,Permanent Residential,Administration And Revenue Centre,2462.56, 14-Jan-2020
74,Revenue,CAHD,South - bed purchasing and direct  payments,Permanent Residential,Administration And Revenue Centre,2286.66, 14-Jan-2020
75,Revenue,CAHD,South Glos Users in South Glos Homes,Permanent Nursing,Administration And Revenue Centre,662.24, 14-Jan-2020
76,Revenue,CAHD,South Glos Users in South Glos Homes,Permanent Nursing,Administration And Revenue Centre,614.94, 14-Jan-2020
77,Revenue,CAHD,North - bed purchasing and direct  payments,Permanent Nursing,Administration And Revenue Centre,2891.76, 14-Jan-2020
78,Revenue,CAHD,North - bed purchasing and direct  payments,Permanent Nursing,Administration And Revenue Centre,2685.21, 14-Jan-2020
79,Revenue,CAHD,South Glos Users in South Glos Homes,Permanent Nursing,Administration And Revenue Centre,662.24, 14-Jan-2020
80,Revenue,CAHD,South Glos Users in South Glos Homes,Permanent Nursing,Administration And Revenue Centre,614.94, 14-Jan-2020
81,Revenue,CAHD,South - bed purchasing and direct  payments,Permanent Nursing,Administration And Revenue Centre,2662.40, 14-Jan-2020
82,Revenue,CAHD,South - bed purchasing and direct  payments,Permanent Nursing,Administration And Revenue Centre,2472.23, 14-Jan-2020
83,Revenue,CAHD,South Glos Users in South Glos Homes,Permanent Nursing,Administration And Revenue Centre,662.24, 14-Jan-2020
84,Revenue,CAHD,South Glos Users in South Glos Homes,Permanent Nursing,Administration And Revenue Centre,614.94, 14-Jan-2020
85,Revenue,CAHD,South - bed purchasing and direct  payments,Permanent Nursing,Administration And Revenue Centre,2891.76, 14-Jan-2020
86,Revenue,CAHD,South - bed purchasing and direct  payments,Permanent Nursing,Administration And Revenue Centre,2685.21, 14-Jan-2020
87,Revenue,CAHD,South - bed purchasing and direct  payments,Permanent Nursing,Administration And Revenue Centre,2621.44, 14-Jan-2020
88,Revenue,CAHD,South - bed purchasing and direct  payments,Permanent Nursing,Administration And Revenue Centre,2434.19, 14-Jan-2020
89,Revenue,CAHD,South Glos Users in South Glos Homes,Permanent Nursing,Administration And Revenue Centre,662.24, 14-Jan-2020
90,Revenue,CAHD,South Glos Users in South Glos Homes,Permanent Nursing,Administration And Revenue Centre,614.94, 14-Jan-2020
91,Revenue,CAHD,South Glos Users in South Glos Homes,Permanent Nursing,Administration And Revenue Centre,662.24, 14-Jan-2020
92,Revenue,CAHD,South Glos Users in South Glos Homes,Permanent Nursing,Administration And Revenue Centre,614.94, 14-Jan-2020
93,Revenue,CAHD,South Glos Users in South Glos Homes,Permanent Nursing,Administration And Revenue Centre,662.24, 14-Jan-2020
94,Revenue,CAHD,South Glos Users in South Glos Homes,Permanent Nursing,Administration And Revenue Centre,614.94, 14-Jan-2020
95,Revenue,CAHD,South - bed purchasing and direct  payments,Permanent Nursing,Administration And Revenue Centre,2867.20, 14-Jan-2020
96,Revenue,CAHD,South - bed purchasing and direct  payments,Permanent Nursing,Administration And Revenue Centre,2662.40, 14-Jan-2020
97,Revenue,CAHD,South - Commissioned Services,Respite Planned - Residential,Administration And Revenue Centre,7600.00, 14-Jan-2020
98,Revenue,CAHD,South - Commissioned Services,Respite Planned - Residential,Administration And Revenue Centre,3800.00, 14-Jan-2020
99,Revenue,CAHD,South - bed purchasing and direct  payments,Permanent Nursing,Administration And Revenue Centre,3950.00, 14-Jan-2020
100,Revenue,CAHD,South - bed purchasing and direct  payments,Permanent Nursing,Administration And Revenue Centre,3160.00, 14-Jan-2020
101,Revenue,CAHD,South - bed purchasing and direct  payments,Permanent Nursing,Administration And Revenue Centre,2462.56, 14-Jan-2020
102,Revenue,CAHD,South - bed purchasing and direct  payments,Permanent Nursing,Administration And Revenue Centre,2286.66, 14-Jan-2020
103,Revenue,CAHD,South Glos Users in South Glos Homes,Permanent Nursing,Administration And Revenue Centre,662.24, 14-Jan-2020
104,Revenue,CAHD,South Glos Users in South Glos Homes,Permanent Nursing,Administration And Revenue Centre,614.94, 14-Jan-2020
105,Revenue,CAHD,South - bed purchasing and direct  payments,Permanent Nursing,Administration And Revenue Centre,2398.00, 14-Jan-2020
106,Revenue,CAHD,South - bed purchasing and direct  payments,Permanent Nursing,Administration And Revenue Centre,2226.71, 14-Jan-2020
107,Revenue,CAHD,South Glos Users in South Glos Homes,Permanent Nursing,Administration And Revenue Centre,662.24, 14-Jan-2020
108,Revenue,CAHD,South Glos Users in South Glos Homes,Permanent Nursing,Administration And Revenue Centre,614.94, 14-Jan-2020
109,Revenue,CAHD,South - bed purchasing and direct  payments,Permanent Nursing,Administration And Revenue Centre,2398.00, 14-Jan-2020
110,Revenue,CAHD,South - bed purchasing and direct  payments,Permanent Nursing,Administration And Revenue Centre,2226.71, 14-Jan-2020
111,Revenue,CAHD,South - S117,Permanent Residential,Administration And Revenue Centre,3128.00, 14-Jan-2020
112,Revenue,CAHD,South - S117,Permanent Residential,Administration And Revenue Centre,2904.57, 14-Jan-2020
113,Revenue,CAHD,South - bed purchasing and direct  payments,Permanent Nursing,Administration And Revenue Centre,2398.00, 14-Jan-2020
114,Revenue,CAHD,South - bed purchasing and direct  payments,Permanent Nursing,Administration And Revenue Centre,2226.71, 14-Jan-2020
115,Revenue,CAHD,South Glos Users in South Glos Homes,Permanent Nursing,Administration And Revenue Centre,662.24, 14-Jan-2020
116,Revenue,CAHD,South Glos Users in South Glos Homes,Permanent Nursing,Administration And Revenue Centre,614.94, 14-Jan-2020
117,Revenue,CAHD,South - bed purchasing and direct  payments,Permanent Nursing,Administration And Revenue Centre,2933.00, 14-Jan-2020
118,Revenue,CAHD,South - bed purchasing and direct  payments,Permanent Nursing,Administration And Revenue Centre,2723.50, 14-Jan-2020
119,Revenue,CAHD,North - bed purchasing and direct  payments,Permanent Residential,Administration And Revenue Centre,2891.76, 14-Jan-2020
120,Revenue,CAHD,North - bed purchasing and direct  payments,Permanent Residential,Administration And Revenue Centre,2685.21, 14-Jan-2020
121,Revenue,CAHD,South Glos Users in South Glos Homes,Permanent Nursing,Administration And Revenue Centre,662.24, 14-Jan-2020
122,Revenue,CAHD,South Glos Users in South Glos Homes,Permanent Nursing,Administration And Revenue Centre,614.94, 14-Jan-2020
123,Revenue,CAHD,North - bed purchasing and direct  payments,Permanent Nursing,Administration And Revenue Centre,2367.00, 14-Jan-2020
124,Revenue,CAHD,North - bed purchasing and direct  payments,Permanent Nursing,Administration And Revenue Centre,2197.93, 14-Jan-2020
125,Revenue,CAHD,North - bed purchasing and direct  payments,Permanent Nursing,Admirals Reach Care Home,2662.24, 14-Jan-2020
126,Revenue,CAHD,South - Commissioned Services,Other Small Contracts,Advantedge Commercial Finance Limited,799.68, 21-Jan-2020
127,Revenue,CAHD,South - Commissioned Services,Other Small Contracts,Advantedge Commercial Finance Limited,1066.24, 21-Jan-2020
128,Revenue,CAHD,South - Commissioned Services,Other Small Contracts,Advantedge Commercial Finance Limited,685.44, 31-Jan-2020
129,Revenue,CAHD,South - Commissioned Services,Other Small Contracts,Advantedge Commercial Finance Limited,783.82, 31-Jan-2020
130,Revenue,CAHD,North - Community based support,Other Small Contracts,Advantedge Commercial Finance Limited,799.68, 20-Jan-2020
131,Revenue,CAHD,South - Commissioned Services,Other Small Contracts,Advantedge Commercial Finance Limited,637.84, 21-Jan-2020
132,Revenue,CAHD,South - Commissioned Services,Other Small Contracts,Advantedge Commercial Finance Limited,799.68, 21-Jan-2020
133,Revenue,CAHD,South - Commissioned Services,Other Small Contracts,Advantedge Commercial Finance Limited,2094.40, 21-Jan-2020
134,Revenue,CAHD,South - Commissioned Services,Day Care / Social Activities,Age Concern,634.24, 14-Jan-2020
135,Revenue,CAHD,South - Commissioned Services,Day Care / Social Activities,Age Concern,720.00, 14-Jan-2020
136,Revenue,CAHD,South - Commissioned Services,Day Care / Social Activities,Age Concern,621.60, 14-Jan-2020
137,Revenue,CAHD,Central - Commissioned Services,Day Care / Social Activities,Age Concern,600.00, 14-Jan-2020
138,Revenue,CAHD,North - Community based support,Day Care / Social Activities,Age Concern,720.00, 14-Jan-2020
139,Revenue,CAHD,Central - Commissioned Services,Day Care / Social Activities,Age Concern,634.24, 14-Jan-2020
140,Revenue,CAHD,Central - Commissioned Services,Day Care / Social Activities,Age Concern,536.00, 14-Jan-2020
141,Revenue,CAHD,Central - Commissioned Services,Day Care / Social Activities,Age Concern,621.60, 14-Jan-2020
142,Revenue,CAHD,Central - Commissioned Services,Day Care / Social Activities,Age Concern,621.60, 14-Jan-2020
143,Revenue,CAHD,Extra Care Housing,Private & Voluntary Home Care,Agincare UK Limited,24391.34, 31-Jan-2020
144,Revenue,CAHD,Extra Care Housing,Private & Voluntary Home Care,Agincare UK Limited,11734.93, 31-Jan-2020
145,Revenue,CAHD,Extra Care Housing,Private & Voluntary Home Care,Agincare UK Limited,28508.53, 03-Jan-2020
146,Revenue,CAHD,Extra Care Housing,Private & Voluntary Home Care,Agincare UK Limited,2526.78, 17-Jan-2020
147,Revenue,CAHD,Extra Care Housing,Private & Voluntary Home Care,Agincare UK Limited,3699.50, 13-Jan-2020
148,Revenue,CAHD,Extra Care Housing,Private & Voluntary Home Care,Agincare UK Limited,554.93, 14-Jan-2020
149,Revenue,CAHD,Prison Assessments & Costs,Other Supplies & Services,Agincare UK Limited,4203.25, 14-Jan-2020
150,Revenue,CAHD,18-25 Year Olds,Permanent Residential,Alexander House,12155.16, 14-Jan-2020
151,Revenue,CAHD,South - Commissioned Services,Other Small Contracts,AliMo Care Ltd,613.08, 15-Jan-2020
152,Revenue,CAHD,South - Commissioned Services,Other Small Contracts,AliMo Care Ltd,702.00, 15-Jan-2020
153,Revenue,CAHD,North - Community based support,Other Small Contracts,AliMo Care Ltd,46.80, 15-Jan-2020
154,Revenue,CAHD,South - Commissioned Services,Other Small Contracts,AliMo Care Ltd,739.44, 23-Jan-2020
155,Revenue,CAHD,North - Community based support,Other Small Contracts,AliMo Care Ltd,117.00, 23-Jan-2020
156,Revenue,CAHD,South - Commissioned Services,Other Small Contracts,AliMo Care Ltd,936.00, 23-Jan-2020
157,Revenue,CAHD,North - Community based support,Other Small Contracts,AliMo Care Ltd,117.00, 23-Jan-2020
158,Revenue,CAHD,South - Commissioned Services,Other Small Contracts,AliMo Care Ltd,1095.12, 24-Jan-2020
159,Revenue,CAHD,North - Community based support,Other Small Contracts,AliMo Care Ltd,126.36, 24-Jan-2020
160,Revenue,CAHD,North - bed purchasing and direct  payments,Permanent Nursing,Allambie Court,2320.44, 14-Jan-2020
161,Revenue,CAHD,Central - Bed Purchasing and Direct Payments,Permanent Residential,Alvony House Residential Care Home,3000.00, 14-Jan-2020
162,Revenue,CAHD,North - bed purchasing and direct  payments,Respite Planned - Residential,Amber House,7225.32, 14-Jan-2020
163,Revenue,CAHD,CSC - Residential Placements,Permanent Residential,Amberleigh Care Ltd,17244.86, 30-Jan-2020
164,Revenue,CAHD,CSC - Residential Placements,Permanent Residential,Ambito Care and Education,105733.84, 07-Jan-2020
165,Revenue,CAHD,Early Years High Needs Support,Other Private Contractors,Ambourne House Day Nursery,1666.51, 23-Jan-2020
166,Revenue,CAHD,North - bed purchasing and direct  payments,Permanent Nursing,Amerind Grove Nursing Home,2706.32, 14-Jan-2020
167,Revenue,CAHD,CSC - Agency Fostering,Foster Parent Allowances,Amicus Foster Care Ltd,3262.44, 03-Jan-2020
168,Revenue,CAHD,CSC - Agency Fostering,Foster Parent Allowances,Amicus Foster Care Ltd,4879.00, 03-Jan-2020
169,Revenue,CAHD,Supporting People Programme,Grants to Voluntary Bodies,Anchor Hanover Group,1039.00, 31-Jan-2020
170,Revenue,CAHD,Supporting People Programme,Grants to Voluntary Bodies,Anchor Hanover Group,847.00, 31-Jan-2020
171,Revenue,CAHD,CSC - Legal Fees,Legal Fees,Individual,660.00, 06-Jan-2020
172,Revenue,CAHD,CSC - Vinney Green Secure Unit,External Lecturers Fees,Individual,1300.00, 22-Jan-2020
173,Revenue,CAHD,CSC - Vinney Green Secure Unit,External Lecturers Fees,Individual,850.00, 16-Jan-2020
174,Revenue,CAHD,Jointly Funded H&SC Packages,Permanent Residential,Ash View House,1111.40, 14-Jan-2020
175,Revenue,CAHD,South - bed purchasing and direct  payments,Permanent Residential,Ash View House,5421.04, 14-Jan-2020
176,Revenue,CAHD,S117 Placements PCT,Permanent Residential,Ash View House,7556.32, 14-Jan-2020
177,Revenue,CAHD,18-25 Year Olds,Permanent Residential,Ash View House,7099.52, 14-Jan-2020
178,Revenue,CAHD,North - bed purchasing and direct  payments,Permanent Residential,Ash View House,7120.00, 14-Jan-2020
179,Revenue,CAHD,Section 117 Placements MH Younger,Permanent Residential,Ash View House,4924.12, 14-Jan-2020
180,Revenue,CAHD,Jointly Funded H&SC Packages,Permanent Residential,Ash View House,2110.40, 14-Jan-2020
181,Revenue,CAHD,South - S117,Permanent Residential,Ash View House,6692.80, 14-Jan-2020
182,Revenue,CAHD,18-25 Year Olds,Permanent Residential,Ash View House,6615.52, 14-Jan-2020
183,Revenue,CAHD,North - bed purchasing and direct  payments,Permanent Residential,Aspects 2 Limited,7231.88, 14-Jan-2020
184,Revenue,CAHD,Supporting People Programme,Grants to Voluntary Bodies,Aspects and Milestones Trust,3441.00, 31-Jan-2020
185,Revenue,CAHD,Supporting People Programme,Grants to Voluntary Bodies,Aspects and Milestones Trust,1725.00, 31-Jan-2020
186,Revenue,CAHD,South - bed purchasing and direct  payments,Adults - Family Support,Ategi Limited,17425.02, 15-Jan-2020
187,Revenue,CAHD,South - bed purchasing and direct  payments,Permanent Residential,Autism Specialised Care Homes,6506.88, 14-Jan-2020
188,Revenue,CAHD,Statemented Support Payments to OLAs,Other L.A.'s - General,Avanti Gardens School,2570.64, 29-Jan-2020
189,Revenue,CAHD,Younger Adult Mental Health,Health Services (Third Party Payments),Avon & Wiltshire Mental Health,1693.33, 16-Jan-2020
190,Revenue,CAHD,South - bed purchasing and direct  payments,Permanent Nursing,Avon Lodge Care Centre,4256.24, 14-Jan-2020
191,Revenue,CAHD,South Glos Users in South Glos Homes,Permanent Nursing,Avon Lodge Care Centre,662.24, 14-Jan-2020
192,Revenue,CAHD,North - bed purchasing and direct  payments,Permanent Nursing,Avon Lodge Care Centre,4165.48, 14-Jan-2020
193,Revenue,CAHD,South Glos Users in South Glos Homes,Permanent Nursing,Avon Lodge Care Centre,662.24, 14-Jan-2020
194,Revenue,CAHD,South Glos Users in South Glos Homes,Permanent Nursing,Avon Lodge Care Centre,662.24, 14-Jan-2020
195,Revenue,CAHD,South - bed purchasing and direct  payments,Permanent Nursing,Avon Lodge Care Centre,4537.76, 14-Jan-2020
196,Revenue,CAHD,South Glos Users in South Glos Homes,Permanent Nursing,Avon Lodge Care Centre,662.24, 14-Jan-2020
197,Revenue,CAHD,South Glos Users in South Glos Homes,Permanent Nursing,Avon Lodge Care Centre,662.24, 14-Jan-2020
198,Revenue,CAHD,South - bed purchasing and direct  payments,Permanent Nursing,Avon Lodge Care Centre,3380.60, 14-Jan-2020
199,Revenue,CAHD,South Glos Users in South Glos Homes,Permanent Nursing,Avon Lodge Care Centre,662.24, 14-Jan-2020
200,Revenue,CAHD,South Glos Users in South Glos Homes,Permanent Nursing,Avon Lodge Care Centre,662.24, 14-Jan-2020
201,Revenue,CAHD,South - Commissioned Services,Permanent Nursing,Avon Lodge Care Centre,4226.64, 14-Jan-2020
202,Revenue,CAHD,South - Commissioned Services,Permanent Nursing,Avon Lodge Care Centre,2717.13, 14-Jan-2020
203,Revenue,CAHD,South - bed purchasing and direct  payments,Permanent Nursing,Avon Lodge Care Centre,3809.28, 14-Jan-2020
204,Revenue,CAHD,South Glos Users in South Glos Homes,Permanent Nursing,Avon Lodge Care Centre,662.24, 14-Jan-2020
205,Revenue,CAHD,South - bed purchasing and direct  payments,Permanent Nursing,Avon Lodge Care Centre,4537.76, 14-Jan-2020
206,Revenue,CAHD,South Glos Users in South Glos Homes,Permanent Nursing,Avon Lodge Care Centre,662.24, 14-Jan-2020
207,Revenue,CAHD,South Glos Users in South Glos Homes,Permanent Nursing,Avon Lodge Care Centre,662.24, 14-Jan-2020
208,Revenue,CAHD,Central - Bed Purchasing and Direct Payments,Permanent Nursing,Avon Lodge Care Centre,4226.64, 14-Jan-2020
209,Revenue,CAHD,South Glos Users in South Glos Homes,Permanent Nursing,Avon Lodge Care Centre,662.24, 14-Jan-2020
210,Revenue,CAHD,South - bed purchasing and direct  payments,Permanent Nursing,Avon Lodge Care Centre,4226.64, 14-Jan-2020
211,Revenue,CAHD,South Glos Users in South Glos Homes,Permanent Nursing,Avon Lodge Care Centre,662.24, 14-Jan-2020
212,Revenue,CAHD,South Glos Users in South Glos Homes,Permanent Nursing,Avon Lodge Care Centre,662.24, 14-Jan-2020
213,Revenue,CAHD,South - bed purchasing and direct  payments,Permanent Nursing,Avon Lodge Care Centre,3380.60, 14-Jan-2020
214,Revenue,CAHD,South Glos Users in South Glos Homes,Permanent Nursing,Avon Lodge Care Centre,662.24, 14-Jan-2020
215,Revenue,CAHD,South Glos Users in South Glos Homes,Permanent Nursing,Avon Lodge Care Centre,662.24, 14-Jan-2020
216,Revenue,CAHD,South - bed purchasing and direct  payments,Permanent Nursing,Avon Lodge Care Centre,3380.60, 14-Jan-2020
217,Revenue,CAHD,South Glos Users in South Glos Homes,Permanent Nursing,Avon Lodge Care Centre,662.24, 14-Jan-2020
218,Revenue,CAHD,South - bed purchasing and direct  payments,Permanent Nursing,Avon Lodge Care Centre,4226.64, 14-Jan-2020
219,Revenue,CAHD,South Glos Users in South Glos Homes,Permanent Nursing,Avon Lodge Care Centre,662.24, 14-Jan-2020
220,Revenue,CAHD,South - bed purchasing and direct  payments,Permanent Nursing,Avon Lodge Care Centre,4537.76, 14-Jan-2020
221,Revenue,CAHD,South Glos Users in South Glos Homes,Permanent Nursing,Avon Lodge Care Centre,662.24, 14-Jan-2020
222,Revenue,CAHD,South - bed purchasing and direct  payments,Permanent Nursing,Avon Lodge Care Centre,4226.64, 14-Jan-2020
223,Revenue,CAHD,South Glos Users in South Glos Homes,Permanent Nursing,Avon Lodge Care Centre,662.24, 14-Jan-2020
224,Revenue,CAHD,South Glos Users in South Glos Homes,Permanent Nursing,Avon Lodge Care Centre,662.24, 14-Jan-2020
225,Revenue,CAHD,South Glos Users in South Glos Homes,Permanent Nursing,Avon Lodge Care Centre,662.24, 14-Jan-2020
226,Revenue,CAHD,South Glos Users in South Glos Homes,Permanent Nursing,Avon Lodge Care Centre,662.24, 14-Jan-2020
227,Revenue,CAHD,South - bed purchasing and direct  payments,Permanent Nursing,Avon Lodge Care Centre,4226.64, 14-Jan-2020
228,Revenue,CAHD,South Glos Users in South Glos Homes,Permanent Nursing,Avon Lodge Care Centre,662.24, 14-Jan-2020
229,Revenue,CAHD,South - bed purchasing and direct  payments,Permanent Nursing,Avon Lodge Care Centre,4317.48, 14-Jan-2020
230,Revenue,CAHD,South Glos Users in South Glos Homes,Permanent Nursing,Avon Lodge Care Centre,662.24, 14-Jan-2020
231,Revenue,CAHD,South - bed purchasing and direct  payments,Permanent Nursing,Avon Lodge Care Centre,4358.40, 14-Jan-2020
232,Revenue,CAHD,South Glos Users in South Glos Homes,Permanent Nursing,Avon Lodge Care Centre,662.24, 14-Jan-2020
233,Revenue,CAHD,South Glos Users in South Glos Homes,Permanent Nursing,Avon Lodge Care Centre,662.24, 14-Jan-2020
234,Revenue,CAHD,South - bed purchasing and direct  payments,Permanent Nursing,Avon Lodge Care Centre,4226.64, 14-Jan-2020
235,Revenue,CAHD,South Glos Users in South Glos Homes,Permanent Nursing,Avon Lodge Care Centre,662.24, 14-Jan-2020
236,Revenue,CAHD,South - bed purchasing and direct  payments,Permanent Nursing,Avon Lodge Care Centre,4214.12, 14-Jan-2020
237,Revenue,CAHD,South Glos Users in South Glos Homes,Permanent Nursing,Avon Lodge Care Centre,662.24, 14-Jan-2020
238,Revenue,CAHD,South Glos Users in South Glos Homes,Permanent Nursing,Avon Lodge Care Centre,662.24, 14-Jan-2020
239,Revenue,CAHD,South Glos Users in South Glos Homes,Permanent Nursing,Avon Lodge Care Centre,662.24, 14-Jan-2020
240,Revenue,CAHD,Central - Bed Purchasing and Direct Payments,Permanent Nursing,Avon Lodge Care Centre,3808.64, 14-Jan-2020
241,Revenue,CAHD,South Glos Users in South Glos Homes,Permanent Nursing,Avon Lodge Care Centre,662.24, 14-Jan-2020
242,Revenue,CAHD,South - bed purchasing and direct  payments,Permanent Nursing,Avon Lodge Care Centre,4226.64, 14-Jan-2020
243,Revenue,CAHD,South Glos Users in South Glos Homes,Permanent Nursing,Avon Lodge Care Centre,662.24, 14-Jan-2020
244,Revenue,CAHD,South Glos Users in South Glos Homes,Permanent Nursing,Avon Lodge Care Centre,662.24, 14-Jan-2020
245,Revenue,CAHD,South - bed purchasing and direct  payments,Permanent Nursing,Avon Lodge Care Centre,4226.64, 14-Jan-2020
246,Revenue,CAHD,South Glos Users in South Glos Homes,Permanent Nursing,Avon Lodge Care Centre,662.24, 14-Jan-2020
247,Revenue,CAHD,South - bed purchasing and direct  payments,Permanent Nursing,Avon Lodge Care Centre,4226.64, 14-Jan-2020
248,Revenue,CAHD,South - bed purchasing and direct  payments,Permanent Nursing,Avon Lodge Care Centre,1660.47, 14-Jan-2020
249,Revenue,CAHD,South Glos Users in South Glos Homes,Permanent Nursing,Avon Lodge Care Centre,662.24, 14-Jan-2020
250,Revenue,CAHD,North - bed purchasing and direct  payments,Respite Planned - Nursing,Avon Lodge Care Centre,603.81, 14-Jan-2020
251,Revenue,CAHD,North - bed purchasing and direct  payments,Permanent Nursing,Avon Lodge Care Centre,4226.64, 14-Jan-2020
252,Revenue,CAHD,South - bed purchasing and direct  payments,Permanent Nursing,Avon Lodge Care Centre,4441.20, 14-Jan-2020
253,Revenue,CAHD,South Glos Users in South Glos Homes,Permanent Nursing,Avon Lodge Care Centre,662.24, 14-Jan-2020
254,Revenue,CAHD,South - S117,Permanent Nursing,Avon Lodge Care Centre,3809.28, 14-Jan-2020
255,Revenue,CAHD,South Glos Users in South Glos Homes,Permanent Nursing,Avon Lodge Care Centre,662.24, 14-Jan-2020
256,Revenue,CAHD,South Glos Users in South Glos Homes,Permanent Nursing,Avon Lodge Care Centre,662.24, 14-Jan-2020
257,Revenue,CAHD,Bed Purchasing - Southmead Hospital,Respite Planned - Nursing,Avon Lodge Care Centre,1962.37, 14-Jan-2020
258,Revenue,CAHD,South Glos Users in South Glos Homes,Permanent Nursing,Avon Lodge Care Centre,662.24, 14-Jan-2020
259,Revenue,CAHD,South Glos Users in South Glos Homes,Permanent Nursing,Avon Lodge Care Centre,662.24, 14-Jan-2020
260,Revenue,CAHD,South - bed purchasing and direct  payments,Permanent Residential,Avon Valley Care Home,3960.00, 14-Jan-2020
261,Revenue,CAHD,South - bed purchasing and direct  payments,Permanent Residential,Avon Valley Care Home,4000.00, 14-Jan-2020
262,Revenue,CAHD,South - bed purchasing and direct  payments,Permanent Residential,Avon Valley Care Home,4800.00, 14-Jan-2020
263,Revenue,CAHD,North - bed purchasing and direct  payments,Permanent Residential,Avonmere Care Home,4200.00, 14-Jan-2020
264,Revenue,CAHD,North - bed purchasing and direct  payments,Permanent Residential,Avonmere Care Home,4300.80, 14-Jan-2020
265,Revenue,CAHD,North - bed purchasing and direct  payments,Permanent Residential,Avonmere Care Home,5420.00, 14-Jan-2020
266,Revenue,CAHD,North - bed purchasing and direct  payments,Permanent Residential,Avonmere Care Home,4420.00, 14-Jan-2020
267,Revenue,CAHD,Central - Bed Purchasing and Direct Payments,Permanent Residential,Avonmere Care Home,5000.00, 14-Jan-2020
268,Revenue,CAHD,CSC - Family Group Conferencing,Grants to Voluntary Bodies,Barnardo Services Limited,5422.75, 28-Jan-2020
269,Revenue,CAHD,CSC - Legal Fees,Legal Fees,BarristerWeb,650.00, 30-Jan-2020
270,Revenue,CAHD,Pensions - Non DSG,Annual Pension,Bath & North East Somerset Council,106139.26, 27-Jan-2020
271,Revenue,CAHD,Pensions - Non DSG,Annual Pension,Bath & North East Somerset Council,6371.72, 31-Jan-2020
272,Revenue,CAHD,Independent Special Placements - Pre 16,Other Private Contractors,Bath Road Priory,79767.93, 10-Jan-2020
273,Revenue,CAHD,Pathway 3 - (Complex Beds),Permanent Nursing,Beaufort Care Ltd,11142.00, 29-Jan-2020
274,Revenue,CAHD,South Glos Users in South Glos Homes,Permanent Nursing,Beaufort Grange Care Home,662.24, 14-Jan-2020
275,Revenue,CAHD,South Glos Users in South Glos Homes,Permanent Nursing,Beaufort Grange Care Home,662.24, 14-Jan-2020
276,Revenue,CAHD,South Glos Users in South Glos Homes,Permanent Nursing,Beaufort Grange Care Home,662.24, 14-Jan-2020
277,Revenue,CAHD,South Glos Users in South Glos Homes,Permanent Nursing,Beaufort Grange Care Home,662.24, 14-Jan-2020
278,Revenue,CAHD,South Glos Users in South Glos Homes,Permanent Nursing,Beaufort Grange Care Home,662.24, 14-Jan-2020
279,Revenue,CAHD,South Glos Users in South Glos Homes,Permanent Nursing,Beaufort Grange Care Home,662.24, 14-Jan-2020
280,Revenue,CAHD,South Glos Users in South Glos Homes,Permanent Nursing,Beaufort Grange Care Home,662.24, 14-Jan-2020
281,Revenue,CAHD,South Glos Users in South Glos Homes,Permanent Nursing,Beaufort Grange Care Home,662.24, 14-Jan-2020
282,Revenue,CAHD,South Glos Users in South Glos Homes,Permanent Nursing,Beaufort Grange Care Home,662.24, 14-Jan-2020
283,Revenue,CAHD,South Glos Users in South Glos Homes,Permanent Nursing,Beaufort Grange Care Home,662.24, 14-Jan-2020
284,Revenue,CAHD,South Glos Users in South Glos Homes,Permanent Nursing,Beaufort Grange Care Home,662.24, 14-Jan-2020
285,Revenue,CAHD,North - S117,Permanent Nursing,Beaufort Grange Care Home,4877.04, 14-Jan-2020
286,Revenue,CAHD,South Glos Users in South Glos Homes,Permanent Nursing,Beaufort Grange Care Home,662.24, 14-Jan-2020
287,Revenue,CAHD,South Glos Users in South Glos Homes,Permanent Nursing,Beaufort Grange Care Home,662.24, 14-Jan-2020
288,Revenue,CAHD,South Glos Users in South Glos Homes,Permanent Nursing,Beaufort Grange Care Home,662.24, 14-Jan-2020
289,Revenue,CAHD,South Glos Users in South Glos Homes,Permanent Nursing,Beaufort Grange Care Home,662.24, 14-Jan-2020
290,Revenue,CAHD,Central - Bed Purchasing and Direct Payments,Permanent Nursing,Beaufort Grange Care Home,2688.43, 14-Jan-2020
291,Revenue,CAHD,Central - Bed Purchasing and Direct Payments,Permanent Nursing,Beaufort Grange Care Home,1739.57, 14-Jan-2020
292,Revenue,CAHD,South Glos Users in South Glos Homes,Permanent Nursing,Beaufort Grange Care Home,662.24, 14-Jan-2020
293,Revenue,CAHD,South Glos Users in South Glos Homes,Permanent Nursing,Beaufort Grange Care Home,662.24, 14-Jan-2020
294,Revenue,CAHD,South Glos Users in South Glos Homes,Permanent Nursing,Beaufort Grange Care Home,662.24, 14-Jan-2020
295,Revenue,CAHD,North - S117,Permanent Nursing,Beaufort Grange Care Home,5005.76, 14-Jan-2020
296,Revenue,CAHD,South Glos Users in South Glos Homes,Permanent Nursing,Beaufort Grange Care Home,662.24, 14-Jan-2020
297,Revenue,CAHD,South Glos Users in South Glos Homes,Permanent Nursing,Beaufort Grange Care Home,662.24, 14-Jan-2020
298,Revenue,CAHD,South Glos Users in South Glos Homes,Permanent Nursing,Beaufort Grange Care Home,662.24, 14-Jan-2020
299,Revenue,CAHD,South Glos Users in South Glos Homes,Permanent Nursing,Beaufort Grange Care Home,662.24, 14-Jan-2020
300,Revenue,CAHD,South Glos Users in South Glos Homes,Permanent Nursing,Beaufort Grange Care Home,662.24, 14-Jan-2020
301,Revenue,CAHD,South Glos Users in South Glos Homes,Permanent Nursing,Beaufort Grange Care Home,662.24, 14-Jan-2020
302,Revenue,CAHD,South Glos Users in South Glos Homes,Permanent Nursing,Beaufort Grange Care Home,662.24, 14-Jan-2020
303,Revenue,CAHD,South Glos Users in South Glos Homes,Permanent Nursing,Beaufort Grange Care Home,662.24, 14-Jan-2020
304,Revenue,CAHD,South Glos Users in South Glos Homes,Permanent Nursing,Beaufort Grange Care Home,662.24, 14-Jan-2020
305,Revenue,CAHD,South Glos Users in South Glos Homes,Permanent Nursing,Beaufort Grange Care Home,662.24, 14-Jan-2020
306,Revenue,CAHD,South Glos Users in South Glos Homes,Permanent Nursing,Beaufort Grange Care Home,662.24, 14-Jan-2020
307,Revenue,CAHD,South Glos Users in South Glos Homes,Permanent Nursing,Beaufort Grange Care Home,662.24, 14-Jan-2020
308,Revenue,CAHD,South Glos Users in South Glos Homes,Permanent Nursing,Beaufort Grange Care Home,662.24, 14-Jan-2020
309,Revenue,CAHD,South Glos Users in South Glos Homes,Permanent Nursing,Beaufort Grange Care Home,662.24, 14-Jan-2020
310,Revenue,CAHD,South Glos Users in South Glos Homes,Permanent Nursing,Beaufort Grange Care Home,662.24, 14-Jan-2020
311,Revenue,CAHD,South Glos Users in South Glos Homes,Permanent Nursing,Beaufort Grange Care Home,662.24, 14-Jan-2020
312,Revenue,CAHD,South Glos Users in South Glos Homes,Permanent Nursing,Beaufort Grange Care Home,662.24, 14-Jan-2020
313,Revenue,CAHD,South Glos Users in South Glos Homes,Permanent Nursing,Beaufort Grange Care Home,662.24, 14-Jan-2020
314,Revenue,CAHD,South Glos Users in South Glos Homes,Permanent Nursing,Beaufort Grange Care Home,662.24, 14-Jan-2020
315,Revenue,CAHD,South Glos Users in South Glos Homes,Permanent Nursing,Beaufort Grange Care Home,662.24, 14-Jan-2020
316,Revenue,CAHD,South Glos Users in South Glos Homes,Permanent Nursing,Beaufort Grange Care Home,662.24, 14-Jan-2020
317,Revenue,CAHD,North - bed purchasing and direct  payments,Permanent Nursing,Beaufort Grange Care Home,5405.76, 14-Jan-2020
318,Revenue,CAHD,South Glos Users in South Glos Homes,Permanent Nursing,Beaufort Grange Care Home,662.24, 14-Jan-2020
319,Revenue,CAHD,North - bed purchasing and direct  payments,Permanent Residential,Beaufort House,2549.56, 14-Jan-2020
320,Revenue,CAHD,Central - Bed Purchasing and Direct Payments,Permanent Residential,Beaufort House,2867.20, 14-Jan-2020
321,Revenue,CAHD,Central - Bed Purchasing and Direct Payments,Permanent Residential,Beaufort House,2775.60, 14-Jan-2020
322,Revenue,CAHD,North - bed purchasing and direct  payments,Permanent Residential,Beaufort House,2571.40, 14-Jan-2020
323,Revenue,CAHD,South - bed purchasing and direct  payments,Permanent Residential,Beaufort House,2536.84, 14-Jan-2020
324,Revenue,CAHD,Central - Bed Purchasing and Direct Payments,Permanent Residential,Beaufort House,3400.00, 14-Jan-2020
325,Revenue,CAHD,South - bed purchasing and direct  payments,Permanent Residential,Beaufort House,3400.00, 14-Jan-2020
326,Revenue,CAHD,North - bed purchasing and direct  payments,Permanent Residential,Beaufort House,3072.00, 14-Jan-2020
327,Revenue,CAHD,North - bed purchasing and direct  payments,Permanent Residential,Beaufort House,2699.92, 14-Jan-2020
328,Revenue,CAHD,Central - Bed Purchasing and Direct Payments,Permanent Residential,Beaufort House,3400.00, 14-Jan-2020
329,Revenue,CAHD,Central - Bed Purchasing and Direct Payments,Permanent Residential,Beaufort House,3400.00, 14-Jan-2020
330,Revenue,CAHD,Central - Bed Purchasing and Direct Payments,Permanent Residential,Beaufort House,3400.00, 14-Jan-2020
331,Revenue,CAHD,School Improvement and Support,External Lecturers Fees,Bedford Borough Council,800.00, 16-Jan-2020
332,Revenue,CAHD,South - bed purchasing and direct  payments,Permanent Residential,Beech House,2959.64, 14-Jan-2020
333,Revenue,CAHD,South Glos Users in South Glos Homes,Permanent Nursing,Beech House,662.24, 14-Jan-2020
334,Revenue,CAHD,South Glos Users in South Glos Homes,Permanent Nursing,Beech House,662.24, 14-Jan-2020
335,Revenue,CAHD,South Glos Users in South Glos Homes,Permanent Nursing,Beech House,662.24, 14-Jan-2020
336,Revenue,CAHD,South Glos Users in South Glos Homes,Permanent Nursing,Beech House,662.24, 14-Jan-2020
337,Revenue,CAHD,South Glos Users in South Glos Homes,Permanent Nursing,Beech House,662.24, 14-Jan-2020
338,Revenue,CAHD,South Glos Users in South Glos Homes,Permanent Nursing,Beech House,662.24, 14-Jan-2020
339,Revenue,CAHD,South Glos Users in South Glos Homes,Permanent Nursing,Beech House,662.24, 14-Jan-2020
340,Revenue,CAHD,North - bed purchasing and direct  payments,Permanent Nursing,Beech House,3547.76, 14-Jan-2020
341,Revenue,CAHD,South Glos Users in South Glos Homes,Permanent Nursing,Beech House,662.24, 14-Jan-2020
342,Revenue,CAHD,South Glos Users in South Glos Homes,Permanent Nursing,Beech House,662.24, 14-Jan-2020
343,Revenue,CAHD,South Glos Users in South Glos Homes,Permanent Nursing,Beech House,662.24, 14-Jan-2020
344,Revenue,CAHD,North - bed purchasing and direct  payments,Permanent Nursing,Beech House,4283.20, 14-Jan-2020
345,Revenue,CAHD,South Glos Users in South Glos Homes,Permanent Nursing,Beech House,662.24, 14-Jan-2020
346,Revenue,CAHD,South Glos Users in South Glos Homes,Permanent Nursing,Beech House,662.24, 14-Jan-2020
347,Revenue,CAHD,South Glos Users in South Glos Homes,Permanent Nursing,Beech House,662.24, 14-Jan-2020
348,Revenue,CAHD,South Glos Users in South Glos Homes,Permanent Nursing,Beech House,662.24, 14-Jan-2020
349,Revenue,CAHD,South Glos Users in South Glos Homes,Permanent Nursing,Beech House,662.24, 14-Jan-2020
350,Revenue,CAHD,North - bed purchasing and direct  payments,Permanent Nursing,Beech House,3993.60, 14-Jan-2020
351,Revenue,CAHD,South Glos Users in South Glos Homes,Permanent Nursing,Beech House,662.24, 14-Jan-2020
352,Revenue,CAHD,South Glos Users in South Glos Homes,Permanent Nursing,Beech House,662.24, 14-Jan-2020
353,Revenue,CAHD,South Glos Users in South Glos Homes,Permanent Nursing,Beech House,662.24, 14-Jan-2020
354,Revenue,CAHD,North - bed purchasing and direct  payments,Permanent Residential,Beech House,4075.52, 14-Jan-2020
355,Revenue,CAHD,South Glos Users in South Glos Homes,Permanent Nursing,Beech House,662.24, 14-Jan-2020
356,Revenue,CAHD,North - bed purchasing and direct  payments,Permanent Nursing,Beech House,4223.56, 14-Jan-2020
357,Revenue,CAHD,South Glos Users in South Glos Homes,Permanent Nursing,Beech House,662.24, 14-Jan-2020
358,Revenue,CAHD,South Glos Users in South Glos Homes,Permanent Nursing,Beech House,662.24, 14-Jan-2020
359,Revenue,CAHD,South Glos Users in South Glos Homes,Permanent Nursing,Beech House,662.24, 14-Jan-2020
360,Revenue,CAHD,North - bed purchasing and direct  payments,Permanent Nursing,Beech House,4100.00, 14-Jan-2020
361,Revenue,CAHD,South Glos Users in South Glos Homes,Permanent Nursing,Beech House,662.24, 14-Jan-2020
362,Revenue,CAHD,South Glos Users in South Glos Homes,Permanent Nursing,Beech House,662.24, 14-Jan-2020
363,Revenue,CAHD,South Glos Users in South Glos Homes,Permanent Nursing,Beech House,662.24, 14-Jan-2020
364,Revenue,CAHD,North - bed purchasing and direct  payments,Permanent Residential,Beech House,4280.32, 14-Jan-2020
365,Revenue,CAHD,South Glos Users in South Glos Homes,Permanent Nursing,Beech House,662.24, 14-Jan-2020
366,Revenue,CAHD,South Glos Users in South Glos Homes,Permanent Nursing,Beechwood Care Home,1028.00, 14-Jan-2020
367,Revenue,CAHD,18-25 Year Olds,Permanent Residential,Beechwood Court,15254.92, 14-Jan-2020
368,Revenue,CAHD,Independent Special Placements - Pre 16,Other Private Contractors,Belgrave School,4225.39, 09-Jan-2020
369,Revenue,CAHD,Independent Special Placements - Pre 16,Other Private Contractors,Belgrave School,4927.50, 09-Jan-2020
370,Revenue,CAHD,Independent Special Placements - Pre 16,Other Private Contractors,Belgrave School,4817.50, 09-Jan-2020
371,Revenue,CAHD,Independent Special Placements - Pre 16,Other Private Contractors,Belgrave School,6662.50, 09-Jan-2020
372,Revenue,CAHD,Independent Special Placements - Pre 16,Other Private Contractors,Belgrave School,5577.00, 09-Jan-2020
373,Revenue,CAHD,Independent Special Placements - Pre 16,Other Private Contractors,Belgrave School,7533.00, 09-Jan-2020
374,Revenue,CAHD,Independent Special Placements - Post 16,Other Private Contractors,Belgrave School,4783.33, 09-Jan-2020
375,Revenue,CAHD,South - S117,Permanent Residential,Bidna House,3692.64, 14-Jan-2020
376,Revenue,CAHD,CSC - Care Leavers Support Costs,"Provisions (Food, etc)",Big Yellow Self Storage Company Limited,1861.01, 10-Jan-2020
377,Revenue,CAHD,Statemented Support Payments to OLAs,Other L.A.'s - General,Blaise High School,907.83, 29-Jan-2020
378,Revenue,CAHD,Central - Commissioned Services,Other Small Contracts,Blakehill Healthcare Ltd,656.25, 22-Jan-2020
379,Revenue,CAHD,Central - Commissioned Services,Other Small Contracts,Blakehill Healthcare Ltd,4656.25, 20-Jan-2020
380,Revenue,CAHD,Central - Commissioned Services,Other Small Contracts,Blakehill Healthcare Ltd,687.50, 20-Jan-2020
381,Revenue,CAHD,Central - Commissioned Services,Other Small Contracts,Blakehill Healthcare Ltd,1000.00, 24-Jan-2020
382,Revenue,CAHD,Central - Commissioned Services,Other Small Contracts,Blakehill Healthcare Ltd,3250.00, 24-Jan-2020
383,Revenue,CAHD,Central - Commissioned Services,Other Small Contracts,Blakehill Healthcare Ltd,1168.75, 24-Jan-2020
384,Revenue,CAHD,Central - Commissioned Services,Other Small Contracts,Blakehill Healthcare Ltd,1331.25, 30-Jan-2020
385,Revenue,CAHD,Central - Commissioned Services,Other Small Contracts,Blakehill Healthcare Ltd,2950.00, 30-Jan-2020
386,Revenue,CAHD,Central - Commissioned Services,Other Small Contracts,Blakehill Healthcare Ltd,1750.00, 22-Jan-2020
387,Revenue,CAHD,South - bed purchasing and direct  payments,Permanent Nursing,Blossom Field,4780.36, 14-Jan-2020
388,Revenue,CAHD,South Glos Users in South Glos Homes,Permanent Nursing,Blossom Field,662.24, 14-Jan-2020
389,Revenue,CAHD,South Glos Users in South Glos Homes,Permanent Nursing,Blossom Field,662.24, 14-Jan-2020
390,Revenue,CAHD,North - bed purchasing and direct  payments,Permanent Nursing,Blossom Field,4770.40, 14-Jan-2020
391,Revenue,CAHD,South Glos Users in South Glos Homes,Permanent Nursing,Blossom Field,662.24, 14-Jan-2020
392,Revenue,CAHD,South Glos Users in South Glos Homes,Permanent Nursing,Blossom Field,662.24, 14-Jan-2020
393,Revenue,CAHD,North - bed purchasing and direct  payments,Permanent Nursing,Blossom Field,4267.44, 14-Jan-2020
394,Revenue,CAHD,South Glos Users in South Glos Homes,Permanent Nursing,Blossom Field,662.24, 14-Jan-2020
395,Revenue,CAHD,North - bed purchasing and direct  payments,Permanent Nursing,Blossom Field,5000.00, 14-Jan-2020
396,Revenue,CAHD,South Glos Users in South Glos Homes,Permanent Nursing,Blossom Field,662.24, 14-Jan-2020
397,Revenue,CAHD,South Glos Users in South Glos Homes,Permanent Nursing,Blossom Field,662.24, 14-Jan-2020
398,Revenue,CAHD,South - bed purchasing and direct  payments,Permanent Nursing,Blossom Field,4413.08, 14-Jan-2020
399,Revenue,CAHD,South Glos Users in South Glos Homes,Permanent Nursing,Blossom Field,662.24, 14-Jan-2020
400,Revenue,CAHD,North - bed purchasing and direct  payments,Permanent Nursing,Blossom Field,3533.92, 14-Jan-2020
401,Revenue,CAHD,South Glos Users in South Glos Homes,Permanent Nursing,Blossom Field,662.24, 14-Jan-2020
402,Revenue,CAHD,North - bed purchasing and direct  payments,Permanent Nursing,Blossom Field,4799.88, 14-Jan-2020
403,Revenue,CAHD,South Glos Users in South Glos Homes,Permanent Nursing,Blossom Field,662.24, 14-Jan-2020
404,Revenue,CAHD,South Glos Users in South Glos Homes,Permanent Nursing,Blossom Field,662.24, 14-Jan-2020
405,Revenue,CAHD,North - bed purchasing and direct  payments,Permanent Nursing,Blossom Field,4800.00, 14-Jan-2020
406,Revenue,CAHD,South Glos Users in South Glos Homes,Permanent Nursing,Blossom Field,662.24, 14-Jan-2020
407,Revenue,CAHD,South Glos Users in South Glos Homes,Permanent Nursing,Blossom Field,662.24, 14-Jan-2020
408,Revenue,CAHD,South Glos Users in South Glos Homes,Permanent Nursing,Blossom Field,662.24, 14-Jan-2020
409,Revenue,CAHD,South Glos Users in South Glos Homes,Permanent Nursing,Blossom Field,662.24, 14-Jan-2020
410,Revenue,CAHD,Central - Bed Purchasing and Direct Payments,Permanent Nursing,Blossom Field,4267.36, 14-Jan-2020
411,Revenue,CAHD,South Glos Users in South Glos Homes,Permanent Nursing,Blossom Field,662.24, 14-Jan-2020
412,Revenue,CAHD,South Glos Users in South Glos Homes,Permanent Nursing,Blossom Field,662.24, 14-Jan-2020
413,Revenue,CAHD,North - bed purchasing and direct  payments,Permanent Nursing,Blossom Field,4962.96, 14-Jan-2020
414,Revenue,CAHD,South Glos Users in South Glos Homes,Permanent Nursing,Blossom Field,662.24, 14-Jan-2020
415,Revenue,CAHD,North - bed purchasing and direct  payments,Permanent Nursing,Blossom Field,4267.36, 14-Jan-2020
416,Revenue,CAHD,South Glos Users in South Glos Homes,Permanent Nursing,Blossom Field,662.24, 14-Jan-2020
417,Revenue,CAHD,South Glos Users in South Glos Homes,Permanent Nursing,Blossom Field,662.24, 14-Jan-2020
418,Revenue,CAHD,Central - Bed Purchasing and Direct Payments,Respite Planned - Nursing,Blossom Field,3942.86, 14-Jan-2020
419,Revenue,CAHD,South Glos Users in South Glos Homes,Permanent Nursing,Blossom Field,662.24, 14-Jan-2020
420,Revenue,CAHD,North - S117,Permanent Nursing,Blossom Field,4400.00, 14-Jan-2020
421,Revenue,CAHD,South Glos Users in South Glos Homes,Permanent Nursing,Blossom Field,662.24, 14-Jan-2020
422,Revenue,CAHD,North - bed purchasing and direct  payments,Permanent Nursing,Blossom Field,3634.96, 14-Jan-2020
423,Revenue,CAHD,South Glos Users in South Glos Homes,Permanent Nursing,Blossom Field,662.24, 14-Jan-2020
424,Revenue,CAHD,North - bed purchasing and direct  payments,Permanent Nursing,Blossom Field,3960.00, 14-Jan-2020
425,Revenue,CAHD,North - bed purchasing and direct  payments,Permanent Nursing,Blossom Field,2545.71, 14-Jan-2020
426,Revenue,CAHD,North - bed purchasing and direct  payments,Permanent Residential,Bluebells,3699.60, 14-Jan-2020
427,Revenue,CAHD,Pathway 1 - Re-Ablement Home Care,Other Small Contracts,Bluebird Care (South Gloucestershire),588.90, 08-Jan-2020
428,Revenue,CAHD,Central - Commissioned Services,Other Small Contracts,Bluebird Care (South Gloucestershire),4761.76, 09-Jan-2020
429,Revenue,CAHD,South - Commissioned Services,Other Small Contracts,Bluebird Care (South Gloucestershire),1386.92, 09-Jan-2020
430,Revenue,CAHD,North - Community based support,Other Small Contracts,Bluebird Care (South Gloucestershire),5073.35, 09-Jan-2020
431,Revenue,CAHD,Central - Commissioned Services,Other Small Contracts,Bluebird Care (South Gloucestershire),4702.45, 15-Jan-2020
432,Revenue,CAHD,South - Commissioned Services,Other Small Contracts,Bluebird Care (South Gloucestershire),1421.44, 15-Jan-2020
433,Revenue,CAHD,North - Community based support,Other Small Contracts,Bluebird Care (South Gloucestershire),4912.83, 15-Jan-2020
434,Revenue,CAHD,Central - Commissioned Services,Other Small Contracts,Bluebird Care (South Gloucestershire),4727.24, 23-Jan-2020
435,Revenue,CAHD,South - Commissioned Services,Other Small Contracts,Bluebird Care (South Gloucestershire),1573.51, 23-Jan-2020
436,Revenue,CAHD,North - Community based support,Other Small Contracts,Bluebird Care (South Gloucestershire),4505.93, 23-Jan-2020
437,Revenue,CAHD,Central - Commissioned Services,Other Small Contracts,Bluebird Care (South Gloucestershire),4003.53, 15-Jan-2020
438,Revenue,CAHD,South - Commissioned Services,Other Small Contracts,Bluebird Care (South Gloucestershire),1086.03, 15-Jan-2020
439,Revenue,CAHD,North - Community based support,Other Small Contracts,Bluebird Care (South Gloucestershire),3329.49, 15-Jan-2020
440,Revenue,CAHD,Central - Commissioned Services,Other Small Contracts,Bluebird Care (South Gloucestershire),4485.64, 24-Jan-2020
441,Revenue,CAHD,South - Commissioned Services,Other Small Contracts,Bluebird Care (South Gloucestershire),1341.62, 24-Jan-2020
442,Revenue,CAHD,North - Community based support,Other Small Contracts,Bluebird Care (South Gloucestershire),4656.34, 24-Jan-2020
443,Revenue,CAHD,Training - Adult Services,Training Expenses,Bob Dawson,1725.00, 24-Jan-2020
444,Revenue,CAHD,CSC - Vinney Green Secure Unit,"Provisions (Food, etc)",Booker Cash & Carry,503.04, 22-Jan-2020
445,Revenue,CAHD,CSC - Vinney Green Secure Unit,"Provisions (Food, etc)",Booker Cash & Carry,494.92, 16-Jan-2020
446,Revenue,CAHD,Sexual Health,Other Small Contracts,Boots UK Ltd,915.68, 21-Jan-2020
447,Revenue,CAHD,Sexual Health,Other Small Contracts,Boots UK Ltd,773.29, 21-Jan-2020
448,Revenue,CAHD,S28A cases,Permanent Residential,Bradbury House,6505.16, 14-Jan-2020
449,Revenue,CAHD,18-25 Year Olds,Permanent Residential,Bradbury House,9917.08, 14-Jan-2020
450,Revenue,CAHD,North - S117,Permanent Residential,Bradbury House,5740.24, 14-Jan-2020
451,Revenue,CAHD,Jointly Funded H&SC Packages,Permanent Residential,Bradbury House,7927.00, 14-Jan-2020
452,Revenue,CAHD,South - bed purchasing and direct  payments,Permanent Residential,Bradbury House,9777.00, 14-Jan-2020
453,Revenue,CAHD,Tobacco Control,Other Small Contracts,Bradley Stoke Surgery,585.00, 20-Jan-2020
454,Revenue,CAHD,CSC - Residential Placements,Permanent Residential,Branas ISAF Ltd,21035.71, 07-Jan-2020
455,Revenue,CAHD,CSC - Residential Placements,Permanent Residential,Branas ISAF Ltd,19928.57, 07-Jan-2020
456,Revenue,CAHD,North - bed purchasing and direct  payments,Permanent Residential,Breadstone House Care Centre,2088.68, 14-Jan-2020
457,Revenue,CAHD,North - bed purchasing and direct  payments,Permanent Residential,Breadstone House Care Centre,2364.36, 14-Jan-2020
458,Revenue,CAHD,North - Community based support,Respite Emergency - Residential,Breadstone House Care Centre,955.43, 14-Jan-2020
459,Revenue,CAHD,North - bed purchasing and direct  payments,Permanent Nursing,Breadstone House Care Centre,2191.68, 14-Jan-2020
460,Revenue,CAHD,Social Lettings Agency,Fees - General,Individual,8.15, 03-Jan-2020
461,Revenue,CAHD,Social Lettings Agency,Other Supplies & Services,Individual,766.10, 03-Jan-2020
462,Revenue,CAHD,North - bed purchasing and direct  payments,Permanent Residential,Bridge House Care Home,2740.00, 14-Jan-2020
463,Revenue,CAHD,North - bed purchasing and direct  payments,Permanent Residential,Bridge House Care Home,1272.14, 14-Jan-2020
464,Revenue,CAHD,North - bed purchasing and direct  payments,Permanent Residential,Bridge House Care Home,2625.52, 14-Jan-2020
465,Revenue,CAHD,North - bed purchasing and direct  payments,Permanent Residential,Bridgwater Court Care Home,10773.64, 14-Jan-2020
466,Revenue,CAHD,Early Years Inclusion Fund,Other Public Bodies,Bright Sparks,1000.00, 21-Jan-2020
467,Revenue,CAHD,Sensory Support Joint Arrangement,Other L.A.'s - General,Bristol City Council,143088.00, 10-Jan-2020
468,Revenue,CAHD,Sexual Health,Other Small Contracts,Bristol City Council,230134.00, 17-Jan-2020
469,Revenue,CAHD,Central - Commissioned Services,Day Care / Social Activities,Bristol City Council,2935.44, 17-Jan-2020
470,Revenue,CAHD,South - Commissioned Services,Day Care / Social Activities,Bristol City Council,1005.66, 17-Jan-2020
471,Revenue,CAHD,Minor Adaptations Service,Grants to Voluntary Bodies,Bristol City Council,530.33, 31-Jan-2020
472,Revenue,CAHD,Placements OLA Special Schools and RB,Other L.A.'s - General,Bristol City Council - Schools,2578.00, 27-Jan-2020
473,Revenue,CAHD,Placements OLA Special Schools and RB,Other L.A.'s - General,Bristol City Council - Schools,1381.00, 27-Jan-2020
474,Revenue,CAHD,Statemented Support Payments to OLAs,Other L.A.'s - General,Bristol City Council - Schools,1379.43, 29-Jan-2020
475,Revenue,CAHD,Placements OLA Special Schools and RB,Other L.A.'s - General,Bristol City Council - Schools,914.33, 27-Jan-2020
476,Revenue,CAHD,Placements OLA Special Schools and RB,Other L.A.'s - General,Bristol City Council - Schools,1305.58, 27-Jan-2020
477,Revenue,CAHD,Statemented Support Payments to OLAs,Other L.A.'s - General,Bristol City Council - Schools,660.24, 29-Jan-2020
478,Revenue,CAHD,Placements OLA Special Schools and RB,Other L.A.'s - General,Bristol City Council - Schools,3356.33, 27-Jan-2020
479,Revenue,CAHD,Placements OLA Special Schools and RB,Other L.A.'s - General,Bristol City Council - Schools,5445.00, 27-Jan-2020
480,Revenue,CAHD,Placements OLA Special Schools and RB,Other L.A.'s - General,Bristol City Council - Schools,6378.35, 27-Jan-2020
481,Revenue,CAHD,Placements OLA Special Schools and RB,Other L.A.'s - General,Bristol City Council - Schools,2578.00, 27-Jan-2020
482,Revenue,CAHD,Placements OLA Special Schools and RB,Other L.A.'s - General,Bristol City Council - Schools,1381.00, 27-Jan-2020
483,Revenue,CAHD,Placements OLA Special Schools and RB,Other L.A.'s - General,Bristol City Council - Schools,2050.17, 27-Jan-2020
484,Revenue,CAHD,Placements OLA Special Schools and RB,Other L.A.'s - General,Bristol City Council - Schools,1381.00, 27-Jan-2020
485,Revenue,CAHD,Placements OLA Special Schools and RB,Other L.A.'s - General,Bristol City Council - Schools,1381.00, 27-Jan-2020
486,Revenue,CAHD,Placements OLA Special Schools and RB,Other L.A.'s - General,Bristol City Council - Schools,2050.17, 27-Jan-2020
487,Revenue,CAHD,Placements OLA Special Schools and RB,Other L.A.'s - General,Bristol City Council - Schools,1675.30, 27-Jan-2020
488,Revenue,CAHD,Placements OLA Special Schools and RB,Other L.A.'s - General,Bristol City Council - Schools,809.00, 27-Jan-2020
489,Revenue,CAHD,Placements OLA Special Schools and RB,Other L.A.'s - General,Bristol City Council - Schools,883.50, 27-Jan-2020
490,Revenue,CAHD,Placements OLA Special Schools and RB,Other L.A.'s - General,Bristol City Council - Schools,4107.54, 27-Jan-2020
491,Revenue,CAHD,Placements OLA Special Schools and RB,Other L.A.'s - General,Bristol City Council - Schools,777.50, 27-Jan-2020
492,Revenue,CAHD,Placements OLA Special Schools and RB,Other L.A.'s - General,Bristol City Council - Schools,1031.20, 27-Jan-2020
493,Revenue,CAHD,Placements OLA Special Schools and RB,Other L.A.'s - General,Bristol City Council - Schools,2783.92, 27-Jan-2020
494,Revenue,CAHD,Placements OLA Special Schools and RB,Other L.A.'s - General,Bristol City Council - Schools,2578.00, 27-Jan-2020
495,Revenue,CAHD,Placements OLA Special Schools and RB,Other L.A.'s - General,Bristol City Council - Schools,809.00, 27-Jan-2020
496,Revenue,CAHD,Placements OLA Special Schools and RB,Other L.A.'s - General,Bristol City Council - Schools,2578.00, 27-Jan-2020
497,Revenue,CAHD,Placements OLA Special Schools and RB,Other L.A.'s - General,Bristol City Council - Schools,3405.92, 27-Jan-2020
498,Revenue,CAHD,Placements OLA Special Schools and RB,Other L.A.'s - General,Bristol City Council - Schools,2062.40, 27-Jan-2020
499,Revenue,CAHD,Placements OLA Special Schools and RB,Other L.A.'s - General,Bristol City Council - Schools,2578.00, 27-Jan-2020
500,Revenue,CAHD,Placements OLA Special Schools and RB,Other L.A.'s - General,Bristol City Council - Schools,8108.37, 27-Jan-2020
501,Revenue,CAHD,Placements OLA Special Schools and RB,Other L.A.'s - General,Bristol City Council - Schools,1305.58, 27-Jan-2020
502,Revenue,CAHD,Bed and Breakfast,Bed & Breakfast,Bristol Housing & Support Limited,420.00, 06-Jan-2020
503,Revenue,CAHD,SEN High Needs - Not at School Base,Other Private Contractors,Bristol Tuition Limited,699.00, 08-Jan-2020
504,Revenue,CAHD,Statemented Support Payments to OLAs,Other L.A.'s - General,Broadlands Academy,1332.27, 29-Jan-2020
505,Revenue,CAHD,South Glos Users in South Glos Homes,Permanent Nursing,Brunelcare,733.19, 24-Jan-2020
506,Revenue,CAHD,South Glos Users in South Glos Homes,Permanent Nursing,Brunelcare,733.19, 24-Jan-2020
507,Revenue,CAHD,South Glos Users in South Glos Homes,Permanent Nursing,Brunelcare,733.19, 24-Jan-2020
508,Revenue,CAHD,South Glos Users in South Glos Homes,Permanent Nursing,Brunelcare,733.19, 24-Jan-2020
509,Revenue,CAHD,South Glos Users in South Glos Homes,Permanent Nursing,Brunelcare,733.19, 24-Jan-2020
510,Revenue,CAHD,South Glos Users in South Glos Homes,Permanent Nursing,Brunelcare,733.19, 24-Jan-2020
511,Revenue,CAHD,South Glos Users in South Glos Homes,Permanent Nursing,Brunelcare,733.19, 24-Jan-2020
512,Revenue,CAHD,South Glos Users in South Glos Homes,Permanent Nursing,Brunelcare,733.19, 24-Jan-2020
513,Revenue,CAHD,South Glos Users in South Glos Homes,Permanent Nursing,Brunelcare,733.19, 24-Jan-2020
514,Revenue,CAHD,South Glos Users in South Glos Homes,Permanent Nursing,Brunelcare,733.19, 24-Jan-2020
515,Revenue,CAHD,South Glos Users in South Glos Homes,Permanent Nursing,Brunelcare,733.19, 24-Jan-2020
516,Revenue,CAHD,South - S117,Permanent Nursing,Brunelcare,3669.07, 24-Jan-2020
517,Revenue,CAHD,North - S117,Permanent Nursing,Brunelcare,3669.07, 24-Jan-2020
518,Revenue,CAHD,North - S117,Permanent Nursing,Brunelcare,3669.07, 24-Jan-2020
519,Revenue,CAHD,South - Commissioned Services,Permanent Nursing,Brunelcare,3669.07, 24-Jan-2020
520,Revenue,CAHD,South - Commissioned Services,Permanent Nursing,Brunelcare,2674.86, 24-Jan-2020
521,Revenue,CAHD,South - Commissioned Services,Permanent Nursing,Brunelcare,2831.98, 24-Jan-2020
522,Revenue,CAHD,South - Commissioned Services,Permanent Nursing,Brunelcare,2938.31, 24-Jan-2020
523,Revenue,CAHD,South - Commissioned Services,Permanent Nursing,Brunelcare,3056.38, 24-Jan-2020
524,Revenue,CAHD,South - Commissioned Services,Permanent Nursing,Brunelcare,2663.87, 24-Jan-2020
525,Revenue,CAHD,South - Commissioned Services,Permanent Nursing,Brunelcare,3038.66, 24-Jan-2020
526,Revenue,CAHD,Enhanced Dementia Beds,Respite Planned - Nursing,Brunelcare,4375.43, 24-Jan-2020
527,Revenue,CAHD,South - Commissioned Services,Respite Planned - Nursing,Brunelcare,710.14, 24-Jan-2020
528,Revenue,CAHD,South - Commissioned Services,Respite Planned - Nursing,Brunelcare,828.50, 24-Jan-2020
529,Revenue,CAHD,South - Commissioned Services,Respite Planned - Nursing,Brunelcare,946.86, 24-Jan-2020
530,Revenue,CAHD,South - Commissioned Services,Respite Planned - Nursing,Brunelcare,1065.21, 24-Jan-2020
531,Revenue,CAHD,North - Community based support,Permanent Nursing,Brunelcare,2945.09, 24-Jan-2020
532,Revenue,CAHD,North - Community based support,Permanent Nursing,Brunelcare,2938.49, 24-Jan-2020
533,Revenue,CAHD,North - Community based support,Permanent Nursing,Brunelcare,3669.07, 24-Jan-2020
534,Revenue,CAHD,South Glos Users in South Glos Homes,Permanent Nursing,Brunelcare,733.19, 24-Jan-2020
535,Revenue,CAHD,Central - Commissioned Services,Permanent Nursing,Brunelcare,3038.66, 24-Jan-2020
536,Revenue,CAHD,Pathway 2 - (Interim Beds),Permanent Nursing,Brunelcare,17686.00, 23-Jan-2020
537,Revenue,CAHD,South - Commissioned Services,Other Small Contracts,Brunelcare,18928.80, 23-Jan-2020
538,Revenue,CAHD,North - Community based support,Other Small Contracts,Brunelcare,296.36, 23-Jan-2020
539,Revenue,CAHD,South - Commissioned Services,Other Small Contracts,Brunelcare,18785.40, 15-Jan-2020
540,Revenue,CAHD,North - Community based support,Other Small Contracts,Brunelcare,310.70, 15-Jan-2020
541,Revenue,CAHD,South - Commissioned Services,Other Small Contracts,Brunelcare,17853.30, 29-Jan-2020
542,Revenue,CAHD,North - Community based support,Other Small Contracts,Brunelcare,301.14, 29-Jan-2020
543,Revenue,CAHD,Information Systems - Software,Computer Equipment - Purchase,BT Global Services Solutions,489.74, 06-Jan-2020
544,Revenue,CAHD,Information Systems - Software,Computer Equipment - Purchase,BT Global Services Solutions,489.74, 21-Jan-2020
545,Revenue,CAHD,Early Years Inclusion Fund,Other Public Bodies,Buckingham Gardens Day Nursery,1400.00, 24-Jan-2020
546,Revenue,CAHD,North - S117,Permanent Residential,Buckland Care,3600.00, 14-Jan-2020
547,Revenue,CAHD,Early Years Inclusion Fund,Other Public Bodies,Busy Bees,2450.00, 22-Jan-2020
548,Revenue,CAHD,Early Years High Needs Support,Other Private Contractors,Busy Bees Barrs Court formerly Just Learning Ltd,1277.04, 23-Jan-2020
549,Revenue,CAHD,Training - Adult Services,Training Expenses,BW Training & Coaching Ltd,900.00, 22-Jan-2020
550,Revenue,CAHD,Training Budget - Children`s Social Serv,Training Expenses,BW Training & Coaching Ltd,900.00, 22-Jan-2020
551,Revenue,CAHD,CSC - Vinney Green Secure Unit,R & M by Departments,BWS Standfast Fire & Security Systems,2559.50, 02-Jan-2020
552,Revenue,CAHD,CSC - Vinney Green Secure Unit,R & M by Departments,BWS Standfast Fire & Security Systems,18000.00, 23-Jan-2020
553,Revenue,CAHD,CSC - Vinney Green Secure Unit,R & M by Departments,BWS Standfast Fire & Security Systems,556.00, 30-Jan-2020
554,Revenue,CAHD,CSC - Agency Fostering,Foster Parent Allowances,By the Bridge Ltd,4495.00, 31-Jan-2020
555,Revenue,CAHD,Social Lettings Agency,Fees - General,Individual,16.16, 24-Jan-2020
556,Revenue,CAHD,Social Lettings Agency,Other Supplies & Services,Individual,710.96, 24-Jan-2020
557,Revenue,CAHD,Statemented Support Payments to OLAs,Other L.A.'s - General,Cabot Learning Federation,1544.49, 29-Jan-2020
558,Revenue,CAHD,Academy Resource Base Funding,Other Public Bodies,Cabot Learning Federation,1693.98, 14-Jan-2020
559,Revenue,CAHD,Statemented Support Academies,Other Public Bodies,Cabot Learning Federation,918.71, 24-Jan-2020
560,Revenue,CAHD,Statemented Support Academies,Other Public Bodies,Cabot Learning Federation,1202.39, 24-Jan-2020
561,Revenue,CAHD,Statemented Support Academies,Other Public Bodies,Cabot Learning Federation,788.22, 24-Jan-2020
562,Revenue,CAHD,Statemented Support Academies,Other Public Bodies,Cabot Learning Federation,518.76, 24-Jan-2020
563,Revenue,CAHD,Statemented Support Academies,Other Public Bodies,Cabot Learning Federation,907.83, 24-Jan-2020
564,Revenue,CAHD,Statemented Support Academies,Other Public Bodies,Cabot Learning Federation,554.13, 24-Jan-2020
565,Revenue,CAHD,Statemented Support Academies,Other Public Bodies,Cabot Learning Federation,565.92, 24-Jan-2020
566,Revenue,CAHD,Statemented Support Academies,Other Public Bodies,Cabot Learning Federation,1048.67, 24-Jan-2020
567,Revenue,CAHD,Statemented Support Academies,Other Public Bodies,Cabot Learning Federation,2616.63, 24-Jan-2020
568,Revenue,CAHD,Statemented Support Payments to OLAs,Other L.A.'s - General,Cabot Learning Federation,1013.94, 29-Jan-2020
569,Revenue,CAHD,Statemented Support Academies,Other Public Bodies,Cabot Learning Federation,695.61, 24-Jan-2020
570,Revenue,CAHD,Statemented Support Academies,Other Public Bodies,Cabot Learning Federation,530.55, 24-Jan-2020
571,Revenue,CAHD,Statemented Support Academies,Other Public Bodies,Cabot Learning Federation,918.75, 24-Jan-2020
572,Revenue,CAHD,Statemented Support Payments to OLAs,Other L.A.'s - General,Cabot Learning Federation,872.46, 29-Jan-2020
573,Revenue,CAHD,Academy Resource Base Funding,Other Public Bodies,Cabot Learning Federation,1698.31, 27-Jan-2020
574,Revenue,CAHD,Academy Resource Base Funding,Other Public Bodies,Cabot Learning Federation,1172.68, 27-Jan-2020
575,Revenue,CAHD,Academy Resource Base Funding,Other Public Bodies,Cabot Learning Federation,1536.62, 27-Jan-2020
576,Revenue,CAHD,Academy Resource Base Funding,Other Public Bodies,Cabot Learning Federation,1536.62, 27-Jan-2020
577,Revenue,CAHD,Academy Resource Base Funding,Other Public Bodies,Cabot Learning Federation,1172.68, 27-Jan-2020
578,Revenue,CAHD,Academy Resource Base Funding,Other Public Bodies,Cabot Learning Federation,646.92, 27-Jan-2020
579,Revenue,CAHD,Academy Resource Base Funding,Other Public Bodies,Cabot Learning Federation,1172.68, 27-Jan-2020
580,Revenue,CAHD,Academy Resource Base Funding,Other Public Bodies,Cabot Learning Federation,1698.31, 27-Jan-2020
581,Revenue,CAHD,Academy Resource Base Funding,Other Public Bodies,Cabot Learning Federation,1172.68, 27-Jan-2020
582,Revenue,CAHD,Academy Resource Base Funding,Other Public Bodies,Cabot Learning Federation,1172.68, 27-Jan-2020
583,Revenue,CAHD,Academy Resource Base Funding,Other Public Bodies,Cabot Learning Federation,1172.68, 27-Jan-2020
584,Revenue,CAHD,Academy Resource Base Funding,Other Public Bodies,Cabot Learning Federation,1172.68, 27-Jan-2020
585,Revenue,CAHD,Academy Resource Base Funding,Other Public Bodies,Cabot Learning Federation,646.92, 27-Jan-2020
586,Revenue,CAHD,Academy Resource Base Funding,Other Public Bodies,Cabot Learning Federation,1698.31, 27-Jan-2020
587,Revenue,CAHD,Academy Resource Base Funding,Other Public Bodies,Cabot Learning Federation,1536.62, 27-Jan-2020
588,Revenue,CAHD,Academy Resource Base Funding,Other Public Bodies,Cabot Learning Federation,1536.62, 27-Jan-2020
589,Revenue,CAHD,Academy Resource Base Funding,Other Public Bodies,Cabot Learning Federation,1010.96, 27-Jan-2020
590,Revenue,CAHD,Academy Resource Base Funding,Other Public Bodies,Cabot Learning Federation,2183.56, 27-Jan-2020
591,Revenue,CAHD,Statemented Support Academies,Other Public Bodies,Cabot Learning Federation,4020.40, 24-Jan-2020
592,Revenue,CAHD,Statemented Support Academies,Other Public Bodies,Cabot Learning Federation,554.13, 24-Jan-2020
593,Revenue,CAHD,Statemented Support Academies,Other Public Bodies,Cabot Learning Federation,742.77, 24-Jan-2020
594,Revenue,CAHD,Statemented Support Academies,Other Public Bodies,Cabot Learning Federation,778.14, 24-Jan-2020
595,Revenue,CAHD,Statemented Support Academies,Other Public Bodies,Cabot Learning Federation,943.20, 24-Jan-2020
596,Revenue,CAHD,Statemented Support Academies,Other Public Bodies,Cabot Learning Federation,813.51, 24-Jan-2020
597,Revenue,CAHD,Statemented Support Payments to OLAs,Other L.A.'s - General,Cabot Learning Federation,601.29, 29-Jan-2020
598,Revenue,CAHD,Statemented Support Academies,Other Public Bodies,Cabot Learning Federation,860.67, 24-Jan-2020
599,Revenue,CAHD,Statemented Support Academies,Other Public Bodies,Cabot Learning Federation,589.50, 24-Jan-2020
600,Revenue,CAHD,Statemented Support Academies,Other Public Bodies,Cabot Learning Federation,801.72, 24-Jan-2020
601,Revenue,CAHD,Statemented Support Academies,Other Public Bodies,Cabot Learning Federation,1096.47, 24-Jan-2020
602,Revenue,CAHD,Statemented Support Academies,Other Public Bodies,Cabot Learning Federation,730.98, 24-Jan-2020
603,Revenue,CAHD,Statemented Support Academies,Other Public Bodies,Cabot Learning Federation,907.83, 24-Jan-2020
604,Revenue,CAHD,Statemented Support Academies,Other Public Bodies,Cabot Learning Federation,530.55, 24-Jan-2020
605,Revenue,CAHD,Statemented Support Academies,Other Public Bodies,Cabot Learning Federation,907.83, 24-Jan-2020
606,Revenue,CAHD,Academy Resource Base Funding,Other Public Bodies,Cabot Learning Federation,1639.34, 14-Jan-2020
607,Revenue,CAHD,Schools Specific Grant Income,Other Public Bodies,Cabot Learning Federation,1920.00, 20-Jan-2020
608,Revenue,CAHD,Statemented Support Payments to OLAs,Other L.A.'s - General,Cabot Learning Federation,1072.89, 29-Jan-2020
609,Revenue,CAHD,Statemented Support Academies,Other Public Bodies,Cabot Learning Federation,1296.90, 24-Jan-2020
610,Revenue,CAHD,Statemented Support Academies,Other Public Bodies,Cabot Learning Federation,872.46, 24-Jan-2020
611,Revenue,CAHD,Mental Health  Projects,Project Funding,Cabot Learning Federation,1000.00, 31-Jan-2020
612,Revenue,CAHD,Early Years High Needs Support,Other Private Contractors,Caerleon Childcare,515.71, 23-Jan-2020
613,Revenue,CAHD,North - bed purchasing and direct  payments,Permanent Nursing,Caernarvon House,3201.68, 14-Jan-2020
614,Revenue,CAHD,North - bed purchasing and direct  payments,Permanent Nursing,Caernarvon House,4800.00, 14-Jan-2020
615,Revenue,CAHD,North - bed purchasing and direct  payments,Permanent Nursing,Caernarvon House,4710.40, 14-Jan-2020
616,Revenue,CAHD,South - bed purchasing and direct  payments,Permanent Nursing,Caernarvon House,4710.40, 14-Jan-2020
617,Revenue,CAHD,North - S117,Permanent Nursing,Caernarvon House,3990.24, 14-Jan-2020
618,Revenue,CAHD,South - bed purchasing and direct  payments,Permanent Nursing,Caernarvon House,4915.20, 14-Jan-2020
619,Revenue,CAHD,North - bed purchasing and direct  payments,Permanent Nursing,Caernarvon House,9467.52, 14-Jan-2020
620,Revenue,CAHD,North - bed purchasing and direct  payments,Permanent Nursing,Caernarvon House,4733.76, 14-Jan-2020
621,Revenue,CAHD,South - bed purchasing and direct  payments,Permanent Nursing,Caernarvon House,4800.00, 14-Jan-2020
622,Revenue,CAHD,South - bed purchasing and direct  payments,Permanent Nursing,Caernarvon House,4300.80, 14-Jan-2020
623,Revenue,CAHD,South - S117,Permanent Nursing,Caernarvon House,4915.20, 14-Jan-2020
624,Revenue,CAHD,North - bed purchasing and direct  payments,Permanent Nursing,Caernarvon House,4800.00, 14-Jan-2020
625,Revenue,CAHD,CSC - Residential Placements,Permanent Residential,Cambian Childcare Ltd,19928.66, 30-Jan-2020
626,Revenue,CAHD,CSC - Residential Placements,Permanent Residential,Cambian Childcare Ltd,19042.99, 30-Jan-2020
627,Revenue,CAHD,CSC - Residential Placements,Permanent Residential,Cambian Childcare Ltd,23250.00, 30-Jan-2020
628,Revenue,CAHD,Post 16 High Needs Placements,Other Private Contractors,Cambian Whinfell School Limited,39509.47, 16-Jan-2020
629,Revenue,CAHD,Cambrian Green Day Service,Catering,Cambrian Court Dining,577.50, 06-Jan-2020
630,Revenue,CAHD,North - Community based support,Day Care / Social Activities,Camphill Communities Thornbury Limited,979.11, 03-Jan-2020
631,Revenue,CAHD,North - Community based support,Other Small Contracts,Camphill Communities Thornbury Limited,170.28, 03-Jan-2020
632,Revenue,CAHD,North - Community based support,Supported Living,Camphill Communities Thornbury Limited,1035.87, 03-Jan-2020
633,Revenue,CAHD,North - Community based support,Day Care / Social Activities,Camphill Communities Thornbury Limited,1149.39, 10-Jan-2020
634,Revenue,CAHD,North - Community based support,Other Small Contracts,Camphill Communities Thornbury Limited,179.74, 10-Jan-2020
635,Revenue,CAHD,North - Community based support,Supported Living,Camphill Communities Thornbury Limited,1050.06, 10-Jan-2020
636,Revenue,CAHD,North - Community based support,Day Care / Social Activities,Camphill Communities Thornbury Limited,908.16, 17-Jan-2020
637,Revenue,CAHD,North - Community based support,Other Small Contracts,Camphill Communities Thornbury Limited,170.28, 17-Jan-2020
638,Revenue,CAHD,North - Community based support,Supported Living,Camphill Communities Thornbury Limited,1050.06, 17-Jan-2020
639,Revenue,CAHD,North - Community based support,Day Care / Social Activities,Camphill Communities Thornbury Limited,359.48, 31-Jan-2020
640,Revenue,CAHD,North - Community based support,Other Small Contracts,Camphill Communities Thornbury Limited,170.28, 31-Jan-2020
641,Revenue,CAHD,North - Community based support,Supported Living,Camphill Communities Thornbury Limited,520.30, 31-Jan-2020
642,Revenue,CAHD,North - S117,Permanent Residential,Canjayor,3937.76, 14-Jan-2020
643,Revenue,CAHD,Practitioner Training Grant (PT),Grant Income - Government Depts,Capita Business Services Limited,1373.94, 07-Jan-2020
644,Revenue,CAHD,Practitioner Training Grant (PT),Grant Income - Government Depts,Capita Business Services Limited,1373.94, 07-Jan-2020
645,Revenue,CAHD,CSC - Asylum Seekers - Unaccompanied,Foster Parent Allowances,Capstone Foster Care (South West) Limited,3405.66, 31-Jan-2020
646,Revenue,CAHD,Central - Commissioned Services,Other Small Contracts,Care 1st Homecare,2929.92, 06-Jan-2020
647,Revenue,CAHD,Central - Commissioned Services,Other Small Contracts,Care 1st Homecare,2925.56, 29-Jan-2020
648,Revenue,CAHD,Central - Commissioned Services,Other Small Contracts,Care 1st Homecare,2929.92, 29-Jan-2020
649,Revenue,CAHD,Central - Commissioned Services,Other Small Contracts,Care 1st Homecare,2929.92, 29-Jan-2020
650,Revenue,CAHD,North - Community based support,Day Care / Social Activities,Care Futures,1503.15, 28-Jan-2020
651,Revenue,CAHD,North - Community based support,Supported Living,Care Horizons,5328.72, 14-Jan-2020
652,Revenue,CAHD,North - Community based support,Supported Living,Care Horizons,5328.72, 14-Jan-2020
653,Revenue,CAHD,Central - Commissioned Services,Other Small Contracts,Care Horizons Limited,1265.46, 06-Jan-2020
654,Revenue,CAHD,South - Commissioned Services,Other Small Contracts,Care Horizons Limited,169.05, 06-Jan-2020
655,Revenue,CAHD,North - Community based support,Day Care / Social Activities,Care Horizons Limited,270.48, 06-Jan-2020
656,Revenue,CAHD,North - Community based support,Other Small Contracts,Care Horizons Limited,821.10, 06-Jan-2020
657,Revenue,CAHD,Younger MH non-res purchasing,Other Small Contracts,Care Horizons Limited,400.89, 06-Jan-2020
658,Revenue,CAHD,Central - Commissioned Services,Other Small Contracts,Care Horizons Limited,1250.97, 06-Jan-2020
659,Revenue,CAHD,South - Commissioned Services,Other Small Contracts,Care Horizons Limited,173.88, 06-Jan-2020
660,Revenue,CAHD,North - Community based support,Day Care / Social Activities,Care Horizons Limited,405.72, 06-Jan-2020
661,Revenue,CAHD,North - Community based support,Other Small Contracts,Care Horizons Limited,589.26, 06-Jan-2020
662,Revenue,CAHD,Younger MH non-res purchasing,Other Small Contracts,Care Horizons Limited,468.51, 06-Jan-2020
663,Revenue,CAHD,Central - Commissioned Services,Other Small Contracts,Care Horizons Limited,1352.40, 06-Jan-2020
664,Revenue,CAHD,South - Commissioned Services,Other Small Contracts,Care Horizons Limited,173.88, 06-Jan-2020
665,Revenue,CAHD,North - Community based support,Day Care / Social Activities,Care Horizons Limited,135.24, 06-Jan-2020
666,Revenue,CAHD,North - Community based support,Other Small Contracts,Care Horizons Limited,618.24, 06-Jan-2020
667,Revenue,CAHD,Younger MH non-res purchasing,Other Small Contracts,Care Horizons Limited,458.85, 06-Jan-2020
668,Revenue,CAHD,Central - Commissioned Services,Other Small Contracts,Care Horizons Limited,309.12, 15-Jan-2020
669,Revenue,CAHD,South - Commissioned Services,Other Small Contracts,Care Horizons Limited,164.22, 15-Jan-2020
670,Revenue,CAHD,North - Community based support,Other Small Contracts,Care Horizons Limited,347.76, 15-Jan-2020
671,Revenue,CAHD,Younger MH non-res purchasing,Other Small Contracts,Care Horizons Limited,227.01, 15-Jan-2020
672,Revenue,CAHD,Central - Commissioned Services,Other Small Contracts,Care Horizons Limited,410.55, 15-Jan-2020
673,Revenue,CAHD,South - Commissioned Services,Other Small Contracts,Care Horizons Limited,173.88, 15-Jan-2020
674,Revenue,CAHD,North - Community based support,Other Small Contracts,Care Horizons Limited,434.70, 15-Jan-2020
675,Revenue,CAHD,Younger MH non-res purchasing,Other Small Contracts,Care Horizons Limited,376.74, 15-Jan-2020
676,Revenue,CAHD,Central - Commissioned Services,Other Small Contracts,Care Horizons Limited,1337.91, 23-Jan-2020
677,Revenue,CAHD,South - Commissioned Services,Other Small Contracts,Care Horizons Limited,173.88, 23-Jan-2020
678,Revenue,CAHD,North - Community based support,Other Small Contracts,Care Horizons Limited,608.58, 23-Jan-2020
679,Revenue,CAHD,Younger MH non-res purchasing,Other Small Contracts,Care Horizons Limited,367.08, 23-Jan-2020
680,Revenue,CAHD,Central - Commissioned Services,Other Small Contracts,Care Horizons Limited,1362.06, 29-Jan-2020
681,Revenue,CAHD,South - Commissioned Services,Other Small Contracts,Care Horizons Limited,173.88, 29-Jan-2020
682,Revenue,CAHD,North - Community based support,Other Small Contracts,Care Horizons Limited,637.56, 29-Jan-2020
683,Revenue,CAHD,Younger MH non-res purchasing,Other Small Contracts,Care Horizons Limited,376.74, 29-Jan-2020
684,Revenue,CAHD,Central - Commissioned Services,Other Small Contracts,Carepride Ltd,531.30, 16-Jan-2020
685,Revenue,CAHD,CSC - Care Leavers Independent Living,Independent Living,Caring for Communities and People,18512.31, 30-Jan-2020
686,Revenue,CAHD,CSC - Fostering Carer Support,Care Mgt/Asesmnt Staff Pay,Individual,3299.00, 31-Jan-2020
687,Revenue,CAHD,Statemented Support Academies,Other Public Bodies,Castle School Education Trust,530.55, 24-Jan-2020
688,Revenue,CAHD,Statemented Support Academies,Other Public Bodies,Castle School Education Trust,565.92, 24-Jan-2020
689,Revenue,CAHD,Statemented Support Academies,Other Public Bodies,Castle School Education Trust,778.14, 24-Jan-2020
690,Revenue,CAHD,Statemented Support Academies,Other Public Bodies,Castle School Education Trust,931.41, 24-Jan-2020
691,Revenue,CAHD,Statemented Support Academies,Other Public Bodies,Castle School Education Trust,542.34, 24-Jan-2020
692,Revenue,CAHD,Statemented Support Academies,Other Public Bodies,Castle School Education Trust,672.03, 24-Jan-2020
693,Revenue,CAHD,Statemented Support Academies,Other Public Bodies,Castle School Education Trust,577.71, 24-Jan-2020
694,Revenue,CAHD,Statemented Support Academies,Other Public Bodies,Castle School Education Trust,505.08, 24-Jan-2020
695,Revenue,CAHD,Statemented Support Academies,Other Public Bodies,Castle School Education Trust,860.67, 24-Jan-2020
696,Revenue,CAHD,Statemented Support Academies,Other Public Bodies,Castle School Education Trust,1461.96, 24-Jan-2020
697,Revenue,CAHD,Statemented Support Academies,Other Public Bodies,Castle School Education Trust,860.67, 24-Jan-2020
698,Revenue,CAHD,Statemented Support Academies,Other Public Bodies,Castle School Education Trust,1002.15, 24-Jan-2020
699,Revenue,CAHD,Statemented Support Academies,Other Public Bodies,Castle School Education Trust,613.08, 24-Jan-2020
700,Revenue,CAHD,Statemented Support Academies,Other Public Bodies,Castle School Education Trust,672.03, 24-Jan-2020
701,Revenue,CAHD,Statemented Support Academies,Other Public Bodies,Castle School Education Trust,1120.05, 24-Jan-2020
702,Revenue,CAHD,Statemented Support Academies,Other Public Bodies,Castle School Education Trust,506.97, 24-Jan-2020
703,Revenue,CAHD,Statemented Support Academies,Other Public Bodies,Castle School Education Trust,636.66, 24-Jan-2020
704,Revenue,CAHD,Statemented Support Academies,Other Public Bodies,Castle School Education Trust,589.50, 24-Jan-2020
705,Revenue,CAHD,Statemented Support Academies,Other Public Bodies,Castle School Education Trust,954.99, 24-Jan-2020
706,Revenue,CAHD,Statemented Support Academies,Other Public Bodies,Castle School Education Trust,577.71, 24-Jan-2020
707,Revenue,CAHD,Statemented Support Academies,Other Public Bodies,Castle School Education Trust,624.87, 24-Jan-2020
708,Revenue,CAHD,Statemented Support Academies,Other Public Bodies,Castle School Education Trust,825.30, 24-Jan-2020
709,Revenue,CAHD,Statemented Support Academies,Other Public Bodies,Castle School Education Trust,1190.79, 24-Jan-2020
710,Revenue,CAHD,Statemented Support Academies,Other Public Bodies,Castle School Education Trust,848.88, 24-Jan-2020
711,Revenue,CAHD,Statemented Support Academies,Other Public Bodies,Castle School Education Trust,1237.95, 24-Jan-2020
712,Revenue,CAHD,Statemented Support Academies,Other Public Bodies,Castle School Education Trust,1061.10, 24-Jan-2020
713,Revenue,CAHD,Statemented Support Academies,Other Public Bodies,Castle School Education Trust,518.76, 24-Jan-2020
714,Revenue,CAHD,Statemented Support Academies,Other Public Bodies,Castle School Education Trust,577.71, 24-Jan-2020
715,Revenue,CAHD,Statemented Support Academies,Other Public Bodies,Castle School Education Trust,1143.63, 24-Jan-2020
716,Revenue,CAHD,Statemented Support Academies,Other Public Bodies,Castle School Education Trust,1072.89, 24-Jan-2020
717,Revenue,CAHD,Statemented Support Academies,Other Public Bodies,Castle School Education Trust,1485.54, 24-Jan-2020
718,Revenue,CAHD,Academy Resource Base Funding,Other Public Bodies,Castle School Education Trust,1698.31, 27-Jan-2020
719,Revenue,CAHD,Academy Resource Base Funding,Other Public Bodies,Castle School Education Trust,1698.31, 27-Jan-2020
720,Revenue,CAHD,Academy Resource Base Funding,Other Public Bodies,Castle School Education Trust,1698.31, 27-Jan-2020
721,Revenue,CAHD,Academy Resource Base Funding,Other Public Bodies,Castle School Education Trust,1698.31, 27-Jan-2020
722,Revenue,CAHD,Academy Resource Base Funding,Other Public Bodies,Castle School Education Trust,1698.31, 27-Jan-2020
723,Revenue,CAHD,Academy Resource Base Funding,Other Public Bodies,Castle School Education Trust,1698.31, 27-Jan-2020
724,Revenue,CAHD,Academy Resource Base Funding,Other Public Bodies,Castle School Education Trust,1698.31, 27-Jan-2020
725,Revenue,CAHD,Academy Resource Base Funding,Other Public Bodies,Castle School Education Trust,1698.31, 27-Jan-2020
726,Revenue,CAHD,Academy Resource Base Funding,Other Public Bodies,Castle School Education Trust,1698.31, 27-Jan-2020
727,Revenue,CAHD,Academy Resource Base Funding,Other Public Bodies,Castle School Education Trust,1698.31, 27-Jan-2020
728,Revenue,CAHD,Statemented Support Academies,Other Public Bodies,Castle School Education Trust,1322.75, 24-Jan-2020
729,Revenue,CAHD,Statemented Support Academies,Other Public Bodies,Castle School Education Trust,943.17, 24-Jan-2020
730,Revenue,CAHD,Statemented Support Academies,Other Public Bodies,Castle School Education Trust,1267.50, 24-Jan-2020
731,Revenue,CAHD,Statemented Support Academies,Other Public Bodies,Castle School Education Trust,672.03, 24-Jan-2020
732,Revenue,CAHD,Statemented Support Academies,Other Public Bodies,Castle School Education Trust,872.46, 24-Jan-2020
733,Revenue,CAHD,Statemented Support Academies,Other Public Bodies,Castle School Education Trust,848.88, 24-Jan-2020
734,Revenue,CAHD,Statemented Support Academies,Other Public Bodies,Castle School Education Trust,1556.28, 24-Jan-2020
735,Revenue,CAHD,Statemented Support Academies,Other Public Bodies,Castle School Education Trust,1025.73, 24-Jan-2020
736,Revenue,CAHD,Statemented Support Academies,Other Public Bodies,Castle School Education Trust,630.58, 24-Jan-2020
737,Revenue,CAHD,Statemented Support Academies,Other Public Bodies,Castle School Education Trust,778.14, 24-Jan-2020
738,Revenue,CAHD,Statemented Support Academies,Other Public Bodies,Castle School Education Trust,613.08, 24-Jan-2020
739,Revenue,CAHD,Statemented Support Academies,Other Public Bodies,Castle School Educational Turust,1148.20, 24-Jan-2020
740,Revenue,CAHD,Statemented Support Academies,Other Public Bodies,Castle School Educational Turust,1497.33, 24-Jan-2020
741,Revenue,CAHD,Social Lettings Agency,Fees - General,Individual,10.53, 31-Jan-2020
742,Revenue,CAHD,Social Lettings Agency,Fees & Charges Income - General,Individual,595.11, 31-Jan-2020
743,Revenue,CAHD,CAH Assistant Directors,Consultants Fees,Catherine Parry Safeguarding Advice & Consultancy,15200.00, 03-Jan-2020
744,Revenue,CAHD,North - Community based support,Day Care / Social Activities,Causeway House,2133.96, 14-Jan-2020
745,Revenue,CAHD,Central - Commissioned Services,Day Care / Social Activities,Causeway House,1136.76, 14-Jan-2020
746,Revenue,CAHD,South - Commissioned Services,Day Care / Social Activities,Causeway House,5253.12, 14-Jan-2020
747,Revenue,CAHD,18-25 Year Olds,Day Care / Social Activities,Causeway House,1418.72, 14-Jan-2020
748,Revenue,CAHD,18-25 Year Olds,Day Care / Social Activities,Causeway House,4414.64, 14-Jan-2020
749,Revenue,CAHD,Central - Commissioned Services,Day Care / Social Activities,Causeway House,3891.60, 14-Jan-2020
750,Revenue,CAHD,Central - Commissioned Services,Day Care / Social Activities,Causeway House,1704.96, 14-Jan-2020
751,Revenue,CAHD,North - Community based support,Day Care / Social Activities,Causeway House,3226.20, 14-Jan-2020
752,Revenue,CAHD,North - Community based support,Day Care / Social Activities,Causeway House,4806.44, 14-Jan-2020
753,Revenue,CAHD,Central - Commissioned Services,Day Care / Social Activities,Causeway House,3652.12, 14-Jan-2020
754,Revenue,CAHD,North - Community based support,Day Care / Social Activities,Causeway House,3149.08, 14-Jan-2020
755,Revenue,CAHD,North - Community based support,Day Care / Social Activities,Causeway House,568.32, 14-Jan-2020
756,Revenue,CAHD,North - bed purchasing and direct  payments,Permanent Residential,Cepen Lodge,881.19, 14-Jan-2020
757,Revenue,CAHD,South - bed purchasing and direct  payments,Permanent Residential,Challenge House,2834.44, 14-Jan-2020
758,Revenue,CAHD,North - S117,Permanent Residential,Challenge House,2571.40, 14-Jan-2020
759,Revenue,CAHD,North - bed purchasing and direct  payments,Permanent Residential,Challenge House,2233.00, 14-Jan-2020
760,Revenue,CAHD,North - bed purchasing and direct  payments,Fees & Charges Income - General,Challenge House,681.73, 14-Jan-2020
761,Revenue,CAHD,Central - Bed Purchasing and Direct Payments,Permanent Residential,Challenge House,2365.60, 14-Jan-2020
762,Revenue,CAHD,Central - Bed Purchasing and Direct Payments,Permanent Residential,Challenge House,2363.40, 14-Jan-2020
763,Revenue,CAHD,North - bed purchasing and direct  payments,Permanent Residential,Challenge House,2363.40, 14-Jan-2020
764,Revenue,CAHD,North - bed purchasing and direct  payments,Permanent Residential,Challenge House,2834.40, 14-Jan-2020
765,Revenue,CAHD,North - bed purchasing and direct  payments,Permanent Nursing,Challenge House,3130.36, 14-Jan-2020
766,Revenue,CAHD,Central - Bed Purchasing and Direct Payments,Permanent Nursing,Challenge House,3000.00, 14-Jan-2020
767,Revenue,CAHD,North - S117,Permanent Nursing,Challenge House,2395.80, 14-Jan-2020
768,Revenue,CAHD,Central - Bed Purchasing and Direct Payments,Permanent Nursing,Challenge House,3056.00, 14-Jan-2020
769,Revenue,CAHD,North - bed purchasing and direct  payments,Permanent Nursing,Challenge House,2571.40, 14-Jan-2020
770,Revenue,CAHD,North - bed purchasing and direct  payments,Permanent Nursing,Challenge House,2395.80, 14-Jan-2020
771,Revenue,CAHD,North - bed purchasing and direct  payments,Permanent Nursing,Challenge House,3130.36, 14-Jan-2020
772,Revenue,CAHD,South Glos Users in South Glos Homes,Permanent Nursing,Challenge House,662.24, 14-Jan-2020
773,Revenue,CAHD,South Glos Users in South Glos Homes,Permanent Nursing,Challenge House,662.24, 14-Jan-2020
774,Revenue,CAHD,North - Community based support,Day Care / Social Activities,Challenge House,2012.08, 14-Jan-2020
775,Revenue,CAHD,South - bed purchasing and direct  payments,Permanent Nursing,Challenge House,2884.20, 14-Jan-2020
776,Revenue,CAHD,South Glos Users in South Glos Homes,Permanent Nursing,Challenge House,662.24, 14-Jan-2020
777,Revenue,CAHD,South Glos Users in South Glos Homes,Permanent Nursing,Challenge House,3263.90, 14-Jan-2020
778,Revenue,CAHD,North - bed purchasing and direct  payments,Permanent Nursing,Challenge House,3335.08, 14-Jan-2020
779,Revenue,CAHD,South Glos Users in South Glos Homes,Permanent Nursing,Challenge House,662.24, 14-Jan-2020
780,Revenue,CAHD,North - bed purchasing and direct  payments,Permanent Nursing,Challenge House,3208.48, 14-Jan-2020
781,Revenue,CAHD,South Glos Users in South Glos Homes,Permanent Nursing,Challenge House,662.24, 14-Jan-2020
782,Revenue,CAHD,South Glos Users in South Glos Homes,Permanent Nursing,Challenge House,662.24, 14-Jan-2020
783,Revenue,CAHD,North - bed purchasing and direct  payments,Permanent Nursing,Challenge House,3338.84, 14-Jan-2020
784,Revenue,CAHD,South Glos Users in South Glos Homes,Permanent Nursing,Challenge House,662.24, 14-Jan-2020
785,Revenue,CAHD,South - bed purchasing and direct  payments,Permanent Nursing,Challenge House,3000.00, 14-Jan-2020
786,Revenue,CAHD,South Glos Users in South Glos Homes,Permanent Nursing,Challenge House,662.24, 14-Jan-2020
787,Revenue,CAHD,South - bed purchasing and direct  payments,Permanent Residential,Challenge House,3000.00, 14-Jan-2020
788,Revenue,CAHD,South Glos Users in South Glos Homes,Permanent Nursing,Challenge House,662.24, 14-Jan-2020
789,Revenue,CAHD,South Glos Users in South Glos Homes,Permanent Nursing,Challenge House,662.24, 14-Jan-2020
790,Revenue,CAHD,Central - Bed Purchasing and Direct Payments,Permanent Nursing,Challenge House,3000.00, 14-Jan-2020
791,Revenue,CAHD,South - bed purchasing and direct  payments,Permanent Nursing,Challenge House,3000.00, 14-Jan-2020
792,Revenue,CAHD,South Glos Users in South Glos Homes,Permanent Nursing,Challenge House,662.24, 14-Jan-2020
793,Revenue,CAHD,North - bed purchasing and direct  payments,Permanent Nursing,Challenge House,2827.52, 14-Jan-2020
794,Revenue,CAHD,South Glos Users in South Glos Homes,Permanent Nursing,Challenge House,662.24, 14-Jan-2020
795,Revenue,CAHD,North - bed purchasing and direct  payments,Permanent Nursing,Challenge House,3338.84, 14-Jan-2020
796,Revenue,CAHD,South Glos Users in South Glos Homes,Permanent Nursing,Challenge House,662.24, 14-Jan-2020
797,Revenue,CAHD,South Glos Users in South Glos Homes,Permanent Nursing,Challenge House,662.24, 14-Jan-2020
798,Revenue,CAHD,South Glos Users in South Glos Homes,Permanent Nursing,Challenge House,662.24, 14-Jan-2020
799,Revenue,CAHD,North - bed purchasing and direct  payments,Permanent Nursing,Challenge House,2827.52, 14-Jan-2020
800,Revenue,CAHD,South Glos Users in South Glos Homes,Permanent Nursing,Challenge House,662.24, 14-Jan-2020
801,Revenue,CAHD,South Glos Users in South Glos Homes,Permanent Nursing,Challenge House,662.24, 14-Jan-2020
802,Revenue,CAHD,North - bed purchasing and direct  payments,Permanent Nursing,Challenge House,3263.84, 14-Jan-2020
803,Revenue,CAHD,South Glos Users in South Glos Homes,Permanent Nursing,Challenge House,662.24, 14-Jan-2020
804,Revenue,CAHD,Alexandra Way,"Provisions (Food, etc)",Charles Saunders Limited,509.25, 23-Jan-2020
805,Revenue,CAHD,Alexandra Way,"Provisions (Food, etc)",Charles Saunders Limited,708.58, 31-Jan-2020
806,Revenue,CAHD,CSC - Vinney Green Secure Unit,"Provisions (Food, etc)",Charles Saunders Limited,627.15, 31-Jan-2020
807,Revenue,CAHD,Mental Capacity Act / DOLS,Legal Fees,Individual,500.00, 28-Jan-2020
808,Revenue,CAHD,Statemented Support Academies,Other Public Bodies,Charlton Wood Primary Academy,702.17, 24-Jan-2020
809,Revenue,CAHD,Central - Commissioned Services,Other Small Contracts,Cherish Able Care Limited,2104.85, 10-Jan-2020
810,Revenue,CAHD,South - Commissioned Services,Other Small Contracts,Cherish Able Care Limited,4967.39, 10-Jan-2020
811,Revenue,CAHD,North - Community based support,Other Small Contracts,Cherish Able Care Limited,1267.64, 10-Jan-2020
812,Revenue,CAHD,Central - Commissioned Services,Other Small Contracts,Cherish Able Care Limited,2052.82, 15-Jan-2020
813,Revenue,CAHD,South - Commissioned Services,Other Small Contracts,Cherish Able Care Limited,4587.55, 15-Jan-2020
814,Revenue,CAHD,North - Community based support,Other Small Contracts,Cherish Able Care Limited,1154.12, 15-Jan-2020
815,Revenue,CAHD,Central - Commissioned Services,Other Small Contracts,Cherish Able Care Limited,2095.39, 23-Jan-2020
816,Revenue,CAHD,South - Commissioned Services,Other Small Contracts,Cherish Able Care Limited,5022.13, 23-Jan-2020
817,Revenue,CAHD,North - Community based support,Other Small Contracts,Cherish Able Care Limited,1229.80, 23-Jan-2020
818,Revenue,CAHD,Central - Commissioned Services,Other Small Contracts,Cherish Able Care Limited,2104.85, 29-Jan-2020
819,Revenue,CAHD,South - Commissioned Services,Other Small Contracts,Cherish Able Care Limited,5033.61, 29-Jan-2020
820,Revenue,CAHD,North - Community based support,Other Small Contracts,Cherish Able Care Limited,1272.37, 29-Jan-2020
821,Revenue,CAHD,South - Commissioned Services,Supported Living,Cherry Orchards,1286.56, 06-Jan-2020
822,Revenue,CAHD,18-25 Year Olds,Other Small Contracts,Cherry Orchards,1589.28, 08-Jan-2020
823,Revenue,CAHD,18-25 Year Olds,Other Small Contracts,Cherry Orchards,3121.80, 06-Jan-2020
824,Revenue,CAHD,18-25 Year Olds,Supported Living,Cherry Orchards,1682.00, 14-Jan-2020
825,Revenue,CAHD,Supported Living (S28a) South,Supported Living,Cherry Orchards,1997.24, 14-Jan-2020
826,Revenue,CAHD,18-25 Year Olds,Supported Living,Cherry Orchards,1990.72, 14-Jan-2020
827,Revenue,CAHD,18-25 Year Olds,Supported Living,Cherry Orchards,9923.55, 14-Jan-2020
828,Revenue,CAHD,18-25 Year Olds,Supported Living,Cherry Orchards,8460.56, 14-Jan-2020
829,Revenue,CAHD,18-25 Year Olds,Supported Living,Cherry Orchards,10496.37, 14-Jan-2020
830,Revenue,CAHD,North - Community based support,Supported Living,Cherry Orchards,1022.52, 14-Jan-2020
831,Revenue,CAHD,S28A cases,Permanent Residential,Chescombe Trust Ltd,9764.44, 14-Jan-2020
832,Revenue,CAHD,EARLY YEARS DISABILITY  ACCES FUND,Preventative Assistance,Chipping Sodbury Pre School,615.00, 20-Jan-2020
833,Revenue,CAHD,Early Years High Needs Support,Other Private Contractors,Chipping Sodbury Pre School,962.91, 23-Jan-2020
834,Revenue,CAHD,18-25 Year Olds,Other Small Contracts,Cintre,78.08, 08-Jan-2020
835,Revenue,CAHD,Central - Commissioned Services,Other Small Contracts,Cintre,292.80, 08-Jan-2020
836,Revenue,CAHD,South - Commissioned Services,Other Small Contracts,Cintre,995.52, 08-Jan-2020
837,Revenue,CAHD,18-25 Year Olds,Other Small Contracts,Cintre,39.04, 24-Jan-2020
838,Revenue,CAHD,Central - Commissioned Services,Other Small Contracts,Cintre,39.04, 24-Jan-2020
839,Revenue,CAHD,South - Commissioned Services,Other Small Contracts,Cintre,624.64, 24-Jan-2020
840,Revenue,CAHD,18-25 Year Olds,Other Small Contracts,Cintre,78.08, 24-Jan-2020
841,Revenue,CAHD,Central - Commissioned Services,Other Small Contracts,Cintre,268.40, 24-Jan-2020
842,Revenue,CAHD,South - Commissioned Services,Other Small Contracts,Cintre,1015.04, 24-Jan-2020
843,Revenue,CAHD,18-25 Year Olds,Other Small Contracts,Cintre,78.08, 29-Jan-2020
844,Revenue,CAHD,Central - Commissioned Services,Other Small Contracts,Cintre,234.24, 29-Jan-2020
845,Revenue,CAHD,South - Commissioned Services,Other Small Contracts,Cintre,1015.04, 29-Jan-2020
846,Revenue,CAHD,Future Bright,Fees - General,City of Bristol College,1200.00, 16-Jan-2020
847,Revenue,CAHD,Special Needs - Special Schools HTST,Client Transport,Individual,2789.64, 13-Jan-2020
848,Revenue,CAHD,South - bed purchasing and direct  payments,Permanent Residential,Clearwater Care,5280.28, 14-Jan-2020
849,Revenue,CAHD,South - bed purchasing and direct  payments,Permanent Residential,Cleeve Lodge,3686.40, 14-Jan-2020
850,Revenue,CAHD,South - bed purchasing and direct  payments,Permanent Residential,Cleeve Lodge,3686.40, 14-Jan-2020
851,Revenue,CAHD,South - bed purchasing and direct  payments,Permanent Residential,Cleeve Lodge,1308.44, 14-Jan-2020
852,Revenue,CAHD,South - bed purchasing and direct  payments,Permanent Residential,Cleeve Lodge,2921.68, 14-Jan-2020
853,Revenue,CAHD,South - bed purchasing and direct  payments,Permanent Residential,Cleeve Lodge,3086.48, 14-Jan-2020
854,Revenue,CAHD,South - bed purchasing and direct  payments,Permanent Residential,Cleeve Lodge,8428.57, 14-Jan-2020
855,Revenue,CAHD,South - bed purchasing and direct  payments,Permanent Residential,Cleeve Lodge,4000.00, 14-Jan-2020
856,Revenue,CAHD,South - bed purchasing and direct  payments,Permanent Residential,Cleeve Lodge,4000.00, 14-Jan-2020
857,Revenue,CAHD,North - bed purchasing and direct  payments,Respite Emergency - Residential,Cleeve Lodge,2200.00, 14-Jan-2020
858,Revenue,CAHD,MH Purchasing - Younger,Respite Emergency - Residential,Cleeve Lodge,4000.00, 14-Jan-2020
859,Revenue,CAHD,MH Purchasing - Younger,Respite Emergency - Residential,Cleeve Lodge,2428.57, 14-Jan-2020
860,Revenue,CAHD,South - bed purchasing and direct  payments,Permanent Residential,Cleeve Lodge,4000.00, 14-Jan-2020
861,Revenue,CAHD,South - bed purchasing and direct  payments,Permanent Residential,Cleeve Lodge,2893.00, 14-Jan-2020
862,Revenue,CAHD,South - bed purchasing and direct  payments,Permanent Residential,Cleeve Lodge,2635.60, 14-Jan-2020
863,Revenue,CAHD,North - bed purchasing and direct  payments,Permanent Nursing,Clevedon Court Nursing Home,3448.16, 14-Jan-2020
864,Revenue,CAHD,Central - Commissioned Services,Other Small Contracts,Clover Health and Home Care Ltd,2155.86, 06-Jan-2020
865,Revenue,CAHD,Central - Commissioned Services,Other Small Contracts,Clover Health and Home Care Ltd,2357.64, 30-Jan-2020
866,Revenue,CAHD,Central - Commissioned Services,Other Small Contracts,Clover Health and Home Care Ltd,828.36, 10-Jan-2020
867,Revenue,CAHD,Central - Commissioned Services,Other Small Contracts,Clover Health and Home Care Ltd,1210.68, 10-Jan-2020
868,Revenue,CAHD,Central - Commissioned Services,Other Small Contracts,Clover Health and Home Care Ltd,1231.92, 06-Jan-2020
869,Revenue,CAHD,South - bed purchasing and direct  payments,Permanent Residential,Collingwood Care Home,2826.24, 14-Jan-2020
870,Revenue,CAHD,South - bed purchasing and direct  payments,Permanent Residential,Collingwood Care Home,2241.28, 14-Jan-2020
871,Revenue,CAHD,South - bed purchasing and direct  payments,Permanent Residential,Collingwood Care Home,2420.80, 14-Jan-2020
872,Revenue,CAHD,North - bed purchasing and direct  payments,Permanent Residential,Collingwood Care Home,3000.00, 14-Jan-2020
873,Revenue,CAHD,South - bed purchasing and direct  payments,Permanent Residential,Collingwood Care Home,2504.28, 14-Jan-2020
874,Revenue,CAHD,South - bed purchasing and direct  payments,Permanent Residential,Community Theraputic Services,7893.40, 14-Jan-2020
875,Revenue,CAHD,Jointly Funded H&SC Packages,Permanent Residential,Community Theraputic Services,4875.84, 14-Jan-2020
876,Revenue,CAHD,Jointly Funded H&SC Packages,Permanent Residential,Community Theraputic Services,2027.52, 14-Jan-2020
877,Revenue,CAHD,North - bed purchasing and direct  payments,Permanent Residential,Community Theraputic Services,8119.76, 14-Jan-2020
878,Revenue,CAHD,Information Systems - Software,Software Support & Maintenance,Comset Ltd,9457.70, 17-Jan-2020
879,Revenue,CAHD,South - bed purchasing and direct  payments,Respite Planned - Residential,Concorde Lodge,19007.60, 14-Jan-2020
880,Revenue,CAHD,Statemented Support Equipment,Educational Supplies & Equipment,Connevans Limited,1577.25, 13-Jan-2020
881,Revenue,CAHD,Statemented Support Equipment,Educational Supplies & Equipment,Connevans Limited,1080.00, 20-Jan-2020
882,Revenue,CAHD,Bed and Breakfast,Bed & Breakfast,Connolly & Callaghan Limited,539.00, 10-Jan-2020
883,Revenue,CAHD,Bed and Breakfast,Bed & Breakfast,Connolly & Callaghan Limited,455.00, 10-Jan-2020
884,Revenue,CAHD,Bed and Breakfast,Bed & Breakfast,Connolly & Callaghan Limited,504.00, 09-Jan-2020
885,Revenue,CAHD,Bed and Breakfast,Bed & Breakfast,Connolly & Callaghan Limited,497.00, 09-Jan-2020
886,Revenue,CAHD,Bed and Breakfast,Bed & Breakfast,Connolly & Callaghan Limited,581.00, 09-Jan-2020
887,Revenue,CAHD,Bed and Breakfast,Bed & Breakfast,Connolly & Callaghan Limited,497.00, 10-Jan-2020
888,Revenue,CAHD,Bed and Breakfast,Bed & Breakfast,Connolly & Callaghan Limited,420.00, 09-Jan-2020
889,Revenue,CAHD,Bed and Breakfast,Bed & Breakfast,Connolly & Callaghan Limited,600.00, 21-Jan-2020
890,Revenue,CAHD,Bed and Breakfast,Bed & Breakfast,Connolly & Callaghan Limited,448.00, 29-Jan-2020
891,Revenue,CAHD,Bed and Breakfast,Bed & Breakfast,Connolly & Callaghan Limited,910.00, 23-Jan-2020
892,Revenue,CAHD,Bed and Breakfast,Bed & Breakfast,Connolly & Callaghan Limited,539.00, 23-Jan-2020
893,Revenue,CAHD,Bed and Breakfast,Bed & Breakfast,Connolly & Callaghan Limited,455.00, 23-Jan-2020
894,Revenue,CAHD,Bed and Breakfast,Bed & Breakfast,Connolly & Callaghan Limited,504.00, 23-Jan-2020
895,Revenue,CAHD,Bed and Breakfast,Bed & Breakfast,Connolly & Callaghan Limited,714.00, 29-Jan-2020
896,Revenue,CAHD,Bed and Breakfast,Bed & Breakfast,Connolly & Callaghan Limited,497.00, 23-Jan-2020
897,Revenue,CAHD,Bed and Breakfast,Bed & Breakfast,Connolly & Callaghan Limited,497.00, 23-Jan-2020
898,Revenue,CAHD,Bed and Breakfast,Bed & Breakfast,Connolly & Callaghan Limited,581.00, 23-Jan-2020
899,Revenue,CAHD,Bed and Breakfast,Bed & Breakfast,Connolly & Callaghan Limited,497.00, 23-Jan-2020
900,Revenue,CAHD,Bed and Breakfast,Bed & Breakfast,Connolly & Callaghan Limited,420.00, 27-Jan-2020
901,Revenue,CAHD,Bed and Breakfast,Bed & Breakfast,Connolly & Callaghan Limited,455.00, 23-Jan-2020
902,Revenue,CAHD,CSC - Fostering Carer Support,Care Mgt/Asesmnt Staff Pay,Core Assets Expert Services Ltd T/A Carter Brown,2400.00, 21-Jan-2020
903,Revenue,CAHD,CSC - Fostering Carer Support,Care Mgt/Asesmnt Staff Pay,Core Assets Expert Services Ltd T/A Carter Brown,2400.00, 21-Jan-2020
904,Revenue,CAHD,CSC - Fostering Carer Support,Care Mgt/Asesmnt Staff Pay,Core Assets Expert Services Ltd T/A Carter Brown,960.00, 22-Jan-2020
905,Revenue,CAHD,CSC - Fostering Carer Support,Care Mgt/Asesmnt Staff Pay,Core Assets Expert Services Ltd T/A Carter Brown,960.00, 22-Jan-2020
906,Revenue,CAHD,CSC - Fostering Carer Support,Agency Staff (Admin/Support Staff) Pay,Core Assets Expert Services Ltd T/A Carter Brown,720.00, 10-Jan-2020
907,Revenue,CAHD,North - bed purchasing and direct  payments,Fees & Charges Income - General,Individual,2405.55, 24-Jan-2020
908,Revenue,CAHD,Alexandra Way,Cleaning & Domestic Services,Countrywide Healthcare Supplies Ltd,941.23, 23-Jan-2020
909,Revenue,CAHD,Alexandra Way,Cleaning & Domestic Services,Countrywide Healthcare Supplies Ltd,430.93, 31-Jan-2020
910,Revenue,CAHD,Early Years Inclusion Fund,Other Public Bodies,Courtney Ladybirds Pre-School,1800.00, 10-Jan-2020
911,Revenue,CAHD,Tobacco Control,Other Small Contracts,Courtside Surgery,520.00, 20-Jan-2020
912,Revenue,CAHD,Positive Activities Subsidy for Young Pe,Training Expenses,Creative Youth Network,1000.00, 28-Jan-2020
913,Revenue,CAHD,S28A cases,Permanent Residential,Creedy Court,10597.96, 14-Jan-2020
914,Revenue,CAHD,S28A cases,Permanent Residential,Creedy Court,8904.92, 14-Jan-2020
915,Revenue,CAHD,North - bed purchasing and direct  payments,Permanent Residential,Creedy Court,14054.00, 14-Jan-2020
916,Revenue,CAHD,Training Budget - Children`s Social Serv,Training Expenses,Cruidin Training and Consultancy Ltd,2110.50, 29-Jan-2020
917,Revenue,CAHD,DOLS Spot Purchase,Grants to Voluntary Bodies,Cucumber Recruitment Limited,14616.00, 07-Jan-2020
918,Revenue,CAHD,DOLS Spot Purchase,Grants to Voluntary Bodies,Cucumber Recruitment Limited,3528.00, 07-Jan-2020
919,Revenue,CAHD,DOLS Spot Purchase,Grants to Voluntary Bodies,Cucumber Recruitment Limited,3780.00, 07-Jan-2020
920,Revenue,CAHD,DOLS Spot Purchase,Grants to Voluntary Bodies,Cucumber Recruitment Limited,3155.25, 07-Jan-2020
921,Revenue,CAHD,South - bed purchasing and direct  payments,Permanent Residential,Daneswood,6134.40, 14-Jan-2020
922,Revenue,CAHD,South - Commissioned Services,Permanent Residential,Daneswood,6134.40, 14-Jan-2020
923,Revenue,CAHD,South - Commissioned Services,Day Care / Social Activities,Daneswood,1413.28, 14-Jan-2020
924,Revenue,CAHD,North - bed purchasing and direct  payments,Permanent Residential,Daneswood,13579.68, 14-Jan-2020
925,Revenue,CAHD,North - bed purchasing and direct  payments,Permanent Residential,Daneswood,13094.69, 14-Jan-2020
926,Revenue,CAHD,North - S117,Permanent Nursing,Danshell Healthcare Group,10872.28, 14-Jan-2020
927,Revenue,CAHD,Jointly Funded H&SC Packages,Permanent Nursing,Danshell Healthcare Group,1613.28, 14-Jan-2020
928,Revenue,CAHD,Learning Difficulties PSL,Other Supplies & Services,Individual,2400.00, 22-Jan-2020
929,Revenue,CAHD,Sexual Health,Other Small Contracts,Day Lewis - Horfield Branch,527.90, 17-Jan-2020
930,Revenue,CAHD,North - Community based support,Day Care / Social Activities,Deafblind Uk,641.76, 24-Jan-2020
931,Revenue,CAHD,Post 16 High Needs Placements,Other Private Contractors,Derwen College,15499.13, 10-Jan-2020
932,Revenue,CAHD,South - Commissioned Services,Supported Living,Design House,2661.20, 14-Jan-2020
933,Revenue,CAHD,South - Commissioned Services,Supported Living,Design House,3063.00, 14-Jan-2020
934,Revenue,CAHD,South - Commissioned Services,Supported Living,Design House,3132.76, 14-Jan-2020
935,Revenue,CAHD,South - Commissioned Services,Supported Living,Design House,2993.28, 14-Jan-2020
936,Revenue,CAHD,South - Commissioned Services,Day Care / Social Activities,Design House,516.32, 14-Jan-2020
937,Revenue,CAHD,South - Commissioned Services,Day Care / Social Activities,Design House,1183.20, 14-Jan-2020
938,Revenue,CAHD,Central - Commissioned Services,Day Care / Social Activities,Design House,2440.84, 14-Jan-2020
939,Revenue,CAHD,South - Commissioned Services,Day Care / Social Activities,Design House,921.28, 14-Jan-2020
940,Revenue,CAHD,South - Commissioned Services,Supported Living,Design House,2638.60, 14-Jan-2020
941,Revenue,CAHD,South - Commissioned Services,Supported Living,Design House,2638.60, 14-Jan-2020
942,Revenue,CAHD,South - Commissioned Services,Supported Living,Design House,2149.32, 14-Jan-2020
943,Revenue,CAHD,South - Commissioned Services,Day Care / Social Activities,Design House,516.32, 14-Jan-2020
944,Revenue,CAHD,South - Commissioned Services,Supported Living,Design House,1896.52, 14-Jan-2020
945,Revenue,CAHD,South - Commissioned Services,Supported Living,Design House,2516.60, 14-Jan-2020
946,Revenue,CAHD,South - Commissioned Services,Supported Living,Design House,4307.12, 14-Jan-2020
947,Revenue,CAHD,North - Community based support,Supported Living,Design House,3054.24, 14-Jan-2020
948,Revenue,CAHD,South - Commissioned Services,Day Care / Social Activities,Design House,1505.96, 14-Jan-2020
949,Revenue,CAHD,South - Commissioned Services,Supported Living,Design House,2924.68, 14-Jan-2020
950,Revenue,CAHD,South - Commissioned Services,Supported Living,Design House,2542.80, 14-Jan-2020
951,Revenue,CAHD,South - Commissioned Services,Supported Living,Design House,2257.48, 14-Jan-2020
952,Revenue,CAHD,South - Commissioned Services,Supported Living,Design House,2257.48, 14-Jan-2020
953,Revenue,CAHD,Central - Commissioned Services,Other Small Contracts,Dhek Bhal,42.16, 09-Jan-2020
954,Revenue,CAHD,South - Commissioned Services,Other Small Contracts,Dhek Bhal,500.65, 09-Jan-2020
955,Revenue,CAHD,Central - Commissioned Services,Other Small Contracts,Dhek Bhal,42.16, 23-Jan-2020
956,Revenue,CAHD,South - Commissioned Services,Other Small Contracts,Dhek Bhal,500.65, 23-Jan-2020
957,Revenue,CAHD,Central - Commissioned Services,Other Small Contracts,Dhek Bhal,42.16, 23-Jan-2020
958,Revenue,CAHD,South - Commissioned Services,Other Small Contracts,Dhek Bhal,495.38, 23-Jan-2020
959,Revenue,CAHD,South - bed purchasing and direct  payments,Permanent Residential,Dimensions  Suite 2,5630.76, 14-Jan-2020
960,Revenue,CAHD,South - bed purchasing and direct  payments,Permanent Residential,Dimensions  Suite 2,2806.12, 14-Jan-2020
961,Revenue,CAHD,Statemented Support Academies,Other Public Bodies,Downend School,978.57, 24-Jan-2020
962,Revenue,CAHD,Statemented Support Academies,Other Public Bodies,Downend School,660.24, 24-Jan-2020
963,Revenue,CAHD,Statemented Support Academies,Other Public Bodies,Downend School,1025.73, 24-Jan-2020
964,Revenue,CAHD,Statemented Support Academies,Other Public Bodies,Downend School,1013.94, 24-Jan-2020
965,Revenue,CAHD,Statemented Support Academies,Other Public Bodies,Downend School,801.72, 24-Jan-2020
966,Revenue,CAHD,Statemented Support Academies,Other Public Bodies,Downend School,530.55, 24-Jan-2020
967,Revenue,CAHD,Statemented Support Academies,Other Public Bodies,Downend School,1108.26, 24-Jan-2020
968,Revenue,CAHD,Statemented Support Academies,Other Public Bodies,Downend School,554.13, 24-Jan-2020
969,Revenue,CAHD,Statemented Support Academies,Other Public Bodies,Downend School,1438.38, 24-Jan-2020
970,Revenue,CAHD,Statemented Support Academies,Other Public Bodies,Downend School,1709.55, 24-Jan-2020
971,Revenue,CAHD,Statemented Support Academies,Other Public Bodies,Downend School,1544.49, 24-Jan-2020
972,Revenue,CAHD,Social Lettings Agency,Other Supplies & Services,Individual,605.64, 24-Jan-2020
973,Revenue,CAHD,Independent Special Placements - Pre 16,Other Private Contractors,Durham School,8311.95, 16-Jan-2020
974,Revenue,CAHD,North - bed purchasing and direct  payments,Permanent Residential,East Court,5527.12, 14-Jan-2020
975,Revenue,CAHD,Admissions & Transport,Long Service Awards,Edenred (UK Group) Limited,630.00, 30-Jan-2020
976,Revenue,CAHD,CSC - Quality Review Unit,Long Service Awards,Edenred (UK Group) Limited,500.00, 30-Jan-2020
977,Revenue,CAHD,Training - Adult Services,Training Expenses,Edge Training & Consultancy Limited,925.00, 15-Jan-2020
978,Revenue,CAHD,South - bed purchasing and direct  payments,Permanent Residential,Edgemont House Ltd,3200.00, 14-Jan-2020
979,Revenue,CAHD,South - bed purchasing and direct  payments,Permanent Residential,Edgemont House Ltd,3200.00, 14-Jan-2020
980,Revenue,CAHD,South - bed purchasing and direct  payments,Permanent Residential,Edgemont House Ltd,1371.43, 14-Jan-2020
981,Revenue,CAHD,South - bed purchasing and direct  payments,Permanent Residential,Edgemont House Ltd,2826.24, 14-Jan-2020
982,Revenue,CAHD,South Glos Users in South Glos Homes,Permanent Nursing,Edgemont View Ltd,662.24, 14-Jan-2020
983,Revenue,CAHD,South - bed purchasing and direct  payments,Permanent Nursing,Edgemont View Ltd,3584.00, 14-Jan-2020
984,Revenue,CAHD,South Glos Users in South Glos Homes,Permanent Nursing,Edgemont View Ltd,662.24, 14-Jan-2020
985,Revenue,CAHD,South Glos Users in South Glos Homes,Permanent Nursing,Edgemont View Ltd,662.24, 14-Jan-2020
986,Revenue,CAHD,South - bed purchasing and direct  payments,Permanent Nursing,Edgemont View Ltd,2560.00, 14-Jan-2020
987,Revenue,CAHD,South Glos Users in South Glos Homes,Permanent Nursing,Edgemont View Ltd,662.24, 14-Jan-2020
988,Revenue,CAHD,South - bed purchasing and direct  payments,Permanent Nursing,Edgemont View Ltd,4129.44, 14-Jan-2020
989,Revenue,CAHD,South Glos Users in South Glos Homes,Permanent Nursing,Edgemont View Ltd,662.24, 14-Jan-2020
990,Revenue,CAHD,South Glos Users in South Glos Homes,Permanent Nursing,Edgemont View Ltd,662.24, 14-Jan-2020
991,Revenue,CAHD,South Glos Users in South Glos Homes,Permanent Nursing,Edgemont View Ltd,662.24, 14-Jan-2020
992,Revenue,CAHD,South Glos Users in South Glos Homes,Permanent Nursing,Edgemont View Ltd,662.24, 14-Jan-2020
993,Revenue,CAHD,South Glos Users in South Glos Homes,Permanent Nursing,Edgemont View Ltd,662.24, 14-Jan-2020
994,Revenue,CAHD,South - bed purchasing and direct  payments,Permanent Nursing,Edgemont View Ltd,3005.16, 14-Jan-2020
995,Revenue,CAHD,South Glos Users in South Glos Homes,Permanent Nursing,Edgemont View Ltd,662.24, 14-Jan-2020
996,Revenue,CAHD,South Glos Users in South Glos Homes,Permanent Nursing,Edgemont View Ltd,662.24, 14-Jan-2020
997,Revenue,CAHD,South Glos Users in South Glos Homes,Permanent Nursing,Edgemont View Ltd,662.24, 14-Jan-2020
998,Revenue,CAHD,South Glos Users in South Glos Homes,Permanent Nursing,Edgemont View Ltd,662.24, 14-Jan-2020
999,Revenue,CAHD,South Glos Users in South Glos Homes,Permanent Nursing,Edgemont View Ltd,662.24, 14-Jan-2020
1000,Revenue,CAHD,South Glos Users in South Glos Homes,Permanent Nursing,Edgemont View Ltd,662.24, 14-Jan-2020
1001,Revenue,CAHD,South - bed purchasing and direct  payments,Permanent Nursing,Edgemont View Ltd,3584.00, 14-Jan-2020
1002,Revenue,CAHD,South Glos Users in South Glos Homes,Permanent Nursing,Edgemont View Ltd,662.24, 14-Jan-2020
1003,Revenue,CAHD,South - bed purchasing and direct  payments,Permanent Nursing,Edgemont View Ltd,3400.00, 14-Jan-2020
1004,Revenue,CAHD,South Glos Users in South Glos Homes,Permanent Nursing,Edgemont View Ltd,662.24, 14-Jan-2020
1005,Revenue,CAHD,Planning and Partnerships Procurement,Other Supplies & Services,Eldercare,2815.75, 30-Jan-2020
1006,Revenue,CAHD,Planning and Partnerships Procurement,Other Supplies & Services,Eldercare,2716.74, 30-Jan-2020
1007,Revenue,CAHD,Supporting People Programme,Grants to Voluntary Bodies,Elim Housing Association Limited,5372.63, 31-Jan-2020
1008,Revenue,CAHD,South - Commissioned Services,Day Care / Social Activities,Elite Home Care Ltd,203.36, 06-Jan-2020
1009,Revenue,CAHD,South - Commissioned Services,Other Small Contracts,Elite Home Care Ltd,7717.52, 06-Jan-2020
1010,Revenue,CAHD,North - Community based support,Other Small Contracts,Elite Home Care Ltd,461.28, 06-Jan-2020
1011,Revenue,CAHD,South - Commissioned Services,Day Care / Social Activities,Elite Home Care Ltd,183.52, 08-Jan-2020
1012,Revenue,CAHD,South - Commissioned Services,Other Small Contracts,Elite Home Care Ltd,7211.94, 08-Jan-2020
1013,Revenue,CAHD,North - Community based support,Other Small Contracts,Elite Home Care Ltd,386.88, 08-Jan-2020
1014,Revenue,CAHD,South - Commissioned Services,Day Care / Social Activities,Elite Home Care Ltd,183.52, 15-Jan-2020
1015,Revenue,CAHD,South - Commissioned Services,Other Small Contracts,Elite Home Care Ltd,7721.95, 15-Jan-2020
1016,Revenue,CAHD,North - Community based support,Other Small Contracts,Elite Home Care Ltd,590.24, 15-Jan-2020
1017,Revenue,CAHD,South - Commissioned Services,Day Care / Social Activities,Elite Home Care Ltd,213.28, 23-Jan-2020
1018,Revenue,CAHD,South - Commissioned Services,Other Small Contracts,Elite Home Care Ltd,7148.83, 23-Jan-2020
1019,Revenue,CAHD,North - Community based support,Other Small Contracts,Elite Home Care Ltd,610.08, 23-Jan-2020
1020,Revenue,CAHD,South - Commissioned Services,Day Care / Social Activities,Elite Home Care Ltd,203.36, 29-Jan-2020
1021,Revenue,CAHD,South - Commissioned Services,Other Small Contracts,Elite Home Care Ltd,6709.45, 29-Jan-2020
1022,Revenue,CAHD,North - Community based support,Other Small Contracts,Elite Home Care Ltd,605.12, 29-Jan-2020
1023,Revenue,CAHD,Community Support - South,Preventative Assistance,Elite Hygiene Services Limited,1685.00, 09-Jan-2020
1024,Revenue,CAHD,CSC - Legal Fees,Legal Fees,Individual,1000.00, 23-Jan-2020
1025,Revenue,CAHD,CSC - Legal Fees,Legal Fees,Individual,1500.00, 16-Jan-2020
1026,Revenue,CAHD,CSC - Legal Fees,Legal Fees,Individual,1900.00, 23-Jan-2020
1027,Revenue,CAHD,CSC - Legal Fees,Legal Fees,Individual,500.00, 23-Jan-2020
1028,Revenue,CAHD,Special ISB,Other Public Bodies,Enable Trust,7622.91, 14-Jan-2020
1029,Revenue,CAHD,Special ISB,Other Public Bodies,Enable Trust,3387.96, 14-Jan-2020
1030,Revenue,CAHD,Special ISB,Other Public Bodies,Enable Trust,1172.68, 27-Jan-2020
1031,Revenue,CAHD,Special ISB,Other Public Bodies,Enable Trust,1172.68, 27-Jan-2020
1032,Revenue,CAHD,Special ISB,Other Public Bodies,Enable Trust,1172.68, 27-Jan-2020
1033,Revenue,CAHD,Special ISB,Other Public Bodies,Enable Trust,646.92, 27-Jan-2020
1034,Revenue,CAHD,Special ISB,Other Public Bodies,Enable Trust,1536.62, 27-Jan-2020
1035,Revenue,CAHD,Special ISB,Other Public Bodies,Enable Trust,1698.31, 27-Jan-2020
1036,Revenue,CAHD,Special ISB,Other Public Bodies,Enable Trust,1536.62, 27-Jan-2020
1037,Revenue,CAHD,Special ISB,Other Public Bodies,Enable Trust,1172.68, 27-Jan-2020
1038,Revenue,CAHD,Special ISB,Other Public Bodies,Enable Trust,1172.68, 27-Jan-2020
1039,Revenue,CAHD,Special ISB,Other Public Bodies,Enable Trust,1536.62, 27-Jan-2020
1040,Revenue,CAHD,Special ISB,Other Public Bodies,Enable Trust,889.62, 27-Jan-2020
1041,Revenue,CAHD,Special ISB,Other Public Bodies,Enable Trust,1536.62, 27-Jan-2020
1042,Revenue,CAHD,Special ISB,Other Public Bodies,Enable Trust,1172.68, 27-Jan-2020
1043,Revenue,CAHD,Special ISB,Other Public Bodies,Enable Trust,889.62, 27-Jan-2020
1044,Revenue,CAHD,Special ISB,Other Public Bodies,Enable Trust,1172.68, 27-Jan-2020
1045,Revenue,CAHD,Special ISB,Other Public Bodies,Enable Trust,1536.62, 27-Jan-2020
1046,Revenue,CAHD,Special ISB,Other Public Bodies,Enable Trust,1172.68, 27-Jan-2020
1047,Revenue,CAHD,Special ISB,Other Public Bodies,Enable Trust,889.62, 27-Jan-2020
1048,Revenue,CAHD,Special ISB,Other Public Bodies,Enable Trust,2183.56, 27-Jan-2020
1049,Revenue,CAHD,Special ISB,Other Public Bodies,Enable Trust,1172.68, 27-Jan-2020
1050,Revenue,CAHD,Special ISB,Other Public Bodies,Enable Trust,1172.68, 27-Jan-2020
1051,Revenue,CAHD,Special ISB,Other Public Bodies,Enable Trust,889.62, 27-Jan-2020
1052,Revenue,CAHD,Special ISB,Other Public Bodies,Enable Trust,1172.68, 27-Jan-2020
1053,Revenue,CAHD,Special ISB,Other Public Bodies,Enable Trust,1536.62, 27-Jan-2020
1054,Revenue,CAHD,Special ISB,Other Public Bodies,Enable Trust,1172.68, 27-Jan-2020
1055,Revenue,CAHD,Special ISB,Other Public Bodies,Enable Trust,1172.68, 27-Jan-2020
1056,Revenue,CAHD,Special ISB,Other Public Bodies,Enable Trust,1172.68, 27-Jan-2020
1057,Revenue,CAHD,Special ISB,Other Public Bodies,Enable Trust,1536.62, 27-Jan-2020
1058,Revenue,CAHD,Special ISB,Other Public Bodies,Enable Trust,1172.68, 27-Jan-2020
1059,Revenue,CAHD,Special ISB,Other Public Bodies,Enable Trust,1172.68, 27-Jan-2020
1060,Revenue,CAHD,Special ISB,Other Public Bodies,Enable Trust,1172.68, 27-Jan-2020
1061,Revenue,CAHD,Special ISB,Other Public Bodies,Enable Trust,2183.56, 27-Jan-2020
1062,Revenue,CAHD,Special ISB,Other Public Bodies,Enable Trust,1536.62, 27-Jan-2020
1063,Revenue,CAHD,Special ISB,Other Public Bodies,Enable Trust,1172.68, 27-Jan-2020
1064,Revenue,CAHD,Special ISB,Other Public Bodies,Enable Trust,1536.62, 27-Jan-2020
1065,Revenue,CAHD,Special ISB,Other Public Bodies,Enable Trust,1172.68, 27-Jan-2020
1066,Revenue,CAHD,Special ISB,Other Public Bodies,Enable Trust,2183.56, 27-Jan-2020
1067,Revenue,CAHD,Special ISB,Other Public Bodies,Enable Trust,1536.62, 27-Jan-2020
1068,Revenue,CAHD,Special ISB,Other Public Bodies,Enable Trust,1172.68, 27-Jan-2020
1069,Revenue,CAHD,Special ISB,Other Public Bodies,Enable Trust,889.62, 27-Jan-2020
1070,Revenue,CAHD,Special ISB,Other Public Bodies,Enable Trust,889.62, 27-Jan-2020
1071,Revenue,CAHD,Special ISB,Other Public Bodies,Enable Trust,1172.68, 27-Jan-2020
1072,Revenue,CAHD,Special ISB,Other Public Bodies,Enable Trust,889.62, 27-Jan-2020
1073,Revenue,CAHD,Special ISB,Other Public Bodies,Enable Trust,646.92, 27-Jan-2020
1074,Revenue,CAHD,Special ISB,Other Public Bodies,Enable Trust,889.62, 27-Jan-2020
1075,Revenue,CAHD,Special ISB,Other Public Bodies,Enable Trust,889.62, 27-Jan-2020
1076,Revenue,CAHD,Special ISB,Other Public Bodies,Enable Trust,1172.68, 27-Jan-2020
1077,Revenue,CAHD,Special ISB,Other Public Bodies,Enable Trust,1172.68, 27-Jan-2020
1078,Revenue,CAHD,Special ISB,Other Public Bodies,Enable Trust,1536.62, 27-Jan-2020
1079,Revenue,CAHD,Special ISB,Other Public Bodies,Enable Trust,1536.62, 27-Jan-2020
1080,Revenue,CAHD,Special ISB,Other Public Bodies,Enable Trust,1172.68, 27-Jan-2020
1081,Revenue,CAHD,Special ISB,Other Public Bodies,Enable Trust,1536.62, 27-Jan-2020
1082,Revenue,CAHD,Special ISB,Other Public Bodies,Enable Trust,1536.62, 27-Jan-2020
1083,Revenue,CAHD,Special ISB,Other Public Bodies,Enable Trust,889.62, 27-Jan-2020
1084,Revenue,CAHD,Special ISB,Other Public Bodies,Enable Trust,1172.68, 27-Jan-2020
1085,Revenue,CAHD,Special ISB,Other Public Bodies,Enable Trust,1172.68, 27-Jan-2020
1086,Revenue,CAHD,Special ISB,Other Public Bodies,Enable Trust,1536.62, 27-Jan-2020
1087,Revenue,CAHD,Special ISB,Other Public Bodies,Enable Trust,1172.68, 27-Jan-2020
1088,Revenue,CAHD,Special ISB,Other Public Bodies,Enable Trust,1536.62, 27-Jan-2020
1089,Revenue,CAHD,Special ISB,Other Public Bodies,Enable Trust,889.62, 27-Jan-2020
1090,Revenue,CAHD,Special ISB,Other Public Bodies,Enable Trust,1536.62, 27-Jan-2020
1091,Revenue,CAHD,Special ISB,Other Public Bodies,Enable Trust,1172.68, 27-Jan-2020
1092,Revenue,CAHD,Special ISB,Other Public Bodies,Enable Trust,1536.62, 27-Jan-2020
1093,Revenue,CAHD,Special ISB,Other Public Bodies,Enable Trust,1536.62, 27-Jan-2020
1094,Revenue,CAHD,Special ISB,Other Public Bodies,Enable Trust,889.62, 27-Jan-2020
1095,Revenue,CAHD,Special ISB,Other Public Bodies,Enable Trust,1172.68, 27-Jan-2020
1096,Revenue,CAHD,Special ISB,Other Public Bodies,Enable Trust,889.62, 27-Jan-2020
1097,Revenue,CAHD,Special ISB,Other Public Bodies,Enable Trust,1172.68, 27-Jan-2020
1098,Revenue,CAHD,Special ISB,Other Public Bodies,Enable Trust,1172.68, 27-Jan-2020
1099,Revenue,CAHD,Special ISB,Other Public Bodies,Enable Trust,1172.68, 27-Jan-2020
1100,Revenue,CAHD,Special ISB,Other Public Bodies,Enable Trust,889.62, 27-Jan-2020
1101,Revenue,CAHD,Special ISB,Other Public Bodies,Enable Trust,1172.68, 27-Jan-2020
1102,Revenue,CAHD,Special ISB,Other Public Bodies,Enable Trust,1172.68, 27-Jan-2020
1103,Revenue,CAHD,Special ISB,Other Public Bodies,Enable Trust,1172.68, 27-Jan-2020
1104,Revenue,CAHD,Special ISB,Other Public Bodies,Enable Trust,1698.31, 27-Jan-2020
1105,Revenue,CAHD,Special ISB,Other Public Bodies,Enable Trust,1172.68, 27-Jan-2020
1106,Revenue,CAHD,Special ISB,Other Public Bodies,Enable Trust,889.62, 27-Jan-2020
1107,Revenue,CAHD,Special ISB,Other Public Bodies,Enable Trust,889.62, 27-Jan-2020
1108,Revenue,CAHD,Special ISB,Other Public Bodies,Enable Trust,1172.68, 27-Jan-2020
1109,Revenue,CAHD,Special ISB,Other Public Bodies,Enable Trust,1172.68, 27-Jan-2020
1110,Revenue,CAHD,Special ISB,Other Public Bodies,Enable Trust,2183.56, 27-Jan-2020
1111,Revenue,CAHD,Special ISB,Other Public Bodies,Enable Trust,1172.68, 27-Jan-2020
1112,Revenue,CAHD,Special ISB,Other Public Bodies,Enable Trust,1698.31, 27-Jan-2020
1113,Revenue,CAHD,Special ISB,Other Public Bodies,Enable Trust,889.62, 27-Jan-2020
1114,Revenue,CAHD,Special ISB,Other Public Bodies,Enable Trust,889.62, 27-Jan-2020
1115,Revenue,CAHD,Special ISB,Other Public Bodies,Enable Trust,1504.20, 27-Jan-2020
1116,Revenue,CAHD,Special ISB,Other Public Bodies,Enable Trust,889.62, 27-Jan-2020
1117,Revenue,CAHD,Special ISB,Other Public Bodies,Enable Trust,4367.11, 27-Jan-2020
1118,Revenue,CAHD,Special ISB,Other Public Bodies,Enable Trust,2183.56, 27-Jan-2020
1119,Revenue,CAHD,Special ISB,Other Public Bodies,Enable Trust,889.62, 27-Jan-2020
1120,Revenue,CAHD,Special ISB,Other Public Bodies,Enable Trust,1698.31, 27-Jan-2020
1121,Revenue,CAHD,Special ISB,Other Public Bodies,Enable Trust,1172.68, 27-Jan-2020
1122,Revenue,CAHD,Special ISB,Other Public Bodies,Enable Trust,1172.68, 27-Jan-2020
1123,Revenue,CAHD,Special ISB,Other Public Bodies,Enable Trust,1172.68, 27-Jan-2020
1124,Revenue,CAHD,Special ISB,Other Public Bodies,Enable Trust,646.92, 27-Jan-2020
1125,Revenue,CAHD,Special ISB,Other Public Bodies,Enable Trust,1536.62, 27-Jan-2020
1126,Revenue,CAHD,Special ISB,Other Public Bodies,Enable Trust,889.62, 27-Jan-2020
1127,Revenue,CAHD,Special ISB,Other Public Bodies,Enable Trust,1172.68, 27-Jan-2020
1128,Revenue,CAHD,Special ISB,Other Public Bodies,Enable Trust,889.62, 27-Jan-2020
1129,Revenue,CAHD,Special ISB,Other Public Bodies,Enable Trust,1172.68, 27-Jan-2020
1130,Revenue,CAHD,Special ISB,Other Public Bodies,Enable Trust,1172.68, 27-Jan-2020
1131,Revenue,CAHD,Special ISB,Other Public Bodies,Enable Trust,1172.68, 27-Jan-2020
1132,Revenue,CAHD,Special ISB,Other Public Bodies,Enable Trust,1698.31, 27-Jan-2020
1133,Revenue,CAHD,Special ISB,Other Public Bodies,Enable Trust,1698.31, 27-Jan-2020
1134,Revenue,CAHD,Special ISB,Other Public Bodies,Enable Trust,1698.31, 27-Jan-2020
1135,Revenue,CAHD,Special ISB,Other Public Bodies,Enable Trust,1010.96, 27-Jan-2020
1136,Revenue,CAHD,Special ISB,Other Public Bodies,Enable Trust,646.92, 27-Jan-2020
1137,Revenue,CAHD,Special ISB,Other Public Bodies,Enable Trust,2345.37, 27-Jan-2020
1138,Revenue,CAHD,Special ISB,Other Public Bodies,Enable Trust,889.62, 27-Jan-2020
1139,Revenue,CAHD,Special ISB,Other Public Bodies,Enable Trust,1698.31, 27-Jan-2020
1140,Revenue,CAHD,Special ISB,Other Public Bodies,Enable Trust,889.62, 27-Jan-2020
1141,Revenue,CAHD,Special ISB,Other Public Bodies,Enable Trust,1172.68, 27-Jan-2020
1142,Revenue,CAHD,Special ISB,Other Public Bodies,Enable Trust,1172.68, 27-Jan-2020
1143,Revenue,CAHD,Special ISB,Other Public Bodies,Enable Trust,1698.31, 27-Jan-2020
1144,Revenue,CAHD,Special ISB,Other Public Bodies,Enable Trust,1172.68, 27-Jan-2020
1145,Revenue,CAHD,Special ISB,Other Public Bodies,Enable Trust,1172.68, 27-Jan-2020
1146,Revenue,CAHD,Special ISB,Other Public Bodies,Enable Trust,1172.68, 27-Jan-2020
1147,Revenue,CAHD,Special ISB,Other Public Bodies,Enable Trust,2183.56, 27-Jan-2020
1148,Revenue,CAHD,Special ISB,Other Public Bodies,Enable Trust,889.62, 27-Jan-2020
1149,Revenue,CAHD,Special ISB,Other Public Bodies,Enable Trust,1536.62, 27-Jan-2020
1150,Revenue,CAHD,Special ISB,Other Public Bodies,Enable Trust,1172.68, 27-Jan-2020
1151,Revenue,CAHD,Special ISB,Other Public Bodies,Enable Trust,1698.31, 27-Jan-2020
1152,Revenue,CAHD,Special ISB,Other Public Bodies,Enable Trust,2507.02, 27-Jan-2020
1153,Revenue,CAHD,Special ISB,Other Public Bodies,Enable Trust,1172.68, 27-Jan-2020
1154,Revenue,CAHD,Special ISB,Other Public Bodies,Enable Trust,1172.68, 27-Jan-2020
1155,Revenue,CAHD,Special ISB,Other Public Bodies,Enable Trust,1698.31, 27-Jan-2020
1156,Revenue,CAHD,Special ISB,Other Public Bodies,Enable Trust,1698.31, 27-Jan-2020
1157,Revenue,CAHD,Special ISB,Other Public Bodies,Enable Trust,1698.31, 27-Jan-2020
1158,Revenue,CAHD,Special ISB,Other Public Bodies,Enable Trust,1698.31, 27-Jan-2020
1159,Revenue,CAHD,Special ISB,Other Public Bodies,Enable Trust,889.62, 27-Jan-2020
1160,Revenue,CAHD,Special ISB,Other Public Bodies,Enable Trust,889.62, 27-Jan-2020
1161,Revenue,CAHD,Special ISB,Other Public Bodies,Enable Trust,1172.68, 27-Jan-2020
1162,Revenue,CAHD,Special ISB,Other Public Bodies,Enable Trust,1698.31, 27-Jan-2020
1163,Revenue,CAHD,Special ISB,Other Public Bodies,Enable Trust,889.62, 27-Jan-2020
1164,Revenue,CAHD,Special ISB,Other Public Bodies,Enable Trust,1698.31, 27-Jan-2020
1165,Revenue,CAHD,Special ISB,Other Public Bodies,Enable Trust,2183.56, 27-Jan-2020
1166,Revenue,CAHD,Special ISB,Other Public Bodies,Enable Trust,889.62, 27-Jan-2020
1167,Revenue,CAHD,Special ISB,Other Public Bodies,Enable Trust,2183.56, 27-Jan-2020
1168,Revenue,CAHD,Special ISB,Other Public Bodies,Enable Trust,889.62, 27-Jan-2020
1169,Revenue,CAHD,Special ISB,Other Public Bodies,Enable Trust,1698.31, 27-Jan-2020
1170,Revenue,CAHD,Special ISB,Other Public Bodies,Enable Trust,1172.68, 27-Jan-2020
1171,Revenue,CAHD,Special ISB,Other Public Bodies,Enable Trust,2183.56, 27-Jan-2020
1172,Revenue,CAHD,Special ISB,Other Public Bodies,Enable Trust,889.62, 27-Jan-2020
1173,Revenue,CAHD,Special ISB,Other Public Bodies,Enable Trust,1698.31, 27-Jan-2020
1174,Revenue,CAHD,Special ISB,Other Public Bodies,Enable Trust,1698.31, 27-Jan-2020
1175,Revenue,CAHD,Special ISB,Other Public Bodies,Enable Trust,889.62, 27-Jan-2020
1176,Revenue,CAHD,Special ISB,Other Public Bodies,Enable Trust,1698.31, 27-Jan-2020
1177,Revenue,CAHD,Special ISB,Other Public Bodies,Enable Trust,1172.68, 27-Jan-2020
1178,Revenue,CAHD,Special ISB,Other Public Bodies,Enable Trust,889.62, 27-Jan-2020
1179,Revenue,CAHD,Special ISB,Other Public Bodies,Enable Trust,1172.68, 27-Jan-2020
1180,Revenue,CAHD,Special ISB,Other Public Bodies,Enable Trust,1698.31, 27-Jan-2020
1181,Revenue,CAHD,Special ISB,Other Public Bodies,Enable Trust,2507.02, 27-Jan-2020
1182,Revenue,CAHD,Special ISB,Other Public Bodies,Enable Trust,1698.31, 27-Jan-2020
1183,Revenue,CAHD,Special ISB,Other Public Bodies,Enable Trust,1172.68, 27-Jan-2020
1184,Revenue,CAHD,Special ISB,Other Public Bodies,Enable Trust,1172.68, 27-Jan-2020
1185,Revenue,CAHD,Special ISB,Other Public Bodies,Enable Trust,1172.68, 27-Jan-2020
1186,Revenue,CAHD,Special ISB,Other Public Bodies,Enable Trust,1172.68, 27-Jan-2020
1187,Revenue,CAHD,Special ISB,Other Public Bodies,Enable Trust,889.62, 27-Jan-2020
1188,Revenue,CAHD,Special ISB,Other Public Bodies,Enable Trust,2183.56, 27-Jan-2020
1189,Revenue,CAHD,Special ISB,Other Public Bodies,Enable Trust,1698.31, 27-Jan-2020
1190,Revenue,CAHD,Special ISB,Other Public Bodies,Enable Trust,7377.03, 14-Jan-2020
1191,Revenue,CAHD,Special ISB,Other Public Bodies,Enable Trust,3278.68, 14-Jan-2020
1192,Revenue,CAHD,Special ISB,Other Public Bodies,Enable Trust,819.67, 14-Jan-2020
1193,Revenue,CAHD,Special ISB,Other Public Bodies,Enable Trust,819.67, 14-Jan-2020
1194,Revenue,CAHD,North - Community based support,Other Small Contracts,Epiphany In Care,4644.08, 10-Jan-2020
1195,Revenue,CAHD,North - Community based support,Other Small Contracts,Epiphany In Care,4644.08, 13-Jan-2020
1196,Revenue,CAHD,North - Community based support,Other Small Contracts,Epiphany In Care,4644.08, 16-Jan-2020
1197,Revenue,CAHD,South - bed purchasing and direct  payments,Permanent Nursing,Epworth House,3072.00, 14-Jan-2020
1198,Revenue,CAHD,Management & Support costs,Fees - General,Ernst & Young LLP,15000.00, 17-Jan-2020
1199,Revenue,CAHD,Placements OLA Special Schools and RB,Other L.A.'s - General,Excalibur Academies Trust T/A,1511.83, 27-Jan-2020
1200,Revenue,CAHD,Homeless - Private Sector Leasing,Prop.Serv. General Repairs,Express Property Services Limited,8276.43, 06-Jan-2020
1201,Revenue,CAHD,Extra Care Housing,Private & Voluntary Home Care,Extra Care Charitable Trust,26966.00, 10-Jan-2020
1202,Revenue,CAHD,North - bed purchasing and direct  payments,Permanent Residential,Eyre Court,3719.16, 14-Jan-2020
1203,Revenue,CAHD,Central - Bed Purchasing and Direct Payments,Permanent Residential,Eyre Court,4915.20, 14-Jan-2020
1204,Revenue,CAHD,North - bed purchasing and direct  payments,Permanent Residential,Eyre Court,4800.00, 14-Jan-2020
1205,Revenue,CAHD,Post 16 High Needs Placements,Other Private Contractors,Fairfield Farm Trust,12488.66, 21-Jan-2020
1206,Revenue,CAHD,Post 16 High Needs Placements,Other Private Contractors,Fairfield Farm Trust,21099.13, 21-Jan-2020
1207,Revenue,CAHD,Post 16 High Needs Placements,Other Private Contractors,Fairfield Farm Trust,21099.13, 21-Jan-2020
1208,Revenue,CAHD,Post 16 High Needs Placements,Other Private Contractors,Fairfield Farm Trust,12488.66, 21-Jan-2020
1209,Revenue,CAHD,South - bed purchasing and direct  payments,Permanent Nursing,Fairview Court,3810.56, 14-Jan-2020
1210,Revenue,CAHD,South Glos Users in South Glos Homes,Permanent Nursing,Fairview Court,662.24, 14-Jan-2020
1211,Revenue,CAHD,South Glos Users in South Glos Homes,Permanent Nursing,Fairview Court,662.24, 14-Jan-2020
1212,Revenue,CAHD,South Glos Users in South Glos Homes,Permanent Nursing,Fairview Court,662.24, 14-Jan-2020
1213,Revenue,CAHD,South - bed purchasing and direct  payments,Permanent Nursing,Fairview Court,3810.56, 14-Jan-2020
1214,Revenue,CAHD,South Glos Users in South Glos Homes,Permanent Nursing,Fairview Court,662.24, 14-Jan-2020
1215,Revenue,CAHD,South Glos Users in South Glos Homes,Permanent Nursing,Fairview Court,6456.84, 14-Jan-2020
1216,Revenue,CAHD,South Glos Users in South Glos Homes,Permanent Nursing,Fairview Court,662.24, 14-Jan-2020
1217,Revenue,CAHD,South Glos Users in South Glos Homes,Permanent Nursing,Fairview Court,662.24, 14-Jan-2020
1218,Revenue,CAHD,South Glos Users in South Glos Homes,Permanent Nursing,Fairview Court,662.24, 14-Jan-2020
1219,Revenue,CAHD,South - bed purchasing and direct  payments,Permanent Nursing,Fairview Court,3547.76, 14-Jan-2020
1220,Revenue,CAHD,South Glos Users in South Glos Homes,Permanent Nursing,Fairview Court,662.24, 14-Jan-2020
1221,Revenue,CAHD,South Glos Users in South Glos Homes,Permanent Nursing,Fairview Court,662.24, 14-Jan-2020
1222,Revenue,CAHD,South Glos Users in South Glos Homes,Permanent Nursing,Fairview Court,662.24, 14-Jan-2020
1223,Revenue,CAHD,South - S117,Permanent Nursing,Fairview Court,4173.84, 14-Jan-2020
1224,Revenue,CAHD,South Glos Users in South Glos Homes,Permanent Nursing,Fairview Court,662.24, 14-Jan-2020
1225,Revenue,CAHD,South Glos Users in South Glos Homes,Permanent Nursing,Fairview Court,662.24, 14-Jan-2020
1226,Revenue,CAHD,South - bed purchasing and direct  payments,Permanent Nursing,Fairview Court,3382.48, 14-Jan-2020
1227,Revenue,CAHD,South Glos Users in South Glos Homes,Permanent Nursing,Fairview Court,662.24, 14-Jan-2020
1228,Revenue,CAHD,South - bed purchasing and direct  payments,Permanent Nursing,Fairview Court,4078.24, 14-Jan-2020
1229,Revenue,CAHD,South - bed purchasing and direct  payments,Permanent Nursing,Fairview Court,3058.68, 14-Jan-2020
1230,Revenue,CAHD,South Glos Users in South Glos Homes,Permanent Nursing,Fairview Court,662.24, 14-Jan-2020
1231,Revenue,CAHD,South Glos Users in South Glos Homes,Permanent Nursing,Fairview Court,662.24, 14-Jan-2020
1232,Revenue,CAHD,South Glos Users in South Glos Homes,Permanent Nursing,Fairview Court,662.24, 14-Jan-2020
1233,Revenue,CAHD,South Glos Users in South Glos Homes,Permanent Nursing,Fairview Court,662.24, 14-Jan-2020
1234,Revenue,CAHD,South Glos Users in South Glos Homes,Permanent Nursing,Fairview Court,662.24, 14-Jan-2020
1235,Revenue,CAHD,South - bed purchasing and direct  payments,Permanent Nursing,Fairview Court,4140.00, 14-Jan-2020
1236,Revenue,CAHD,South Glos Users in South Glos Homes,Permanent Nursing,Fairview Court,662.24, 14-Jan-2020
1237,Revenue,CAHD,South - bed purchasing and direct  payments,Permanent Nursing,Fairview Court,3810.56, 14-Jan-2020
1238,Revenue,CAHD,South Glos Users in South Glos Homes,Permanent Nursing,Fairview Court,662.24, 14-Jan-2020
1239,Revenue,CAHD,South Glos Users in South Glos Homes,Permanent Nursing,Fairview Court,662.24, 14-Jan-2020
1240,Revenue,CAHD,South Glos Users in South Glos Homes,Permanent Nursing,Fairview Court,662.24, 14-Jan-2020
1241,Revenue,CAHD,South Glos Users in South Glos Homes,Permanent Nursing,Fairview Court,662.24, 14-Jan-2020
1242,Revenue,CAHD,South Glos Users in South Glos Homes,Permanent Nursing,Fairview Court,662.24, 14-Jan-2020
1243,Revenue,CAHD,South - Commissioned Services,Respite Emergency - Residential,Fairview Court,3400.00, 14-Jan-2020
1244,Revenue,CAHD,South Glos Users in South Glos Homes,Permanent Nursing,Fairview Court,662.24, 14-Jan-2020
1245,Revenue,CAHD,North - bed purchasing and direct  payments,Permanent Nursing,Fairview Court,3547.76, 14-Jan-2020
1246,Revenue,CAHD,South Glos Users in South Glos Homes,Permanent Nursing,Fairview Court,662.24, 14-Jan-2020
1247,Revenue,CAHD,South Glos Users in South Glos Homes,Permanent Nursing,Fairview Court,662.24, 14-Jan-2020
1248,Revenue,CAHD,South Glos Users in South Glos Homes,Permanent Nursing,Fairview Court,662.24, 14-Jan-2020
1249,Revenue,CAHD,South - bed purchasing and direct  payments,Permanent Residential,Fairview Court,4048.64, 14-Jan-2020
1250,Revenue,CAHD,South Glos Users in South Glos Homes,Permanent Nursing,Fairview Court,662.24, 14-Jan-2020
1251,Revenue,CAHD,South Glos Users in South Glos Homes,Permanent Nursing,Fairview Court,662.24, 14-Jan-2020
1252,Revenue,CAHD,North - bed purchasing and direct  payments,Permanent Residential,Fairview Court,3256.32, 14-Jan-2020
1253,Revenue,CAHD,South - bed purchasing and direct  payments,Permanent Nursing,Fairview Court,14186.61, 14-Jan-2020
1254,Revenue,CAHD,South - bed purchasing and direct  payments,Permanent Nursing,Fairview Court,4137.76, 14-Jan-2020
1255,Revenue,CAHD,South - bed purchasing and direct  payments,Fees & Charges Income - General,Fairview Court,802.94, 14-Jan-2020
1256,Revenue,CAHD,South - bed purchasing and direct  payments,Fees & Charges Income - General,Fairview Court,764.91, 14-Jan-2020
1257,Revenue,CAHD,South - bed purchasing and direct  payments,Fees & Charges Income - General,Fairview Court,618.42, 14-Jan-2020
1258,Revenue,CAHD,South - bed purchasing and direct  payments,Fees & Charges Income - General,Fairview Court,507.12, 14-Jan-2020
1259,Revenue,CAHD,South - bed purchasing and direct  payments,Fees & Charges Income - General,Fairview Court,630.41, 14-Jan-2020
1260,Revenue,CAHD,South - bed purchasing and direct  payments,Fees & Charges Income - General,Fairview Court,998.54, 14-Jan-2020
1261,Revenue,CAHD,South - bed purchasing and direct  payments,Permanent Nursing,Fairview Court,2807.77, 14-Jan-2020
1262,Revenue,CAHD,South - bed purchasing and direct  payments,Permanent Nursing,Fairview Court,886.66, 14-Jan-2020
1263,Revenue,CAHD,South - bed purchasing and direct  payments,Permanent Nursing,Fairview Court,3483.68, 14-Jan-2020
1264,Revenue,CAHD,South Glos Users in South Glos Homes,Permanent Nursing,Fairview Court,662.24, 14-Jan-2020
1265,Revenue,CAHD,North - bed purchasing and direct  payments,Permanent Nursing,Fairview Court,3810.56, 14-Jan-2020
1266,Revenue,CAHD,South Glos Users in South Glos Homes,Permanent Nursing,Fairview Court,662.24, 14-Jan-2020
1267,Revenue,CAHD,South Glos Users in South Glos Homes,Permanent Nursing,Fairview Court,662.24, 14-Jan-2020
1268,Revenue,CAHD,South - bed purchasing and direct  payments,Permanent Nursing,Fairview Court,3130.36, 14-Jan-2020
1269,Revenue,CAHD,South Glos Users in South Glos Homes,Permanent Nursing,Fairview Court,662.24, 14-Jan-2020
1270,Revenue,CAHD,South - bed purchasing and direct  payments,Permanent Nursing,Fairview Court,3810.56, 14-Jan-2020
1271,Revenue,CAHD,South Glos Users in South Glos Homes,Permanent Nursing,Fairview Court,662.24, 14-Jan-2020
1272,Revenue,CAHD,South - bed purchasing and direct  payments,Permanent Nursing,Fairview Court,3547.76, 14-Jan-2020
1273,Revenue,CAHD,South Glos Users in South Glos Homes,Permanent Nursing,Fairview Court,662.24, 14-Jan-2020
1274,Revenue,CAHD,South - bed purchasing and direct  payments,Permanent Nursing,Fairview Court,4028.00, 14-Jan-2020
1275,Revenue,CAHD,South Glos Users in South Glos Homes,Permanent Nursing,Fairview Court,662.24, 14-Jan-2020
1276,Revenue,CAHD,South - S117,Permanent Residential,Fairview House,2303.52, 14-Jan-2020
1277,Revenue,CAHD,South - bed purchasing and direct  payments,Permanent Residential,Fairview House,2303.52, 14-Jan-2020
1278,Revenue,CAHD,Central - Bed Purchasing and Direct Payments,Permanent Residential,Fairview House,3400.00, 14-Jan-2020
1279,Revenue,CAHD,South - bed purchasing and direct  payments,Permanent Residential,Fairview House,2230.32, 14-Jan-2020
1280,Revenue,CAHD,South - bed purchasing and direct  payments,Permanent Residential,Fairview House,2230.40, 14-Jan-2020
1281,Revenue,CAHD,North - bed purchasing and direct  payments,Permanent Residential,Faith House,3297.28, 14-Jan-2020
1282,Revenue,CAHD,Central - Bed Purchasing and Direct Payments,Respite Emergency - Residential,Faith House,2873.57, 14-Jan-2020
1283,Revenue,CAHD,Central - Bed Purchasing and Direct Payments,Respite Emergency - Residential,Faith House,1596.43, 14-Jan-2020
1284,Revenue,CAHD,North - bed purchasing and direct  payments,Permanent Residential,Faith House,2805.76, 14-Jan-2020
1285,Revenue,CAHD,North - bed purchasing and direct  payments,Permanent Residential,Faith House,2980.00, 14-Jan-2020
1286,Revenue,CAHD,South - bed purchasing and direct  payments,Permanent Residential,Faith House,2900.00, 14-Jan-2020
1287,Revenue,CAHD,Discretionary Housing Payment,Other Supplies & Services,Farringtons Sales & Lettings,2260.00, 08-Jan-2020
1288,Revenue,CAHD,Central - Bed Purchasing and Direct Payments,Permanent Nursing,Festival House,3055.04, 14-Jan-2020
1289,Revenue,CAHD,Central - Bed Purchasing and Direct Payments,Permanent Residential,Fieldview,3481.60, 14-Jan-2020
1290,Revenue,CAHD,North - bed purchasing and direct  payments,Fees & Charges Income - General,Fieldview,562.85, 14-Jan-2020
1291,Revenue,CAHD,North - bed purchasing and direct  payments,Permanent Residential,Fieldview,3200.00, 14-Jan-2020
1292,Revenue,CAHD,Central - Bed Purchasing and Direct Payments,Respite Planned - Residential,Fieldview,1578.57, 14-Jan-2020
1293,Revenue,CAHD,MH Purchasing - Younger,Permanent Nursing,Fieldview,5496.52, 14-Jan-2020
1294,Revenue,CAHD,Statemented Support Payments to OLAs,Other L.A.'s - General,Filton Avenue Primary School,1131.84, 29-Jan-2020
1295,Revenue,CAHD,Statemented Support Payments to OLAs,Other L.A.'s - General,Filton Avenue Primary School,1332.27, 29-Jan-2020
1296,Revenue,CAHD,Early Years Inclusion Fund,Other Public Bodies,First Friends (Mangotsfield),1800.00, 07-Jan-2020
1297,Revenue,CAHD,EARLY YEARS DISABILITY  ACCES FUND,Preventative Assistance,First Friends (Mangotsfield),615.00, 20-Jan-2020
1298,Revenue,CAHD,CSC - Agency Fostering,Foster Parent Allowances,Five Rivers Child Care Limited,4069.86, 31-Jan-2020
1299,Revenue,CAHD,CSC - Agency Fostering,Foster Parent Allowances,Five Rivers Child Care Limited,3627.00, 31-Jan-2020
1300,Revenue,CAHD,CSC - Agency Fostering,Foster Parent Allowances,Five Rivers Child Care Limited,4291.29, 31-Jan-2020
1301,Revenue,CAHD,CSC - Agency Fostering,Foster Parent Allowances,Five Rivers Child Care Limited,3518.19, 31-Jan-2020
1302,Revenue,CAHD,CSC - Agency Fostering,Foster Parent Allowances,Five Rivers Child Care Limited,3447.82, 31-Jan-2020
1303,Revenue,CAHD,CSC - Agency Fostering,Foster Parent Allowances,Five Rivers Child Care Limited,3447.82, 31-Jan-2020
1304,Revenue,CAHD,CSC - Agency Fostering,Foster Parent Allowances,Five Rivers Child Care Limited,3671.29, 31-Jan-2020
1305,Revenue,CAHD,CSC - LAC Placements,Personal Needs of Clients,Fledglings Day Nursery,842.80, 07-Jan-2020
1306,Revenue,CAHD,CSC - Agency Fostering,Foster Parent Allowances,Foster Care Associates Limited,4131.68, 22-Jan-2020
1307,Revenue,CAHD,CSC - Agency Fostering,Foster Parent Allowances,Foster Care Associates Limited,3627.00, 14-Jan-2020
1308,Revenue,CAHD,CSC - Agency Fostering,Foster Parent Allowances,Foster Care Associates Limited,3769.91, 14-Jan-2020
1309,Revenue,CAHD,CSC - Parent & Child Assessments,Foster Parent Allowances,Fostering Solutions Limited,5869.54, 31-Jan-2020
1310,Revenue,CAHD,Central - Commissioned Services,Other Small Contracts,Fourways Care Limited,318.00, 06-Jan-2020
1311,Revenue,CAHD,South - Commissioned Services,Other Small Contracts,Fourways Care Limited,876.80, 06-Jan-2020
1312,Revenue,CAHD,North - Community based support,Day Care / Social Activities,Fourways Care Limited,82.96, 06-Jan-2020
1313,Revenue,CAHD,North - Community based support,Other Small Contracts,Fourways Care Limited,10989.12, 06-Jan-2020
1314,Revenue,CAHD,South - Commissioned Services,Other Small Contracts,Fourways Care Limited,522.16, 09-Jan-2020
1315,Revenue,CAHD,North - Community based support,Day Care / Social Activities,Fourways Care Limited,68.32, 09-Jan-2020
1316,Revenue,CAHD,North - Community based support,Other Small Contracts,Fourways Care Limited,9325.28, 09-Jan-2020
1317,Revenue,CAHD,Central - Commissioned Services,Other Small Contracts,Fourways Care Limited,180.00, 23-Jan-2020
1318,Revenue,CAHD,South - Commissioned Services,Other Small Contracts,Fourways Care Limited,671.84, 23-Jan-2020
1319,Revenue,CAHD,North - Community based support,Day Care / Social Activities,Fourways Care Limited,78.08, 23-Jan-2020
1320,Revenue,CAHD,North - Community based support,Other Small Contracts,Fourways Care Limited,10786.08, 23-Jan-2020
1321,Revenue,CAHD,Central - Commissioned Services,Other Small Contracts,Fourways Care Limited,348.00, 29-Jan-2020
1322,Revenue,CAHD,South - Commissioned Services,Other Small Contracts,Fourways Care Limited,691.36, 29-Jan-2020
1323,Revenue,CAHD,North - Community based support,Day Care / Social Activities,Fourways Care Limited,102.48, 29-Jan-2020
1324,Revenue,CAHD,North - Community based support,Other Small Contracts,Fourways Care Limited,10831.52, 29-Jan-2020
1325,Revenue,CAHD,Pathway 1 - Re-Ablement Home Care,Other Small Contracts,Fourways Care Limited,2903.60, 03-Jan-2020
1326,Revenue,CAHD,Supporting People Programme,Grants to Voluntary Bodies,Freeways Trust Limited,3265.00, 31-Jan-2020
1327,Revenue,CAHD,South - Commissioned Services,Day Care / Social Activities,Freeways Trust Limited,1038.96, 10-Jan-2020
1328,Revenue,CAHD,Central - Commissioned Services,Other Small Contracts,Freeways Trust Limited,577.20, 10-Jan-2020
1329,Revenue,CAHD,North - Community based support,Other Small Contracts,Freeways Trust Limited,846.56, 13-Jan-2020
1330,Revenue,CAHD,Central - Commissioned Services,Other Small Contracts,Freeways Trust Limited,769.60, 30-Jan-2020
1331,Revenue,CAHD,South - Commissioned Services,Day Care / Social Activities,Freeways Trust Limited,836.94, 30-Jan-2020
1332,Revenue,CAHD,Central - Bed Purchasing and Direct Payments,Permanent Residential,Freeways Trust Limited,9350.88, 14-Jan-2020
1333,Revenue,CAHD,Central - Bed Purchasing and Direct Payments,Permanent Residential,Freeways Trust Limited,5241.32, 14-Jan-2020
1334,Revenue,CAHD,Central - Bed Purchasing and Direct Payments,Permanent Residential,Freeways Trust Limited,7921.20, 14-Jan-2020
1335,Revenue,CAHD,Central - Bed Purchasing and Direct Payments,Permanent Residential,Freeways Trust Limited,4374.80, 14-Jan-2020
1336,Revenue,CAHD,Central - Bed Purchasing and Direct Payments,Permanent Residential,Freeways Trust Limited,9274.16, 14-Jan-2020
1337,Revenue,CAHD,Central - Bed Purchasing and Direct Payments,Permanent Residential,Freeways Trust Limited,5051.28, 14-Jan-2020
1338,Revenue,CAHD,Central - Bed Purchasing and Direct Payments,Permanent Residential,Freeways Trust Limited,9767.36, 14-Jan-2020
1339,Revenue,CAHD,Central - Bed Purchasing and Direct Payments,Permanent Residential,Freeways Trust Limited,5297.88, 14-Jan-2020
1340,Revenue,CAHD,South - bed purchasing and direct  payments,Permanent Residential,Freeways Trust Limited,7551.28, 14-Jan-2020
1341,Revenue,CAHD,South - bed purchasing and direct  payments,Permanent Residential,Freeways Trust Limited,4345.04, 14-Jan-2020
1342,Revenue,CAHD,Central - Bed Purchasing and Direct Payments,Permanent Residential,Freeways Trust Limited,7027.60, 14-Jan-2020
1343,Revenue,CAHD,Central - Bed Purchasing and Direct Payments,Permanent Residential,Freeways Trust Limited,3928.00, 14-Jan-2020
1344,Revenue,CAHD,Central - Bed Purchasing and Direct Payments,Permanent Residential,Freeways Trust Limited,9708.16, 14-Jan-2020
1345,Revenue,CAHD,Central - Bed Purchasing and Direct Payments,Permanent Residential,Freeways Trust Limited,5268.28, 14-Jan-2020
1346,Revenue,CAHD,Central - Bed Purchasing and Direct Payments,Permanent Residential,Freeways Trust Limited,10920.48, 14-Jan-2020
1347,Revenue,CAHD,Central - Bed Purchasing and Direct Payments,Permanent Residential,Freeways Trust Limited,2937.22, 14-Jan-2020
1348,Revenue,CAHD,Central - Commissioned Services,Permanent Residential,Freeways Trust Limited,2937.22, 14-Jan-2020
1349,Revenue,CAHD,North - Community based support,Supported Living,Freeways Trust Ltd,845.52, 14-Jan-2020
1350,Revenue,CAHD,S28A cases,Permanent Residential,Freeways Trust Ltd,3886.64, 14-Jan-2020
1351,Revenue,CAHD,North - bed purchasing and direct  payments,Permanent Residential,Freeways Trust Ltd,3763.40, 14-Jan-2020
1352,Revenue,CAHD,South - bed purchasing and direct  payments,Permanent Residential,Freeways Trust Ltd,3991.40, 14-Jan-2020
1353,Revenue,CAHD,South - bed purchasing and direct  payments,Permanent Residential,Freeways Trust Ltd,5844.55, 14-Jan-2020
1354,Revenue,CAHD,North - bed purchasing and direct  payments,Permanent Residential,Freeways Trust Ltd,3301.04, 14-Jan-2020
1355,Revenue,CAHD,South - bed purchasing and direct  payments,Fees & Charges Income - General,Freeways Trust Ltd,817.77, 14-Jan-2020
1356,Revenue,CAHD,North - bed purchasing and direct  payments,Permanent Residential,Freeways Trust Ltd,3381.20, 14-Jan-2020
1357,Revenue,CAHD,North - bed purchasing and direct  payments,Permanent Residential,Freeways Trust Ltd,3984.12, 14-Jan-2020
1358,Revenue,CAHD,18-25 Year Olds,Permanent Residential,Freeways Trust Ltd,3680.48, 14-Jan-2020
1359,Revenue,CAHD,Section 117 Placements MH Younger,Permanent Residential,Freeways Trust Ltd,3339.04, 14-Jan-2020
1360,Revenue,CAHD,Central - Commissioned Services,Day Care / Social Activities,Frenchay Beckspool Building,1895.60, 14-Jan-2020
1361,Revenue,CAHD,South - Commissioned Services,Day Care / Social Activities,Frenchay Beckspool Building,902.40, 14-Jan-2020
1362,Revenue,CAHD,South - Commissioned Services,Day Care / Social Activities,Frenchay Beckspool Building,640.08, 14-Jan-2020
1363,Revenue,CAHD,Pathway 3 - (Complex Beds),Permanent Nursing,Frenchay House,3343.00, 02-Jan-2020
1364,Revenue,CAHD,Pathway 3 - (Complex Beds),Permanent Nursing,Frenchay House,3343.00, 30-Jan-2020
1365,Revenue,CAHD,North - bed purchasing and direct  payments,Permanent Nursing,Frenchay Park Nursing Home,3481.60, 14-Jan-2020
1366,Revenue,CAHD,Central - Bed Purchasing and Direct Payments,Permanent Nursing,Frenchay Park Nursing Home,1700.00, 14-Jan-2020
1367,Revenue,CAHD,Central - Commissioned Services,Permanent Nursing,Frenchay Park Nursing Home,1700.00, 14-Jan-2020
1368,Revenue,CAHD,Community Support - South,Preventative Assistance,Fresh Fit Installations,5200.00, 30-Jan-2020
1369,Revenue,CAHD,Tobacco Control,Other Small Contracts,Frome Valley Medical Centre,760.00, 20-Jan-2020
1370,Revenue,CAHD,CSC - Social Work Team - CENTRAL,Agency Staff (Admin/Support Staff) Pay,Frontline Staffing Ltd,1766.32, 17-Jan-2020
1371,Revenue,CAHD,CSC - Social Work Team - CENTRAL,Agency Staff (Admin/Support Staff) Pay,Frontline Staffing Ltd,1731.23, 17-Jan-2020
1372,Revenue,CAHD,CSC - Social Work Team - CENTRAL,Agency Staff (Admin/Support Staff) Pay,Frontline Staffing Ltd,1497.28, 17-Jan-2020
1373,Revenue,CAHD,CSC - Through & Leaving Care Team,Agency Staff (Admin/Support Staff) Pay,Frontline Staffing Ltd,1778.02, 21-Jan-2020
1374,Revenue,CAHD,CSC - Through & Leaving Care Team,Agency Staff (Admin/Support Staff) Pay,Frontline Staffing Ltd,1778.02, 21-Jan-2020
1375,Revenue,CAHD,CSC - Social Work Team - CENTRAL,Agency Staff (Admin/Support Staff) Pay,Frontline Staffing Ltd,1871.60, 17-Jan-2020
1376,Revenue,CAHD,CSC - Social Work Team - NORTH,Agency Staff (Admin/Support Staff) Pay,Frontline Staffing Ltd,1731.23, 02-Jan-2020
1377,Revenue,CAHD,CSC - Social Work Team - CENTRAL,Agency Staff (Admin/Support Staff) Pay,Frontline Staffing Ltd,1684.44, 06-Jan-2020
1378,Revenue,CAHD,CSC - Social Work Team - NORTH,Agency Staff (Admin/Support Staff) Pay,Frontline Staffing Ltd,1871.60, 06-Jan-2020
1379,Revenue,CAHD,CSC - Social Work Team - NORTH,Agency Staff (Admin/Support Staff) Pay,Frontline Staffing Ltd,1204.84, 06-Jan-2020
1380,Revenue,CAHD,CSC - Through & Leaving Care Team,Agency Staff (Admin/Support Staff) Pay,Frontline Staffing Ltd,1731.23, 21-Jan-2020
1381,Revenue,CAHD,CSC - Social Work Team - CENTRAL,Agency Staff (Admin/Support Staff) Pay,Frontline Staffing Ltd,1497.28, 06-Jan-2020
1382,Revenue,CAHD,CSC - Social Work Team - SOUTH,Agency Staff (Admin/Support Staff) Pay,Frontline Staffing Ltd,1555.77, 09-Jan-2020
1383,Revenue,CAHD,CSC - Through & Leaving Care Team,Agency Staff (Admin/Support Staff) Pay,Frontline Staffing Ltd,491.30, 23-Jan-2020
1384,Revenue,CAHD,CSC - Social Work Team - CENTRAL,Agency Staff (Admin/Support Staff) Pay,Frontline Staffing Ltd,1497.28, 14-Jan-2020
1385,Revenue,CAHD,CSC - Social Work Team - NORTH,Agency Staff (Admin/Support Staff) Pay,Frontline Staffing Ltd,1263.33, 17-Jan-2020
1386,Revenue,CAHD,CSC - Social Work Team - NORTH,Agency Staff (Admin/Support Staff) Pay,Frontline Staffing Ltd,1731.23, 20-Jan-2020
1387,Revenue,CAHD,CSC - Social Work Team - CENTRAL,Agency Staff (Admin/Support Staff) Pay,Frontline Staffing Ltd,1380.31, 21-Jan-2020
1388,Revenue,CAHD,CSC - Social Work Team - SOUTH,Agency Staff (Admin/Support Staff) Pay,Frontline Staffing Ltd,1649.35, 22-Jan-2020
1389,Revenue,CAHD,CSC - Social Work Team - SOUTH,Agency Staff (Admin/Support Staff) Pay,Frontline Staffing Ltd,1871.60, 22-Jan-2020
1390,Revenue,CAHD,CSC - Social Work Team - CENTRAL,Agency Staff (Admin/Support Staff) Pay,Frontline Staffing Ltd,1497.28, 22-Jan-2020
1391,Revenue,CAHD,CSC - Social Work Team - CENTRAL,Agency Staff (Admin/Support Staff) Pay,Frontline Staffing Ltd,1602.56, 27-Jan-2020
1392,Revenue,CAHD,CSC - Social Work Team - CENTRAL,Agency Staff (Admin/Support Staff) Pay,Frontline Staffing Ltd,1497.28, 27-Jan-2020
1393,Revenue,CAHD,Central - Bed Purchasing and Direct Payments,Permanent Nursing,Fshc  1St Floor,2398.00, 14-Jan-2020
1394,Revenue,CAHD,South Glos Users in South Glos Homes,Permanent Nursing,Fshc  1St Floor,662.24, 14-Jan-2020
1395,Revenue,CAHD,Central - Bed Purchasing and Direct Payments,Permanent Nursing,Fshc  1St Floor,2398.00, 14-Jan-2020
1396,Revenue,CAHD,South Glos Users in South Glos Homes,Permanent Nursing,Fshc  1St Floor,662.24, 14-Jan-2020
1397,Revenue,CAHD,South Glos Users in South Glos Homes,Permanent Nursing,Fshc  1St Floor,662.24, 14-Jan-2020
1398,Revenue,CAHD,Central - Bed Purchasing and Direct Payments,Permanent Residential,Fshc  1St Floor,2764.80, 14-Jan-2020
1399,Revenue,CAHD,Central - Bed Purchasing and Direct Payments,Permanent Residential,Fshc  1St Floor,2230.32, 14-Jan-2020
1400,Revenue,CAHD,South Glos Users in South Glos Homes,Permanent Nursing,Fshc  1St Floor,662.24, 14-Jan-2020
1401,Revenue,CAHD,South Glos Users in South Glos Homes,Permanent Nursing,Fshc  1St Floor,662.24, 14-Jan-2020
1402,Revenue,CAHD,Central - Bed Purchasing and Direct Payments,Permanent Residential,Fshc  1St Floor,2768.00, 14-Jan-2020
1403,Revenue,CAHD,South - bed purchasing and direct  payments,Permanent Residential,Fshc  1St Floor,2817.36, 14-Jan-2020
1404,Revenue,CAHD,North - bed purchasing and direct  payments,Permanent Nursing,Fshc  1St Floor,4043.40, 14-Jan-2020
1405,Revenue,CAHD,North - bed purchasing and direct  payments,Permanent Nursing,Fshc  1St Floor,2398.00, 14-Jan-2020
1406,Revenue,CAHD,South Glos Users in South Glos Homes,Permanent Nursing,Fshc  1St Floor,662.24, 14-Jan-2020
1407,Revenue,CAHD,Central - Bed Purchasing and Direct Payments,Permanent Nursing,Fshc  1St Floor,2398.00, 14-Jan-2020
1408,Revenue,CAHD,South Glos Users in South Glos Homes,Permanent Nursing,Fshc  1St Floor,662.24, 14-Jan-2020
1409,Revenue,CAHD,Central - Bed Purchasing and Direct Payments,Permanent Nursing,Fshc  1St Floor,2398.00, 14-Jan-2020
1410,Revenue,CAHD,South Glos Users in South Glos Homes,Permanent Nursing,Fshc  1St Floor,662.24, 14-Jan-2020
1411,Revenue,CAHD,North - bed purchasing and direct  payments,Permanent Nursing,Fshc  1St Floor,2398.00, 14-Jan-2020
1412,Revenue,CAHD,South Glos Users in South Glos Homes,Permanent Nursing,Fshc  1St Floor,662.24, 14-Jan-2020
1413,Revenue,CAHD,Central - Bed Purchasing and Direct Payments,Permanent Residential,Fshc  1St Floor,2768.00, 14-Jan-2020
1414,Revenue,CAHD,South Glos Users in South Glos Homes,Permanent Nursing,Fshc  1St Floor,662.24, 14-Jan-2020
1415,Revenue,CAHD,North - bed purchasing and direct  payments,Permanent Nursing,Fshc  1St Floor,2398.00, 14-Jan-2020
1416,Revenue,CAHD,South Glos Users in South Glos Homes,Permanent Nursing,Fshc  1St Floor,662.24, 14-Jan-2020
1417,Revenue,CAHD,North - bed purchasing and direct  payments,Permanent Nursing,Fshc  1St Floor,2398.00, 14-Jan-2020
1418,Revenue,CAHD,South Glos Users in South Glos Homes,Permanent Nursing,Fshc  1St Floor,662.24, 14-Jan-2020
1419,Revenue,CAHD,South Glos Users in South Glos Homes,Permanent Nursing,Fshc  1St Floor,662.24, 14-Jan-2020
1420,Revenue,CAHD,Central - Bed Purchasing and Direct Payments,Permanent Nursing,Fshc  1St Floor,2471.60, 14-Jan-2020
1421,Revenue,CAHD,South Glos Users in South Glos Homes,Permanent Nursing,Fshc  1St Floor,662.24, 14-Jan-2020
1422,Revenue,CAHD,North - bed purchasing and direct  payments,Permanent Nursing,Fshc  1St Floor,2439.16, 14-Jan-2020
1423,Revenue,CAHD,South Glos Users in South Glos Homes,Permanent Nursing,Fshc  1St Floor,662.24, 14-Jan-2020
1424,Revenue,CAHD,South Glos Users in South Glos Homes,Permanent Nursing,Fshc  1St Floor,662.24, 14-Jan-2020
1425,Revenue,CAHD,Central - Bed Purchasing and Direct Payments,Permanent Nursing,Fshc  1St Floor,2366.64, 14-Jan-2020
1426,Revenue,CAHD,North - bed purchasing and direct  payments,Permanent Residential,Fshc  1St Floor,2439.16, 14-Jan-2020
1427,Revenue,CAHD,South Glos Users in South Glos Homes,Permanent Nursing,Fshc  1St Floor,662.24, 14-Jan-2020
1428,Revenue,CAHD,South Glos Users in South Glos Homes,Permanent Nursing,Fshc  1St Floor,662.24, 14-Jan-2020
1429,Revenue,CAHD,South Glos Users in South Glos Homes,Permanent Nursing,Fshc  1St Floor,662.24, 14-Jan-2020
1430,Revenue,CAHD,Central - Bed Purchasing and Direct Payments,Permanent Nursing,Fshc  1St Floor,2398.00, 14-Jan-2020
1431,Revenue,CAHD,Central - Bed Purchasing and Direct Payments,Permanent Residential,Fshc  1St Floor,2768.00, 14-Jan-2020
1432,Revenue,CAHD,South - bed purchasing and direct  payments,Permanent Residential,Fshc  1St Floor,2768.00, 14-Jan-2020
1433,Revenue,CAHD,South Glos Users in South Glos Homes,Permanent Nursing,Fshc  1St Floor,662.24, 14-Jan-2020
1434,Revenue,CAHD,North - bed purchasing and direct  payments,Permanent Nursing,Fshc  1St Floor,2398.00, 14-Jan-2020
1435,Revenue,CAHD,South Glos Users in South Glos Homes,Permanent Nursing,Fshc  1St Floor,662.24, 14-Jan-2020
1436,Revenue,CAHD,South Glos Users in South Glos Homes,Permanent Nursing,Fshc  1St Floor,662.24, 14-Jan-2020
1437,Revenue,CAHD,South Glos Users in South Glos Homes,Permanent Nursing,Fshc  1St Floor,662.24, 14-Jan-2020
1438,Revenue,CAHD,Central - Bed Purchasing and Direct Payments,Permanent Nursing,Fshc  1St Floor,2398.00, 14-Jan-2020
1439,Revenue,CAHD,South Glos Users in South Glos Homes,Permanent Nursing,Fshc  1St Floor,662.24, 14-Jan-2020
1440,Revenue,CAHD,South Glos Users in South Glos Homes,Permanent Nursing,Fshc  1St Floor,662.24, 14-Jan-2020
1441,Revenue,CAHD,South Glos Users in South Glos Homes,Permanent Nursing,Fshc  1St Floor,662.24, 14-Jan-2020
1442,Revenue,CAHD,South Glos Users in South Glos Homes,Permanent Nursing,Fshc  1St Floor,662.24, 14-Jan-2020
1443,Revenue,CAHD,Central - Bed Purchasing and Direct Payments,Permanent Nursing,Fshc  1St Floor,2398.00, 14-Jan-2020
1444,Revenue,CAHD,South Glos Users in South Glos Homes,Permanent Nursing,Fshc  1St Floor,662.24, 14-Jan-2020
1445,Revenue,CAHD,Central - Bed Purchasing and Direct Payments,Permanent Nursing,Fshc  1St Floor,2398.00, 14-Jan-2020
1446,Revenue,CAHD,South Glos Users in South Glos Homes,Permanent Nursing,Fshc  1St Floor,662.24, 14-Jan-2020
1447,Revenue,CAHD,South - bed purchasing and direct  payments,Permanent Residential,Fshc  1St Floor,2768.00, 14-Jan-2020
1448,Revenue,CAHD,South Glos Users in South Glos Homes,Permanent Nursing,Fshc  1St Floor,662.24, 14-Jan-2020
1449,Revenue,CAHD,Central - Bed Purchasing and Direct Payments,Permanent Nursing,Fshc  1St Floor,2311.20, 14-Jan-2020
1450,Revenue,CAHD,South Glos Users in South Glos Homes,Permanent Nursing,Fshc  1St Floor,662.24, 14-Jan-2020
1451,Revenue,CAHD,North - bed purchasing and direct  payments,Permanent Nursing,Fshc  1St Floor,2437.12, 14-Jan-2020
1452,Revenue,CAHD,South Glos Users in South Glos Homes,Permanent Nursing,Fshc  1St Floor,662.24, 14-Jan-2020
1453,Revenue,CAHD,Central - Bed Purchasing and Direct Payments,Permanent Nursing,Fshc  1St Floor,2398.00, 14-Jan-2020
1454,Revenue,CAHD,South Glos Users in South Glos Homes,Permanent Nursing,Fshc  1St Floor,662.24, 14-Jan-2020
1455,Revenue,CAHD,Central - Bed Purchasing and Direct Payments,Permanent Residential,Fshc  1St Floor,2834.44, 14-Jan-2020
1456,Revenue,CAHD,North - bed purchasing and direct  payments,Permanent Nursing,Fshc  1St Floor,2398.00, 14-Jan-2020
1457,Revenue,CAHD,South Glos Users in South Glos Homes,Permanent Nursing,Fshc  1St Floor,662.24, 14-Jan-2020
1458,Revenue,CAHD,North - Community based support,Permanent Nursing,Fshc  1St Floor,1199.00, 14-Jan-2020
1459,Revenue,CAHD,North - bed purchasing and direct  payments,Permanent Nursing,Fshc  1St Floor,1199.00, 14-Jan-2020
1460,Revenue,CAHD,South Glos Users in South Glos Homes,Permanent Nursing,Fshc  1St Floor,662.24, 14-Jan-2020
1461,Revenue,CAHD,Central - Commissioned Services,Permanent Nursing,Fshc  1St Floor,1199.00, 14-Jan-2020
1462,Revenue,CAHD,Central - Bed Purchasing and Direct Payments,Permanent Nursing,Fshc  1St Floor,1199.00, 14-Jan-2020
1463,Revenue,CAHD,South Glos Users in South Glos Homes,Permanent Nursing,Fshc  1St Floor,662.24, 14-Jan-2020
1464,Revenue,CAHD,South Glos Users in South Glos Homes,Permanent Nursing,Fshc  1St Floor,662.24, 14-Jan-2020
1465,Revenue,CAHD,North - bed purchasing and direct  payments,Permanent Nursing,Fshc  1St Floor,2356.60, 14-Jan-2020
1466,Revenue,CAHD,South Glos Users in South Glos Homes,Permanent Nursing,Fshc  1St Floor,662.24, 14-Jan-2020
1467,Revenue,CAHD,North - bed purchasing and direct  payments,Permanent Nursing,Fshc  1St Floor,2471.44, 14-Jan-2020
1468,Revenue,CAHD,South Glos Users in South Glos Homes,Permanent Nursing,Fshc  1St Floor,662.24, 14-Jan-2020
1469,Revenue,CAHD,Central - Bed Purchasing and Direct Payments,Permanent Nursing,Fshc  1St Floor,2486.12, 14-Jan-2020
1470,Revenue,CAHD,South Glos Users in South Glos Homes,Permanent Nursing,Fshc  1St Floor,662.24, 14-Jan-2020
1471,Revenue,CAHD,North - bed purchasing and direct  payments,Permanent Residential,Fshc  1St Floor,3400.00, 14-Jan-2020
1472,Revenue,CAHD,South Glos Users in South Glos Homes,Permanent Nursing,Fshc  1St Floor,662.24, 14-Jan-2020
1473,Revenue,CAHD,Central - Bed Purchasing and Direct Payments,Permanent Nursing,Fshc  1St Floor,3200.00, 14-Jan-2020
1474,Revenue,CAHD,South Glos Users in South Glos Homes,Permanent Nursing,Fshc  1St Floor,662.24, 14-Jan-2020
1475,Revenue,CAHD,North - bed purchasing and direct  payments,Permanent Nursing,Fshc  1St Floor,2141.07, 14-Jan-2020
1476,Revenue,CAHD,South Glos Users in South Glos Homes,Permanent Nursing,Fshc  1St Floor,662.24, 14-Jan-2020
1477,Revenue,CAHD,Central - Bed Purchasing and Direct Payments,Permanent Nursing,Fshc  1St Floor,3234.72, 14-Jan-2020
1478,Revenue,CAHD,South Glos Users in South Glos Homes,Permanent Nursing,Fshc  1St Floor,662.24, 14-Jan-2020
1479,Revenue,CAHD,Central - Bed Purchasing and Direct Payments,Permanent Nursing,Fshc  1St Floor,3472.44, 14-Jan-2020
1480,Revenue,CAHD,South Glos Users in South Glos Homes,Permanent Nursing,Fshc  1St Floor,662.24, 14-Jan-2020
1481,Revenue,CAHD,South Glos Users in South Glos Homes,Permanent Nursing,Fshc  1St Floor,662.24, 14-Jan-2020
1482,Revenue,CAHD,South Glos Users in South Glos Homes,Permanent Nursing,Fshc  1St Floor,662.24, 14-Jan-2020
1483,Revenue,CAHD,Central - Commissioned Services,Permanent Nursing,Fshc  1St Floor,2937.76, 14-Jan-2020
1484,Revenue,CAHD,Central - Commissioned Services,Permanent Nursing,Fshc  1St Floor,1573.80, 14-Jan-2020
1485,Revenue,CAHD,Central - Bed Purchasing and Direct Payments,Permanent Nursing,Fshc  1St Floor,4001.40, 14-Jan-2020
1486,Revenue,CAHD,South Glos Users in South Glos Homes,Permanent Nursing,Fshc  1St Floor,662.24, 14-Jan-2020
1487,Revenue,CAHD,Central - Bed Purchasing and Direct Payments,Permanent Nursing,Fshc  1St Floor,2731.36, 14-Jan-2020
1488,Revenue,CAHD,South Glos Users in South Glos Homes,Permanent Nursing,Fshc  1St Floor,662.24, 14-Jan-2020
1489,Revenue,CAHD,Central - Bed Purchasing and Direct Payments,Permanent Nursing,Fshc  1St Floor,2803.48, 14-Jan-2020
1490,Revenue,CAHD,South Glos Users in South Glos Homes,Permanent Nursing,Fshc  1St Floor,662.24, 14-Jan-2020
1491,Revenue,CAHD,South Glos Users in South Glos Homes,Permanent Nursing,Fshc  1St Floor,662.24, 14-Jan-2020
1492,Revenue,CAHD,Central - Bed Purchasing and Direct Payments,Permanent Nursing,Fshc  1St Floor,2997.60, 14-Jan-2020
1493,Revenue,CAHD,South Glos Users in South Glos Homes,Permanent Nursing,Fshc  1St Floor,662.24, 14-Jan-2020
1494,Revenue,CAHD,South Glos Users in South Glos Homes,Permanent Nursing,Fshc  1St Floor,662.24, 14-Jan-2020
1495,Revenue,CAHD,Central - Bed Purchasing and Direct Payments,Permanent Nursing,Fshc  1St Floor,2833.76, 14-Jan-2020
1496,Revenue,CAHD,South Glos Users in South Glos Homes,Permanent Nursing,Fshc  1St Floor,662.24, 14-Jan-2020
1497,Revenue,CAHD,Central - Bed Purchasing and Direct Payments,Permanent Residential,Fshc  1St Floor,28006.38, 14-Jan-2020
1498,Revenue,CAHD,Central - Bed Purchasing and Direct Payments,Permanent Residential,Fshc  1St Floor,6374.84, 14-Jan-2020
1499,Revenue,CAHD,Central - Bed Purchasing and Direct Payments,Permanent Residential,Fshc  1St Floor,2948.04, 14-Jan-2020
1500,Revenue,CAHD,Central - Bed Purchasing and Direct Payments,Fees & Charges Income - General,Fshc  1St Floor,1203.44, 14-Jan-2020
1501,Revenue,CAHD,Central - Bed Purchasing and Direct Payments,Fees & Charges Income - General,Fshc  1St Floor,5388.96, 14-Jan-2020
1502,Revenue,CAHD,North - bed purchasing and direct  payments,Permanent Nursing,Fshc  1St Floor,2587.56, 14-Jan-2020
1503,Revenue,CAHD,South Glos Users in South Glos Homes,Permanent Nursing,Fshc  1St Floor,662.24, 14-Jan-2020
1504,Revenue,CAHD,South Glos Users in South Glos Homes,Permanent Nursing,Fshc  1St Floor,662.24, 14-Jan-2020
1505,Revenue,CAHD,South Glos Users in South Glos Homes,Permanent Nursing,Fshc  1St Floor,662.24, 14-Jan-2020
1506,Revenue,CAHD,South Glos Users in South Glos Homes,Permanent Nursing,Fshc  1St Floor,662.24, 14-Jan-2020
1507,Revenue,CAHD,South Glos Users in South Glos Homes,Permanent Nursing,Fshc  1St Floor,662.24, 14-Jan-2020
1508,Revenue,CAHD,South Glos Users in South Glos Homes,Permanent Nursing,Fshc  1St Floor,662.24, 14-Jan-2020
1509,Revenue,CAHD,South Glos Users in South Glos Homes,Permanent Nursing,Fshc  1St Floor,662.24, 14-Jan-2020
1510,Revenue,CAHD,Central - Bed Purchasing and Direct Payments,Permanent Nursing,Fshc  1St Floor,2471.44, 14-Jan-2020
1511,Revenue,CAHD,South Glos Users in South Glos Homes,Permanent Nursing,Fshc  1St Floor,662.24, 14-Jan-2020
1512,Revenue,CAHD,Central - Bed Purchasing and Direct Payments,Permanent Nursing,Fshc  1St Floor,3038.56, 14-Jan-2020
1513,Revenue,CAHD,South Glos Users in South Glos Homes,Permanent Nursing,Fshc  1St Floor,662.24, 14-Jan-2020
1514,Revenue,CAHD,North - bed purchasing and direct  payments,Permanent Nursing,Fshc  1St Floor,2834.20, 14-Jan-2020
1515,Revenue,CAHD,South Glos Users in South Glos Homes,Permanent Nursing,Fshc  1St Floor,662.24, 14-Jan-2020
1516,Revenue,CAHD,South Glos Users in South Glos Homes,Permanent Nursing,Fshc  1St Floor,662.24, 14-Jan-2020
1517,Revenue,CAHD,Central - Bed Purchasing and Direct Payments,Permanent Nursing,Fshc  1St Floor,3234.72, 14-Jan-2020
1518,Revenue,CAHD,South Glos Users in South Glos Homes,Permanent Nursing,Fshc  1St Floor,662.24, 14-Jan-2020
1519,Revenue,CAHD,North - bed purchasing and direct  payments,Permanent Nursing,Fshc  1St Floor,2515.48, 14-Jan-2020
1520,Revenue,CAHD,South Glos Users in South Glos Homes,Permanent Nursing,Fshc  1St Floor,662.24, 14-Jan-2020
1521,Revenue,CAHD,South - bed purchasing and direct  payments,Permanent Nursing,Fshc  1St Floor,2616.12, 14-Jan-2020
1522,Revenue,CAHD,South Glos Users in South Glos Homes,Permanent Nursing,Fshc  1St Floor,662.24, 14-Jan-2020
1523,Revenue,CAHD,Central - Commissioned Services,Permanent Nursing,Fshc  1St Floor,1235.72, 14-Jan-2020
1524,Revenue,CAHD,South Glos Users in South Glos Homes,Permanent Nursing,Fshc  1St Floor,662.24, 14-Jan-2020
1525,Revenue,CAHD,Central - Bed Purchasing and Direct Payments,Permanent Nursing,Fshc  1St Floor,794.39, 14-Jan-2020
1526,Revenue,CAHD,South - bed purchasing and direct  payments,Permanent Nursing,Fshc  1St Floor,3243.36, 14-Jan-2020
1527,Revenue,CAHD,South - bed purchasing and direct  payments,Permanent Nursing,Fshc  1St Floor,698.40, 14-Jan-2020
1528,Revenue,CAHD,South Glos Users in South Glos Homes,Permanent Nursing,Fshc  1St Floor,662.24, 14-Jan-2020
1529,Revenue,CAHD,South - bed purchasing and direct  payments,Permanent Nursing,Fshc  1St Floor,2608.68, 14-Jan-2020
1530,Revenue,CAHD,South Glos Users in South Glos Homes,Permanent Nursing,Fshc  1St Floor,662.24, 14-Jan-2020
1531,Revenue,CAHD,South - bed purchasing and direct  payments,Permanent Nursing,Fshc  1St Floor,2504.28, 14-Jan-2020
1532,Revenue,CAHD,South Glos Users in South Glos Homes,Permanent Nursing,Fshc  1St Floor,662.24, 14-Jan-2020
1533,Revenue,CAHD,South Glos Users in South Glos Homes,Permanent Nursing,Fshc  1St Floor,662.24, 14-Jan-2020
1534,Revenue,CAHD,South - bed purchasing and direct  payments,Permanent Residential,Fshc  1St Floor,2662.40, 14-Jan-2020
1535,Revenue,CAHD,South - bed purchasing and direct  payments,Permanent Nursing,Fshc  1St Floor,2421.92, 14-Jan-2020
1536,Revenue,CAHD,South - bed purchasing and direct  payments,Fees & Charges Income - General,Fshc  1St Floor,1816.44, 14-Jan-2020
1537,Revenue,CAHD,South Glos Users in South Glos Homes,Permanent Nursing,Fshc  1St Floor,662.24, 14-Jan-2020
1538,Revenue,CAHD,South - bed purchasing and direct  payments,Permanent Nursing,Fshc  1St Floor,3892.37, 14-Jan-2020
1539,Revenue,CAHD,South - bed purchasing and direct  payments,Fees & Charges Income - General,Fshc  1St Floor,894.77, 14-Jan-2020
1540,Revenue,CAHD,South - bed purchasing and direct  payments,Permanent Residential,Fshc  1St Floor,2399.96, 14-Jan-2020
1541,Revenue,CAHD,South - bed purchasing and direct  payments,Permanent Nursing,Fshc  1St Floor,2421.92, 14-Jan-2020
1542,Revenue,CAHD,South Glos Users in South Glos Homes,Permanent Nursing,Fshc  1St Floor,662.24, 14-Jan-2020
1543,Revenue,CAHD,South Glos Users in South Glos Homes,Permanent Nursing,Fshc  1St Floor,662.24, 14-Jan-2020
1544,Revenue,CAHD,South - bed purchasing and direct  payments,Permanent Nursing,Fshc  1St Floor,2398.00, 14-Jan-2020
1545,Revenue,CAHD,South Glos Users in South Glos Homes,Permanent Nursing,Fshc  1St Floor,662.24, 14-Jan-2020
1546,Revenue,CAHD,South - bed purchasing and direct  payments,Permanent Residential,Fshc  1St Floor,2303.60, 14-Jan-2020
1547,Revenue,CAHD,North - bed purchasing and direct  payments,Permanent Nursing,Fshc  1St Floor,2401.84, 14-Jan-2020
1548,Revenue,CAHD,North - bed purchasing and direct  payments,Permanent Residential,Fshc  1St Floor,2174.20, 14-Jan-2020
1549,Revenue,CAHD,Central - Bed Purchasing and Direct Payments,Permanent Nursing,Fshc  1St Floor,4173.84, 14-Jan-2020
1550,Revenue,CAHD,North - bed purchasing and direct  payments,Permanent Nursing,Fshc  1St Floor,2657.80, 14-Jan-2020
1551,Revenue,CAHD,CSC - Asylum Seekers - Unaccompanied,Foster Parent Allowances,Fusion Fostering Ltd,714.07, 20-Jan-2020
1552,Revenue,CAHD,CSC - Agency Fostering,Foster Parent Allowances,Fusion Fostering Ltd,4209.05, 22-Jan-2020
1553,Revenue,CAHD,CSC - Asylum Seekers - Unaccompanied,Foster Parent Allowances,Fusion Fostering Ltd,1538.00, 20-Jan-2020
1554,Revenue,CAHD,CSC - Asylum Seekers - Unaccompanied,Foster Parent Allowances,Fusion Fostering Ltd,3405.57, 22-Jan-2020
1555,Revenue,CAHD,Bed and Breakfast,Other Supplies & Services,Individual,1295.86, 31-Jan-2020
1556,Revenue,CAHD,Bed and Breakfast,Other Supplies & Services,Individual,1295.86, 13-Jan-2020
1557,Revenue,CAHD,North - Community based support,Supported Living,Gladstone House,3174.16, 14-Jan-2020
1558,Revenue,CAHD,18-25 Year Olds,Supported Living,Gladstone House,3174.16, 14-Jan-2020
1559,Revenue,CAHD,South - bed purchasing and direct  payments,Permanent Residential,Gladstone House,5999.84, 14-Jan-2020
1560,Revenue,CAHD,Jointly Funded H&SC Packages,Permanent Residential,Gladstone House,783.98, 14-Jan-2020
1561,Revenue,CAHD,MH Purchasing - Younger,Permanent Residential,Gladstone House,3135.90, 14-Jan-2020
1562,Revenue,CAHD,North - bed purchasing and direct  payments,Permanent Residential,Glan Y Felin,6803.40, 14-Jan-2020
1563,Revenue,CAHD,South - bed purchasing and direct  payments,Permanent Residential,Glasallt Fawr,5344.40, 14-Jan-2020
1564,Revenue,CAHD,North - bed purchasing and direct  payments,Permanent Nursing,Glebe House Nursing Home,3664.16, 14-Jan-2020
1565,Revenue,CAHD,South Glos Users in South Glos Homes,Permanent Nursing,Glebe House Nursing Home,662.24, 14-Jan-2020
1566,Revenue,CAHD,North - bed purchasing and direct  payments,Permanent Nursing,Glebe House Nursing Home,3973.12, 14-Jan-2020
1567,Revenue,CAHD,South Glos Users in South Glos Homes,Permanent Nursing,Glebe House Nursing Home,662.24, 14-Jan-2020
1568,Revenue,CAHD,South Glos Users in South Glos Homes,Permanent Nursing,Glebe House Nursing Home,662.24, 14-Jan-2020
1569,Revenue,CAHD,South Glos Users in South Glos Homes,Permanent Nursing,Glebe House Nursing Home,662.24, 14-Jan-2020
1570,Revenue,CAHD,South Glos Users in South Glos Homes,Permanent Nursing,Glebe House Nursing Home,662.24, 14-Jan-2020
1571,Revenue,CAHD,South Glos Users in South Glos Homes,Permanent Nursing,Glebe House Nursing Home,662.24, 14-Jan-2020
1572,Revenue,CAHD,North - bed purchasing and direct  payments,Permanent Residential,Glebe House Nursing Home,3785.04, 14-Jan-2020
1573,Revenue,CAHD,South Glos Users in South Glos Homes,Permanent Nursing,Glebe House Nursing Home,662.24, 14-Jan-2020
1574,Revenue,CAHD,North - bed purchasing and direct  payments,Permanent Residential,Glebe House Nursing Home,3833.84, 14-Jan-2020
1575,Revenue,CAHD,North - bed purchasing and direct  payments,Permanent Nursing,Glebe House Nursing Home,4080.00, 14-Jan-2020
1576,Revenue,CAHD,South Glos Users in South Glos Homes,Permanent Nursing,Glebe House Nursing Home,662.24, 14-Jan-2020
1577,Revenue,CAHD,South Glos Users in South Glos Homes,Permanent Nursing,Glebe House Nursing Home,662.24, 14-Jan-2020
1578,Revenue,CAHD,North - bed purchasing and direct  payments,Permanent Nursing,Glebe House Nursing Home,4048.60, 14-Jan-2020
1579,Revenue,CAHD,South Glos Users in South Glos Homes,Permanent Nursing,Glebe House Nursing Home,662.24, 14-Jan-2020
1580,Revenue,CAHD,Central - Bed Purchasing and Direct Payments,Permanent Residential,Glebe House Nursing Home,3980.00, 14-Jan-2020
1581,Revenue,CAHD,South Glos Users in South Glos Homes,Permanent Nursing,Glebe House Nursing Home,662.24, 14-Jan-2020
1582,Revenue,CAHD,North - bed purchasing and direct  payments,Respite Planned - Nursing,Glebe House Nursing Home,1894.29, 14-Jan-2020
1583,Revenue,CAHD,South Glos Users in South Glos Homes,Permanent Nursing,Glebe House Nursing Home,1324.48, 14-Jan-2020
1584,Revenue,CAHD,South Glos Users in South Glos Homes,Permanent Nursing,Glebe House Nursing Home,662.24, 14-Jan-2020
1585,Revenue,CAHD,South Glos Users in South Glos Homes,Permanent Nursing,Glebe House Nursing Home,662.24, 14-Jan-2020
1586,Revenue,CAHD,North - bed purchasing and direct  payments,Permanent Nursing,Glebe House Nursing Home,3960.16, 14-Jan-2020
1587,Revenue,CAHD,South Glos Users in South Glos Homes,Permanent Nursing,Glebe House Nursing Home,662.24, 14-Jan-2020
1588,Revenue,CAHD,South Glos Users in South Glos Homes,Permanent Nursing,Glebe House Nursing Home,662.24, 14-Jan-2020
1589,Revenue,CAHD,North - bed purchasing and direct  payments,Permanent Nursing,Glebe House Nursing Home,3502.08, 14-Jan-2020
1590,Revenue,CAHD,South Glos Users in South Glos Homes,Permanent Nursing,Glebe House Nursing Home,662.24, 14-Jan-2020
1591,Revenue,CAHD,Central - Bed Purchasing and Direct Payments,Permanent Nursing,Glebe House Nursing Home,2200.00, 14-Jan-2020
1592,Revenue,CAHD,Central - Commissioned Services,Permanent Nursing,Glebe House Nursing Home,2200.00, 14-Jan-2020
1593,Revenue,CAHD,Central - Bed Purchasing and Direct Payments,Permanent Nursing,Glenview Care Home,3224.00, 14-Jan-2020
1594,Revenue,CAHD,South - bed purchasing and direct  payments,Permanent Nursing,Glenview Care Home,2891.76, 14-Jan-2020
1595,Revenue,CAHD,North - S117,Permanent Nursing,Glenview Care Home,3301.36, 14-Jan-2020
1596,Revenue,CAHD,North - bed purchasing and direct  payments,Permanent Nursing,Glenview Care Home,3224.00, 14-Jan-2020
1597,Revenue,CAHD,South - bed purchasing and direct  payments,Permanent Nursing,Glenview Care Home,3993.60, 14-Jan-2020
1598,Revenue,CAHD,North - bed purchasing and direct  payments,Permanent Nursing,Glenview Care Home,2891.76, 14-Jan-2020
1599,Revenue,CAHD,South - bed purchasing and direct  payments,Permanent Residential,Gordena Care Home,4018.92, 14-Jan-2020
1600,Revenue,CAHD,North - S117,Permanent Residential,Gordena Care Home,14568.65, 14-Jan-2020
1601,Revenue,CAHD,North - S117,Permanent Residential,Gordena Care Home,3028.03, 14-Jan-2020
1602,Revenue,CAHD,North - S117,Permanent Residential,Gordena Care Home,2842.66, 14-Jan-2020
1603,Revenue,CAHD,South - bed purchasing and direct  payments,Permanent Residential,Gordena Care Home,2736.12, 14-Jan-2020
1604,Revenue,CAHD,South - bed purchasing and direct  payments,Permanent Residential,Gordena Care Home,3895.40, 14-Jan-2020
1605,Revenue,CAHD,South - bed purchasing and direct  payments,Permanent Residential,Gordena Care Home,3907.28, 14-Jan-2020
1606,Revenue,CAHD,South - Commissioned Services,Supported Living,Granville House,1903.12, 14-Jan-2020
1607,Revenue,CAHD,South - Commissioned Services,Supported Living,Granville House,1902.28, 14-Jan-2020
1608,Revenue,CAHD,CSC - Residential Placements,Permanent Residential,Greenfields Adolecent Development Limited,26527.14, 30-Jan-2020
1609,Revenue,CAHD,CSC - Residential Placements,Permanent Residential,Greenfields Adolecent Development Limited,21035.71, 30-Jan-2020
1610,Revenue,CAHD,Statemented Support Academies,Other Public Bodies,Greenshaw Learning Trust T/A Woodlands Primary,774.50, 24-Jan-2020
1611,Revenue,CAHD,Academy Resource Base Funding,Other Public Bodies,Greenshaw Learning Trust T/A Yate Academy,1010.96, 27-Jan-2020
1612,Revenue,CAHD,Academy Resource Base Funding,Other Public Bodies,Greenshaw Learning Trust T/A Yate Academy,1536.62, 27-Jan-2020
1613,Revenue,CAHD,SRRP,Other Public Bodies,Greenshaw Learning Trust T/A Yate Academy,4500.00, 17-Jan-2020
1614,Revenue,CAHD,Statemented Support Academies,Other Public Bodies,Greenshaw Learning Trust T/A Yate Academy,554.13, 24-Jan-2020
1615,Revenue,CAHD,Statemented Support Academies,Other Public Bodies,Greenshaw Learning Trust T/A Yate Academy,1072.89, 24-Jan-2020
1616,Revenue,CAHD,Statemented Support Academies,Other Public Bodies,Greenshaw Learning Trust T/A Yate Academy,707.40, 24-Jan-2020
1617,Revenue,CAHD,Statemented Support Academies,Other Public Bodies,Greenshaw Learning Trust T/A Yate Academy,1320.48, 24-Jan-2020
1618,Revenue,CAHD,Statemented Support Academies,Other Public Bodies,Greenshaw Learning Trust T/A Yate Academy,1320.48, 24-Jan-2020
1619,Revenue,CAHD,Statemented Support Academies,Other Public Bodies,Greenshaw Learning Trust T/A Yate Academy,1072.89, 24-Jan-2020
1620,Revenue,CAHD,Statemented Support Academies,Other Public Bodies,Greenshaw Learning Trust T/A Yate Academy,1072.89, 24-Jan-2020
1621,Revenue,CAHD,Statemented Support Academies,Other Public Bodies,Greenshaw Learning Trust T/A Yate Academy,837.09, 24-Jan-2020
1622,Revenue,CAHD,Statemented Support Academies,Other Public Bodies,Greenshaw Learning Trust T/A Yate Academy,801.72, 24-Jan-2020
1623,Revenue,CAHD,Statemented Support Academies,Other Public Bodies,Greenshaw Learning Trust T/A Yate Academy,742.77, 24-Jan-2020
1624,Revenue,CAHD,Statemented Support Academies,Other Public Bodies,Greenshaw Learning Trust T/A Yate Academy,825.30, 24-Jan-2020
1625,Revenue,CAHD,Statemented Support Academies,Other Public Bodies,Greenshaw Learning Trust T/A Yate Academy,778.14, 24-Jan-2020
1626,Revenue,CAHD,Statemented Support Academies,Other Public Bodies,Greenshaw Learning Trust T/A Yate Academy,541.58, 24-Jan-2020
1627,Revenue,CAHD,Statemented Support Academies,Other Public Bodies,Greenshaw Learning Trust T/A Yate Academy,860.67, 24-Jan-2020
1628,Revenue,CAHD,Statemented Support Academies,Other Public Bodies,Greenshaw Learning Trust T/A Yate Academy,624.87, 24-Jan-2020
1629,Revenue,CAHD,Statemented Support Academies,Other Public Bodies,Greenshaw Learning Trust T/A Yate Academy,624.87, 24-Jan-2020
1630,Revenue,CAHD,Post 16 High Needs Placements,Other Private Contractors,GroundEd,5400.00, 10-Jan-2020
1631,Revenue,CAHD,Care Management Team - North,Other Employee Expenses,Grove Care Ltd,1542.87, 09-Jan-2020
1632,Revenue,CAHD,North - S117,Permanent Residential,Grove View,7204.88, 14-Jan-2020
1633,Revenue,CAHD,South - bed purchasing and direct  payments,Permanent Residential,Gwendoline House,2600.00, 14-Jan-2020
1634,Revenue,CAHD,South - bed purchasing and direct  payments,Permanent Residential,Gwendoline House,2473.40, 14-Jan-2020
1635,Revenue,CAHD,South - bed purchasing and direct  payments,Permanent Residential,Gwendoline House,2600.00, 14-Jan-2020
1636,Revenue,CAHD,South - bed purchasing and direct  payments,Permanent Residential,Gwendoline House,2600.00, 14-Jan-2020
1637,Revenue,CAHD,Supporting People Programme,Grants to Voluntary Bodies,Habinteg Housing Association,694.00, 31-Jan-2020
1638,Revenue,CAHD,CAHC - Complaints & Advocacy Service,Complaints External Expenses,Individual,1095.68, 16-Jan-2020
1639,Revenue,CAHD,Social Lettings Agency,Fees - General,Individual,13.13, 27-Jan-2020
1640,Revenue,CAHD,Social Lettings Agency,Other Supplies & Services,Individual,577.72, 27-Jan-2020
1641,Revenue,CAHD,Tobacco Control,Other Small Contracts,Hanham Health,1060.00, 20-Jan-2020
1642,Revenue,CAHD,Early Years Inclusion Fund,Other Public Bodies,Hanham Toddlers Pre School,1800.00, 16-Jan-2020
1643,Revenue,CAHD,CSC - Vinney Green Secure Unit,External Lecturers Fees,Individual,500.00, 03-Jan-2020
1644,Revenue,CAHD,Information Systems - Software,Training Expenses,Harrison Hall Associates,160.00, 10-Jan-2020
1645,Revenue,CAHD,Training - Adult Services,Training Expenses,Harrison Hall Associates,960.00, 10-Jan-2020
1646,Revenue,CAHD,Home Care Monitoring (CM2000),Other Supplies & Services,HAS Technology Limited T/A CM2000,795.00, 02-Jan-2020
1647,Revenue,CAHD,North - bed purchasing and direct  payments,Permanent Nursing,Hazelwood Gardens Nursing Home,2343.48, 14-Jan-2020
1648,Revenue,CAHD,North - bed purchasing and direct  payments,Permanent Nursing,Head Office,2470.80, 14-Jan-2020
1649,Revenue,CAHD,North - bed purchasing and direct  payments,Permanent Nursing,Head Office,4554.08, 14-Jan-2020
1650,Revenue,CAHD,CSC - Residential Placements,Permanent Residential,Headway Adolescent Resources Limited,13600.00, 20-Jan-2020
1651,Revenue,CAHD,Central - Commissioned Services,Day Care / Social Activities,Headway Bristol,428.64, 07-Jan-2020
1652,Revenue,CAHD,Central - Commissioned Services,Other Small Contracts,Headway Bristol,676.80, 07-Jan-2020
1653,Revenue,CAHD,South - Commissioned Services,Day Care / Social Activities,Headway Bristol,135.36, 07-Jan-2020
1654,Revenue,CAHD,South - Commissioned Services,Other Small Contracts,Headway Bristol,315.84, 07-Jan-2020
1655,Revenue,CAHD,North - Community based support,Day Care / Social Activities,Headway Bristol,67.68, 07-Jan-2020
1656,Revenue,CAHD,Younger MH non-res purchasing,Day Care / Social Activities,Headway Bristol,90.24, 07-Jan-2020
1657,Revenue,CAHD,Central - Commissioned Services,Day Care / Social Activities,Headway Bristol,428.64, 13-Jan-2020
1658,Revenue,CAHD,Central - Commissioned Services,Other Small Contracts,Headway Bristol,609.12, 13-Jan-2020
1659,Revenue,CAHD,South - Commissioned Services,Day Care / Social Activities,Headway Bristol,135.36, 13-Jan-2020
1660,Revenue,CAHD,South - Commissioned Services,Other Small Contracts,Headway Bristol,315.84, 13-Jan-2020
1661,Revenue,CAHD,North - Community based support,Day Care / Social Activities,Headway Bristol,67.68, 13-Jan-2020
1662,Revenue,CAHD,Younger MH non-res purchasing,Day Care / Social Activities,Headway Bristol,90.24, 13-Jan-2020
1663,Revenue,CAHD,Central - Commissioned Services,Day Care / Social Activities,Headway Bristol,428.64, 20-Jan-2020
1664,Revenue,CAHD,Central - Commissioned Services,Other Small Contracts,Headway Bristol,744.48, 20-Jan-2020
1665,Revenue,CAHD,South - Commissioned Services,Day Care / Social Activities,Headway Bristol,135.36, 20-Jan-2020
1666,Revenue,CAHD,South - Commissioned Services,Other Small Contracts,Headway Bristol,321.48, 20-Jan-2020
1667,Revenue,CAHD,North - Community based support,Day Care / Social Activities,Headway Bristol,67.68, 20-Jan-2020
1668,Revenue,CAHD,Younger MH non-res purchasing,Day Care / Social Activities,Headway Bristol,90.24, 20-Jan-2020
1669,Revenue,CAHD,North - Community based support,Other Small Contracts,Helping Hands Homecare,1045.09, 22-Jan-2020
1670,Revenue,CAHD,Central - Commissioned Services,Other Small Contracts,Helping Hands Homecare,1544.70, 13-Jan-2020
1671,Revenue,CAHD,South - Commissioned Services,Other Small Contracts,Helping Hands Homecare,629.09, 13-Jan-2020
1672,Revenue,CAHD,North - Community based support,Other Small Contracts,Helping Hands Homecare,2335.45, 13-Jan-2020
1673,Revenue,CAHD,Central - Commissioned Services,Other Small Contracts,Helping Hands Homecare,1541.64, 13-Jan-2020
1674,Revenue,CAHD,South - Commissioned Services,Other Small Contracts,Helping Hands Homecare,525.03, 13-Jan-2020
1675,Revenue,CAHD,North - Community based support,Other Small Contracts,Helping Hands Homecare,2196.31, 13-Jan-2020
1676,Revenue,CAHD,Central - Commissioned Services,Other Small Contracts,Helping Hands Homecare,1796.44, 13-Jan-2020
1677,Revenue,CAHD,South - Commissioned Services,Other Small Contracts,Helping Hands Homecare,567.60, 13-Jan-2020
1678,Revenue,CAHD,North - Community based support,Other Small Contracts,Helping Hands Homecare,2278.84, 13-Jan-2020
1679,Revenue,CAHD,Central - Commissioned Services,Other Small Contracts,Helping Hands Homecare,1837.06, 13-Jan-2020
1680,Revenue,CAHD,South - Commissioned Services,Other Small Contracts,Helping Hands Homecare,548.68, 13-Jan-2020
1681,Revenue,CAHD,North - Community based support,Other Small Contracts,Helping Hands Homecare,2286.20, 13-Jan-2020
1682,Revenue,CAHD,S117 Placements PCT,Permanent Residential,Hesley Hall,19720.32, 14-Jan-2020
1683,Revenue,CAHD,Central - Bed Purchasing and Direct Payments,Permanent Residential,High Border Lodge,2142.20, 14-Jan-2020
1684,Revenue,CAHD,North - bed purchasing and direct  payments,Permanent Residential,High Border Lodge,2088.68, 14-Jan-2020
1685,Revenue,CAHD,18-25 Year Olds,Supported Living,Hillcairnie House,3487.72, 14-Jan-2020
1686,Revenue,CAHD,South - Commissioned Services,Supported Living,Hillcairnie House,4610.56, 14-Jan-2020
1687,Revenue,CAHD,South - Commissioned Services,Supported Living,Hillcairnie House,2517.76, 14-Jan-2020
1688,Revenue,CAHD,South - Commissioned Services,Supported Living,Hillcairnie House,2577.92, 14-Jan-2020
1689,Revenue,CAHD,North - Community based support,Supported Living,Hillcairnie House,2577.92, 14-Jan-2020
1690,Revenue,CAHD,South - Commissioned Services,Supported Living,Hillcairnie House,4295.80, 14-Jan-2020
1691,Revenue,CAHD,South - Commissioned Services,Supported Living,Hillcairnie House,2577.92, 14-Jan-2020
1692,Revenue,CAHD,South - bed purchasing and direct  payments,Permanent Residential,Hillcrest,5105.52, 14-Jan-2020
1693,Revenue,CAHD,S28A cases,Permanent Residential,Hillcrest,4965.36, 14-Jan-2020
1694,Revenue,CAHD,North - bed purchasing and direct  payments,Permanent Residential,Hillcrest,5175.04, 14-Jan-2020
1695,Revenue,CAHD,Early Years Inclusion Fund,Other Public Bodies,Hillsides Secret Garden Day Nursery,3600.00, 13-Jan-2020
1696,Revenue,CAHD,Early Years Inclusion Fund,Other Public Bodies,Hillsides Secret Garden Day Nursery,1800.00, 14-Jan-2020
1697,Revenue,CAHD,18-25 Year Olds,Permanent Residential,Hilltop Residential Home,8810.20, 14-Jan-2020
1698,Revenue,CAHD,Jointly Funded H&SC Packages,Permanent Residential,Hilltop Residential Home,5594.24, 14-Jan-2020
1699,Revenue,CAHD,Central - Commissioned Services,Permanent Residential,Hobbits Holt Craegmo,38341.79, 14-Jan-2020
1700,Revenue,CAHD,North - S117,Permanent Residential,Holly House,5387.08, 14-Jan-2020
1701,Revenue,CAHD,Jointly Funded H&SC Packages,Permanent Residential,Holly House,1346.76, 14-Jan-2020
1702,Revenue,CAHD,North - bed purchasing and direct  payments,Permanent Residential,Holly Tree Cottage,8531.24, 14-Jan-2020
1703,Revenue,CAHD,Jointly Funded H&SC Packages,Permanent Residential,Holly Tree Cottage,2577.68, 14-Jan-2020
1704,Revenue,CAHD,Central - Bed Purchasing and Direct Payments,Permanent Nursing,Holly Villa,2153.16, 14-Jan-2020
1705,Revenue,CAHD,North - bed purchasing and direct  payments,Permanent Residential,Holly Villa,3520.00, 14-Jan-2020
1706,Revenue,CAHD,South - Commissioned Services,Supported Living,Holmleigh Care Home Ltd,12184.48, 31-Jan-2020
1707,Revenue,CAHD,North - Community based support,Other Small Contracts,Holmleigh Care Home Ltd,8476.16, 13-Jan-2020
1708,Revenue,CAHD,South - Commissioned Services,Supported Living,Holmleigh Care Home Ltd,16924.32, 31-Jan-2020
1709,Revenue,CAHD,South - Commissioned Services,Supported Living,Holmleigh Care Home Ltd,11959.08, 31-Jan-2020
1710,Revenue,CAHD,South - Commissioned Services,Supported Living,Holmleigh Care Home Ltd,12184.48, 31-Jan-2020
1711,Revenue,CAHD,South - Commissioned Services,Supported Living,Holmleigh Care Home Ltd,12184.48, 31-Jan-2020
1712,Revenue,CAHD,South - Commissioned Services,Supported Living,Holmleigh Care Home Ltd,12184.48, 31-Jan-2020
1713,Revenue,CAHD,South - Commissioned Services,Supported Living,Holmleigh Care Home Ltd,12184.48, 31-Jan-2020
1714,Revenue,CAHD,South - Commissioned Services,Supported Living,Holmleigh Care Home Ltd,12184.48, 31-Jan-2020
1715,Revenue,CAHD,South - Commissioned Services,Supported Living,Holmleigh Care Home Ltd,12184.48, 31-Jan-2020
1716,Revenue,CAHD,North - Community based support,Other Small Contracts,Holmleigh Care Home Ltd,1121.28, 13-Jan-2020
1717,Revenue,CAHD,North - Community based support,Other Small Contracts,Holmleigh Care Home Ltd,8319.36, 13-Jan-2020
1718,Revenue,CAHD,North - Community based support,Other Small Contracts,Holmleigh Care Home Ltd,8476.16, 13-Jan-2020
1719,Revenue,CAHD,North - Community based support,Other Small Contracts,Holmleigh Care Home Ltd,8476.16, 13-Jan-2020
1720,Revenue,CAHD,North - Community based support,Other Small Contracts,Holmleigh Care Home Ltd,8476.16, 13-Jan-2020
1721,Revenue,CAHD,North - Community based support,Other Small Contracts,Holmleigh Care Home Ltd,8476.16, 13-Jan-2020
1722,Revenue,CAHD,North - Community based support,Other Small Contracts,Holmleigh Care Home Ltd,8476.16, 13-Jan-2020
1723,Revenue,CAHD,North - Community based support,Other Small Contracts,Holmleigh Care Home Ltd,8476.16, 13-Jan-2020
1724,Revenue,CAHD,South - Commissioned Services,Supported Living,Holmleigh Care Homes Ltd,14080.50, 14-Jan-2020
1725,Revenue,CAHD,South - Commissioned Services,Supported Living,Holmleigh Care Homes Ltd,2289.28, 14-Jan-2020
1726,Revenue,CAHD,Central - Commissioned Services,Supported Living,Holmleigh Care Homes Ltd,14080.50, 14-Jan-2020
1727,Revenue,CAHD,Central - Commissioned Services,Supported Living,Holmleigh Care Homes Ltd,513.92, 14-Jan-2020
1728,Revenue,CAHD,North - bed purchasing and direct  payments,Permanent Residential,Holmleigh Care Homes Ltd,4778.12, 14-Jan-2020
1729,Revenue,CAHD,Central - Bed Purchasing and Direct Payments,Permanent Residential,Holmleigh Care Homes Ltd,8903.60, 14-Jan-2020
1730,Revenue,CAHD,Jointly Funded H&SC Packages,Permanent Residential,Holmleigh Care Homes Ltd,4833.28, 14-Jan-2020
1731,Revenue,CAHD,South - bed purchasing and direct  payments,Permanent Residential,Holmleigh Care Homes Ltd,4564.24, 14-Jan-2020
1732,Revenue,CAHD,Jointly Funded H&SC Packages,Permanent Residential,Holmleigh Care Homes Ltd,1307.60, 14-Jan-2020
1733,Revenue,CAHD,18-25 Year Olds,Permanent Residential,Holmleigh Care Homes Ltd,15889.76, 14-Jan-2020
1734,Revenue,CAHD,Central - Commissioned Services,Supported Living,Home Farm Trust Ltd  5-6 Brook Office Pa,2161.96, 14-Jan-2020
1735,Revenue,CAHD,18-25 Year Olds,Permanent Residential,Home From Home Care Ltd,9927.36, 14-Jan-2020
1736,Revenue,CAHD,North - bed purchasing and direct  payments,Permanent Nursing,Horfield Care Ltd,3522.56, 14-Jan-2020
1737,Revenue,CAHD,South Glos Users in South Glos Homes,Permanent Nursing,Horfield Care Ltd,662.24, 14-Jan-2020
1738,Revenue,CAHD,North - bed purchasing and direct  payments,Permanent Nursing,Horfield Care Ltd,3522.56, 14-Jan-2020
1739,Revenue,CAHD,North - bed purchasing and direct  payments,Permanent Nursing,Horfield Care Ltd,3403.60, 14-Jan-2020
1740,Revenue,CAHD,North - bed purchasing and direct  payments,Permanent Nursing,Horfield Care Ltd,3589.48, 14-Jan-2020
1741,Revenue,CAHD,North - bed purchasing and direct  payments,Permanent Nursing,Horfield Care Ltd,3422.52, 14-Jan-2020
1742,Revenue,CAHD,North - bed purchasing and direct  payments,Permanent Nursing,Horfield Care Ltd,3422.52, 14-Jan-2020
1743,Revenue,CAHD,Central - Bed Purchasing and Direct Payments,Permanent Nursing,Horfield Care Ltd,3740.00, 14-Jan-2020
1744,Revenue,CAHD,North - bed purchasing and direct  payments,Permanent Nursing,Horfield Care Ltd,2216.32, 14-Jan-2020
1745,Revenue,CAHD,Central - Bed Purchasing and Direct Payments,Permanent Nursing,Horfield Care Ltd,3740.00, 14-Jan-2020
1746,Revenue,CAHD,North - bed purchasing and direct  payments,Permanent Nursing,Horfield Care Ltd,2216.32, 14-Jan-2020
1747,Revenue,CAHD,South - bed purchasing and direct  payments,Respite Planned - Nursing,Horfield Care Ltd,680.00, 14-Jan-2020
1748,Revenue,CAHD,South - bed purchasing and direct  payments,Permanent Nursing,Horfield Care Ltd,3600.00, 14-Jan-2020
1749,Revenue,CAHD,North - bed purchasing and direct  payments,Permanent Nursing,Horfield Care Ltd,3506.00, 14-Jan-2020
1750,Revenue,CAHD,Supporting People Programme,Grants to Voluntary Bodies,Housing 21,658.00, 31-Jan-2020
1751,Revenue,CAHD,Supporting People Programme,Grants to Voluntary Bodies,Housing 21,999.00, 31-Jan-2020
1752,Revenue,CAHD,Extra Care Housing,Private & Voluntary Home Care,Housing 21,42371.08, 15-Jan-2020
1753,Revenue,CAHD,Extra Care Housing,Private & Voluntary Home Care,Housing 21,39365.75, 06-Jan-2020
1754,Revenue,CAHD,18-25 Year Olds,Other Small Contracts,HSBC Invoice Finance (UK) Limited,111.60, 10-Jan-2020
1755,Revenue,CAHD,Central - Commissioned Services,Other Small Contracts,HSBC Invoice Finance (UK) Limited,14474.52, 10-Jan-2020
1756,Revenue,CAHD,South - Commissioned Services,Day Care / Social Activities,HSBC Invoice Finance (UK) Limited,78.12, 10-Jan-2020
1757,Revenue,CAHD,South - Commissioned Services,Other Small Contracts,HSBC Invoice Finance (UK) Limited,680.76, 10-Jan-2020
1758,Revenue,CAHD,North - Community based support,Other Small Contracts,HSBC Invoice Finance (UK) Limited,5016.42, 10-Jan-2020
1759,Revenue,CAHD,18-25 Year Olds,Other Small Contracts,HSBC Invoice Finance (UK) Limited,111.60, 10-Jan-2020
1760,Revenue,CAHD,Central - Commissioned Services,Other Small Contracts,HSBC Invoice Finance (UK) Limited,14301.54, 10-Jan-2020
1761,Revenue,CAHD,South - Commissioned Services,Day Care / Social Activities,HSBC Invoice Finance (UK) Limited,78.12, 10-Jan-2020
1762,Revenue,CAHD,South - Commissioned Services,Other Small Contracts,HSBC Invoice Finance (UK) Limited,842.58, 10-Jan-2020
1763,Revenue,CAHD,North - Community based support,Other Small Contracts,HSBC Invoice Finance (UK) Limited,4871.34, 10-Jan-2020
1764,Revenue,CAHD,18-25 Year Olds,Other Small Contracts,HSBC Invoice Finance (UK) Limited,44.64, 10-Jan-2020
1765,Revenue,CAHD,Central - Commissioned Services,Other Small Contracts,HSBC Invoice Finance (UK) Limited,12331.80, 10-Jan-2020
1766,Revenue,CAHD,South - Commissioned Services,Day Care / Social Activities,HSBC Invoice Finance (UK) Limited,22.32, 10-Jan-2020
1767,Revenue,CAHD,South - Commissioned Services,Other Small Contracts,HSBC Invoice Finance (UK) Limited,647.28, 10-Jan-2020
1768,Revenue,CAHD,North - Community based support,Other Small Contracts,HSBC Invoice Finance (UK) Limited,4335.66, 10-Jan-2020
1769,Revenue,CAHD,18-25 Year Olds,Other Small Contracts,HSBC Invoice Finance (UK) Limited,44.64, 29-Jan-2020
